Workbook

Sheet Pomocniczy (hidden)
A41: 8 | B41: PAPIER INTENSYWNY ZIELONY A4, 80 g | C41: Papier uniwersalny 80 g/m2, Przeznaczony do kopiarek, drukarek laserowych i atramentowych. Kolor intensywny zielony. Format A4 | D41: ryza/500 arkuszy
A42: 9 | B42: PAPIER INTENSYWNY ŻÓŁTY, A4, 80 g | C42: Papier uniwersalny 80 g/m2, Przeznaczony do kopiarek, drukarek laserowych i atramentowych. Kolor intensywny żółty. Format A4 | D42: ryza/500 arkuszy
A43: 10 | B43: PAPIER INTENSYWNY CZERWONY A4, 80g | C43: Papier uniwersalny 80 g/m2, Przeznaczony do kopiarek, drukarek laserowych i atramentowych. Kolor intensywny czerwony. Format A4 | D43: ryza/500 arkuszy
A44: 11 | B44: PAPIER MIX KOLORÓW A4, 80 g | C44: Papier uniwersalny 80 g/m2, Przeznaczony do kopiarek, drukarek laserowych i atramentowych. Mix kolorów. Format A4 | D44: ryza/500 arkuszy
A45: 12 | B45: PAPIER A4 100G, BIAŁOŚĆ 168 CIE | C45: Papier uniwersalny 100 g/m2 klasy A, Przeznaczony do kopiarek, drukarek laserowych i atramentowych oraz do wydruków kolorowych, Białość: 168 wg skali białości CIE. Format A4 | D45: ryza/ 250 arkuszy
A46: 13 | B46: Papier ozdobny – biały 250 g/m3 20 arkuszy | C46: papier wizytówkowy/ozdobny - np.. R20 TOP STYLE TRAD PAPIER A4 250G BIAŁY lub podobny | D46: opakowanie 20 arkuszy
A47: 1 | B47: PAPIER A4 80G, BIAŁOŚĆ 166 CIE | C47: Papier uniwersalny 80 g/m2 klasy A, Przeznaczony do kopiarek, drukarek laserowych i atramentowych oraz do wydruków kolorowych, Białość: 166 wg skali białości CIE. Format A4 | D47: karton/5 ryz po 500 arkuszy
A48: 2 | B48: PAPIER A4 80G, BIAŁOŚĆ 146 CIE | C48: Papier uniwersalny 80 g/m² klasy C+, Przeznaczony do drukarek laserowych,kopiarek oraz faksów. Białość: 146 wg skali białości CIE. Format A4 | D48: karton/5 ryz po 500 arkuszy
A49: 3 | B49: PAPIER UNIWERSALNY A5 80G BIAŁY, BIAŁOŚĆ 146 CIE | C49: Papier uniwersalny 80 g/m² klasy C+. Przeznaczony do drukarek laserowych, kopiarek oraz faksów. Białość: 146 wg skali białości CIE. Format A5 | D49: ryza/500 arkuszy
A50: 4 | B50: PAPIER A3 80G, BIAŁOŚĆ 146 CIE | C50: Papier uniwersalny 80 g/m² klasy C+. Przeznaczony do drukarek laserowych, kopiarek oraz faksów. Białość: 146 wg skali białości CIE. Format A3 | D50: ryza/500 arkuszy
A51: 5 | B51: PAPIER SATYNOWY A4 160G BIAŁY, BIAŁOŚC 168 CIE | C51: Satynowany,biały papier przeznaczony do pełnokolorowych wydruków, nadaje się do maszyn cyfrowych,prezentacji, broszur, raportów oraz materiałów informacyjnych. Białość: 168 wg skali białości CIE. Gramatura 160 g//m². Format A4 | D51: ryza/250 arkuszy
A52: 6 | B52: PAPIER A4 160G, BIAŁOŚĆ 169 CIE | C52: Papier przeznaczony do dwustronnych wydruków laserowych i atramentowych. Zapobiega przesiąkaniu druku. Białość: 169 wg skali białości CIE 160 g/m². Format A4 | D52: ryza/250 arkuszy
A53: 7 | B53: PAPIER INTENSYWNY NIEBIESKI A4, 80 g | C53: Papier uniwersalny 80 g/m2, Przeznaczony do kopiarek, drukarek laserowych i atramentowych. Kolor intensywny niebieski. Format A4 | D53: ryza/500 arkuszy
A54: 8 | B54: PAPIER INTENSYWNY ZIELONY A4, 80 g | C54: Papier uniwersalny 80 g/m2, Przeznaczony do kopiarek, drukarek laserowych i atramentowych. Kolor intensywny zielony. Format A4 | D54: ryza/500 arkuszy
A55: 9 | B55: PAPIER INTENSYWNY ŻÓŁTY, A4, 80 g | C55: Papier uniwersalny 80 g/m2, Przeznaczony do kopiarek, drukarek laserowych i atramentowych. Kolor intensywny żółty. Format A4 | D55: ryza/500 arkuszy
A56: 10 | B56: PAPIER INTENSYWNY CZERWONY A4, 80g | C56: Papier uniwersalny 80 g/m2, Przeznaczony do kopiarek, drukarek laserowych i atramentowych. Kolor intensywny czerwony. Format A4 | D56: ryza/500 arkuszy
A57: 11 | B57: PAPIER MIX KOLORÓW A4, 80 g | C57: Papier uniwersalny 80 g/m2, Przeznaczony do kopiarek, drukarek laserowych i atramentowych. Mix kolorów. Format A4 | D57: ryza/500 arkuszy
A58: 12 | B58: PAPIER A4 100G, BIAŁOŚĆ 168 CIE | C58: Papier uniwersalny 100 g/m2 klasy A, Przeznaczony do kopiarek, drukarek laserowych i atramentowych oraz do wydruków kolorowych, Białość: 168 wg skali białości CIE. Format A4 | D58: ryza/ 250 arkuszy
A59: 13 | B59: Papier ozdobny – biały 250 g/m3 20 arkuszy | C59: papier wizytówkowy/ozdobny - np.. R20 TOP STYLE TRAD PAPIER A4 250G BIAŁY lub podobny | D59: opakowanie 20 arkuszy
A60: 1 | B60: PAPIER A4 80G, BIAŁOŚĆ 166 CIE | C60: Papier uniwersalny 80 g/m2 klasy A, Przeznaczony do kopiarek, drukarek laserowych i atramentowych oraz do wydruków kolorowych, Białość: 166 wg skali białości CIE. Format A4 | D60: karton/5 ryz po 500 arkuszy
A61: 2 | B61: PAPIER A4 80G, BIAŁOŚĆ 146 CIE | C61: Papier uniwersalny 80 g/m² klasy C+, Przeznaczony do drukarek laserowych,kopiarek oraz faksów. Białość: 146 wg skali białości CIE. Format A4 | D61: karton/5 ryz po 500 arkuszy
A62: 3 | B62: PAPIER UNIWERSALNY A5 80G BIAŁY, BIAŁOŚĆ 146 CIE | C62: Papier uniwersalny 80 g/m² klasy C+. Przeznaczony do drukarek laserowych, kopiarek oraz faksów. Białość: 146 wg skali białości CIE. Format A5 | D62: ryza/500 arkuszy
A63: 4 | B63: PAPIER A3 80G, BIAŁOŚĆ 146 CIE | C63: Papier uniwersalny 80 g/m² klasy C+. Przeznaczony do drukarek laserowych, kopiarek oraz faksów. Białość: 146 wg skali białości CIE. Format A3 | D63: ryza/500 arkuszy
A64: 5 | B64: PAPIER SATYNOWY A4 160G BIAŁY, BIAŁOŚC 168 CIE | C64: Satynowany,biały papier przeznaczony do pełnokolorowych wydruków, nadaje się do maszyn cyfrowych,prezentacji, broszur, raportów oraz materiałów informacyjnych. Białość: 168 wg skali białości CIE. Gramatura 160 g//m². Format A4 | D64: ryza/250 arkuszy
A65: 6 | B65: PAPIER A4 160G, BIAŁOŚĆ 169 CIE | C65: Papier przeznaczony do dwustronnych wydruków laserowych i atramentowych. Zapobiega przesiąkaniu druku. Białość: 169 wg skali białości CIE 160 g/m². Format A4 | D65: ryza/250 arkuszy
A66: 7 | B66: PAPIER INTENSYWNY NIEBIESKI A4, 80 g | C66: Papier uniwersalny 80 g/m2, Przeznaczony do kopiarek, drukarek laserowych i atramentowych. Kolor intensywny niebieski. Format A4 | D66: ryza/500 arkuszy
A67: 8 | B67: PAPIER INTENSYWNY ZIELONY A4, 80 g | C67: Papier uniwersalny 80 g/m2, Przeznaczony do kopiarek, drukarek laserowych i atramentowych. Kolor intensywny zielony. Format A4 | D67: ryza/500 arkuszy
A68: 9 | B68: PAPIER INTENSYWNY ŻÓŁTY, A4, 80 g | C68: Papier uniwersalny 80 g/m2, Przeznaczony do kopiarek, drukarek laserowych i atramentowych. Kolor intensywny żółty. Format A4 | D68: ryza/500 arkuszy
A69: 10 | B69: PAPIER INTENSYWNY CZERWONY A4, 80g | C69: Papier uniwersalny 80 g/m2, Przeznaczony do kopiarek, drukarek laserowych i atramentowych. Kolor intensywny czerwony. Format A4 | D69: ryza/500 arkuszy
A70: 11 | B70: PAPIER MIX KOLORÓW A4, 80 g | C70: Papier uniwersalny 80 g/m2, Przeznaczony do kopiarek, drukarek laserowych i atramentowych. Mix kolorów. Format A4 | D70: ryza/500 arkuszy
A71: 12 | B71: PAPIER A4 100G, BIAŁOŚĆ 168 CIE | C71: Papier uniwersalny 100 g/m2 klasy A, Przeznaczony do kopiarek, drukarek laserowych i atramentowych oraz do wydruków kolorowych, Białość: 168 wg skali białości CIE. Format A4 | D71: ryza/ 250 arkuszy
A72: 13 | B72: Papier ozdobny – biały 250 g/m3 20 arkuszy | C72: papier wizytówkowy/ozdobny - np.. R20 TOP STYLE TRAD PAPIER A4 250G BIAŁY lub podobny | D72: opakowanie 20 arkuszy
A73: 1 | B73: PAPIER A4 80G, BIAŁOŚĆ 166 CIE | C73: Papier uniwersalny 80 g/m2 klasy A, Przeznaczony do kopiarek, drukarek laserowych i atramentowych oraz do wydruków kolorowych, Białość: 166 wg skali białości CIE. Format A4 | D73: karton/5 ryz po 500 arkuszy
A74: 2 | B74: PAPIER A4 80G, BIAŁOŚĆ 146 CIE | C74: Papier uniwersalny 80 g/m² klasy C+, Przeznaczony do drukarek laserowych,kopiarek oraz faksów. Białość: 146 wg skali białości CIE. Format A4 | D74: karton/5 ryz po 500 arkuszy
A75: 3 | B75: PAPIER UNIWERSALNY A5 80G BIAŁY, BIAŁOŚĆ 146 CIE | C75: Papier uniwersalny 80 g/m² klasy C+. Przeznaczony do drukarek laserowych, kopiarek oraz faksów. Białość: 146 wg skali białości CIE. Format A5 | D75: ryza/500 arkuszy
A76: 4 | B76: PAPIER A3 80G, BIAŁOŚĆ 146 CIE | C76: Papier uniwersalny 80 g/m² klasy C+. Przeznaczony do drukarek laserowych, kopiarek oraz faksów. Białość: 146 wg skali białości CIE. Format A3 | D76: ryza/500 arkuszy
A77: 5 | B77: PAPIER SATYNOWY A4 160G BIAŁY, BIAŁOŚC 168 CIE | C77: Satynowany,biały papier przeznaczony do pełnokolorowych wydruków, nadaje się do maszyn cyfrowych,prezentacji, broszur, raportów oraz materiałów informacyjnych. Białość: 168 wg skali białości CIE. Gramatura 160 g//m². Format A4 | D77: ryza/250 arkuszy
A78: 6 | B78: PAPIER DO DRUKAREK IGŁOWYCH 240MM 1+3 O/K | C78: Papier do drukarek igłowych, wielowarstwowy o gramaturze 53-57 g/m², wytwarzany z papieru samokopiującego.Liczba warstw 1+3. Biały oryginał, żółta, zielona i różowa kopia, posiada nadruk oryginał/kopia. Format: długość 12''= 305 mm, szerokość 240 mm | D78: karton/450 składek
A79: 7 | B79: PAPIER DO DRUKAREK IGŁOWYCH 240MM 1+4 | C79: Papier do drukarek igłowych, wielowarstwowy o gramaturze 53-57 g/m², wytwarzany z papieru samokopiującego.Kolory kopii:1+4: żółta, zielona, żółta, różowa. Długość: 12'' = 305mm; Szerokość: 240(mm). Liczba warstw 1+4 | D79: karton/350 składek
A80: 8 | B80: ROLKA PAPIEROWA 76MMX25M | C80: Rolka papierowa (offsetowa) Gwarancja: 5 lat na zdolność kopiowania papieru i 25 lat na trwałość kopii. Wymiary: 76 mm x dl. 25m | D80: opakowanie/10 sztuk
A81: 9 | B81: PELIKAN KALKA OŁÓWKOWA NIEBIESKA A4 | C81: Kalka przebitkowa, maszynowa i do pisania odręcznego. Samoregenerująca się. Format A4. Kolor niebieski | D81: opakowanie/10 arkuszy
A82: 10 | B82: PAPIER FOTOGRAFICZNY, A4, 180 g | C82: Szybkoschnący papier fotograficzny do wydruku profesjonalnej jakości fotografii. Gładkie, lśniące wykończenie zapewnia wyraźne zdjęcia o żywych kolorach. Format A4, 180 g | D82: ryza/50 arkuszy
A83: 11 | B83: PAPIER FOTOGRAFICZNY, A4, 200G, | C83: Szybkoschnący papier fotograficzny do wydruku profesjonalnej jakości fotografii. Gładkie, lśniące wykończenie zapewnia wyraźne zdjęcia o żywych kolorach. Format A4, 200g | D83: opakowanie/25 arkuszy
A84: 12 | B84: PAPIER A4 160G, BIAŁOŚĆ 169 CIE | C84: Papier przeznaczony do dwustronnych wydruków laserowych i atramentowych. Zapobiega przesiąkaniu druku. Białość: 169 wg skali białości CIE 160 g/m². Format A4 | D84: ryza/250 arkuszy
A85: 13 | B85: OKŁADKI DO DYPLOMÓW GRANAT, ROZMIAR 220 X 310 MM | C85: Okładki do certyfikatów, dyplomów, listów gratulacyjnych. Twarda oprawa o fakturze skóry. Posiadają ozdobny złoty sznureczek. Rozmiar okładki: 220 x 310 mm. Kolor granatowy | D85: opakowanie/10 sztuk
A86: 14 | B86: PAPIER INTENSYWNY NIEBIESKI A4, 80 g | C86: Papier uniwersalny 80 g/m2, Przeznaczony do kopiarek, drukarek laserowych i atramentowych. Kolor intensywny niebieski. Format A4 | D86: ryza/500 arkuszy
A87: 15 | B87: PAPIER INTENSYWNY ZIELONY A4, 80 g | C87: Papier uniwersalny 80 g/m2, Przeznaczony do kopiarek, drukarek laserowych i atramentowych. Kolor intensywny zielony. Format A4 | D87: ryza/500 arkuszy
A88: 16 | B88: PAPIER INTENSYWNY ŻÓŁTY, A4, 80 g | C88: Papier uniwersalny 80 g/m2, Przeznaczony do kopiarek, drukarek laserowych i atramentowych. Kolor intensywny żółty. Format A4 | D88: ryza/500 arkuszy
A89: 17 | B89: PAPIER INTENSYWNY CZERWONY A4, 80g | C89: Papier uniwersalny 80 g/m2, Przeznaczony do kopiarek, drukarek laserowych i atramentowych. Kolor intensywny czerwony. Format A4 | D89: ryza/500 arkuszy
A90: 18 | B90: PAPIER MIX KOLORÓW A4, 80 g | C90: Papier uniwersalny 80 g/m2, Przeznaczony do kopiarek, drukarek laserowych i atramentowych. Mix kolorów. Format A4 | D90: ryza/500 arkuszy
A91: 19 | B91: PAPIER A4 100G, BIAŁOŚĆ 168 CIE | C91: Papier uniwersalny 100 g/m2 klasy A, Przeznaczony do kopiarek, drukarek laserowych i atramentowych oraz do wydruków kolorowych, Białość: 168 wg skali białości CIE. Format A4 | D91: ryza/ 250 arkuszy
A92: 20 | B92: Papier ozdobny – biały 250 g/m3 20 arkuszy | C92: papier wizytówkowy/ozdobny - np.. R20 TOP STYLE TRAD PAPIER A4 250G BIAŁY lub podobny | D92: opakowanie 20 arkuszy
A93: 1 | B93: PAPIER A4 80G, BIAŁOŚĆ 166 CIE | C93: Papier uniwersalny 80 g/m2 klasy A, Przeznaczony do kopiarek, drukarek laserowych i atramentowych oraz do wydruków kolorowych, Białość: 166 wg skali białości CIE. Format A4 | D93: karton/5 ryz po 500 arkuszy
A94: 2 | B94: PAPIER A4 80G, BIAŁOŚĆ 146 CIE | C94: Papier uniwersalny 80 g/m² klasy C+, Przeznaczony do drukarek laserowych,kopiarek oraz faksów. Białość: 146 wg skali białości CIE. Format A4 | D94: karton/5 ryz po 500 arkuszy
A95: 3 | B95: PAPIER UNIWERSALNY A5 80G BIAŁY, BIAŁOŚĆ 146 CIE | C95: Papier uniwersalny 80 g/m² klasy C+. Przeznaczony do drukarek laserowych, kopiarek oraz faksów. Białość: 146 wg skali białości CIE. Format A5 | D95: ryza/500 arkuszy
A96: 4 | B96: PAPIER A3 80G, BIAŁOŚĆ 146 CIE | C96: Papier uniwersalny 80 g/m² klasy C+. Przeznaczony do drukarek laserowych, kopiarek oraz faksów. Białość: 146 wg skali białości CIE. Format A3 | D96: ryza/500 arkuszy
A97: 5 | B97: PAPIER SATYNOWY A4 160G BIAŁY, BIAŁOŚC 168 CIE | C97: Satynowany,biały papier przeznaczony do pełnokolorowych wydruków, nadaje się do maszyn cyfrowych,prezentacji, broszur, raportów oraz materiałów informacyjnych. Białość: 168 wg skali białości CIE. Gramatura 160 g//m². Format A4 | D97: ryza/250 arkuszy
A98: 6 | B98: PAPIER A4 160G, BIAŁOŚĆ 169 CIE | C98: Papier przeznaczony do dwustronnych wydruków laserowych i atramentowych. Zapobiega przesiąkaniu druku. Białość: 169 wg skali białości CIE 160 g/m². Format A4 | D98: ryza/250 arkuszy
A99: 7 | B99: PAPIER INTENSYWNY NIEBIESKI A4, 80 g | C99: Papier uniwersalny 80 g/m2, Przeznaczony do kopiarek, drukarek laserowych i atramentowych. Kolor intensywny niebieski. Format A4 | D99: ryza/500 arkuszy
A100: 8 | B100: PAPIER INTENSYWNY ZIELONY A4, 80 g | C100: Papier uniwersalny 80 g/m2, Przeznaczony do kopiarek, drukarek laserowych i atramentowych. Kolor intensywny zielony. Format A4 | D100: ryza/500 arkuszy
A101: 9 | B101: PAPIER INTENSYWNY ŻÓŁTY, A4, 80 g | C101: Papier uniwersalny 80 g/m2, Przeznaczony do kopiarek, drukarek laserowych i atramentowych. Kolor intensywny żółty. Format A4 | D101: ryza/500 arkuszy
A102: 10 | B102: PAPIER INTENSYWNY CZERWONY A4, 80g | C102: Papier uniwersalny 80 g/m2, Przeznaczony do kopiarek, drukarek laserowych i atramentowych. Kolor intensywny czerwony. Format A4 | D102: ryza/500 arkuszy
A103: 11 | B103: PAPIER MIX KOLORÓW A4, 80 g | C103: Papier uniwersalny 80 g/m2, Przeznaczony do kopiarek, drukarek laserowych i atramentowych. Mix kolorów. Format A4 | D103: ryza/500 arkuszy
A104: 12 | B104: PAPIER A4 100G, BIAŁOŚĆ 168 CIE | C104: Papier uniwersalny 100 g/m2 klasy A, Przeznaczony do kopiarek, drukarek laserowych i atramentowych oraz do wydruków kolorowych, Białość: 168 wg skali białości CIE. Format A4 | D104: ryza/ 250 arkuszy
A105: 13 | B105: Papier ozdobny – biały 250 g/m3 20 arkuszy | C105: papier wizytówkowy/ozdobny - np.. R20 TOP STYLE TRAD PAPIER A4 250G BIAŁY lub podobny | D105: opakowanie 20 arkuszy

Sheet Załącznik 1 - Formularz Oferty
C1: Oznaczenie sprawy: 1400/DW00/ZU/KZ/2021/0000061751 | R1: Tak
R2: Nie
C3: ZAŁĄCZNIK NR 1 - FORMULARZ OFERTY DLA ZADAŃ: OD 1 DO 7
D6: (pieczęć wykonawcy)
C8: Ja, niżej podpisany (My niżej podpisani):
C11: działając w imieniu i na rzecz:
C14: Składam(y) ofertę na wykonanie zamówienia, którego przedmiotem jest:
C15: Dostawa papieru do wydruku dla spółek GK ENEA
C17: Oferujemy wykonanie zamówienia zgodnie z opisem przedmiotu zamówienia:
C19: ŁĄCZNA CENA NETTO OFERTY DLA ZADANIA 1 | D19: =IF(V55=TRUE,'Załącznik 2-F.O. dla Zadania 1'!D19,"Wykonawca nie składa oferty") -> Wykonawca nie składa oferty
C20: CENA NETTO SŁOWNIE: | D20: =IF(V55=TRUE,zad1!E13,"") -> 
C22: ŁĄCZNA CENA NETTO OFERTY DLA ZADANIA 2 | D22: =IF(V56=TRUE,'Załącznik 3-F.O. dla Zadania 2'!D19,"Wykonawca nie składa oferty") -> Wykonawca nie składa oferty
C23: CENA NETTO SŁOWNIE: | D23: =IF(V56=TRUE,zad2!E13,"") ->  | K23: =IF(V23=TRUE,'Załącznik 2-F.O. dla Zadania 1'!#REF!,0) -> 0
C25: ŁĄCZNA CENA NETTO OFERTY DLA ZADANIA 3 | D25: =IF(V57=TRUE,'Załącznik 4-F.O. dla Zadania 3'!D19,"Wykonawca nie składa oferty") -> Wykonawca nie składa oferty
C26: CENA NETTO SŁOWNIE: | D26: =IF(V57=TRUE,zad3!E13,"") -> 
C28: ŁĄCZNA CENA NETTO OFERTY DLA ZADANIA 4 | D28: =IF(V58=TRUE,'Załącznik 5-F.O. dla Zadania 4'!D19,"Wykonawca nie składa oferty") -> Wykonawca nie składa oferty
C29: CENA NETTO SŁOWNIE: | D29: =IF(V58=TRUE,zad4!E13,"") -> 
C31: ŁĄCZNA CENA NETTO OFERTY DLA ZADANIA 5 | D31: =IF(V59=TRUE,'Załącznik 6-F.O. dla Zadania 5'!D19,"Wykonawca nie składa oferty") -> Wykonawca nie składa oferty
C32: CENA NETTO SŁOWNIE: | D32: =IF(V59=TRUE,zad5!E13,"") -> 
C34: ŁĄCZNA CENA NETTO OFERTY DLA ZADANIA 6 | D34: =IF(V60=TRUE,'Załącznik 7-F.O. dla Zadania 6'!D19,"Wykonawca nie składa oferty") -> Wykonawca nie składa oferty
C35: CENA NETTO SŁOWNIE: | D35: =IF(V60=TRUE,zad6!E13,"") -> 
C37: ŁĄCZNA CENA NETTO OFERTY DLA ZADANIA 7 | D37: =IF(V61=TRUE,'Załącznik 8-F.O. dla Zadania 7'!D19,"Wykonawca nie składa oferty") -> Wykonawca nie składa oferty
C38: CENA NETTO SŁOWNIE: | D38: =IF(V61=TRUE,zad7!E13,"") -> 
C41: INSTRUKCJA DLA WYKONAWCY: 1. W arkuszu Załącznik 1 - Formularz Oferty należy wybrać Zadania na które Wykonawca składa ofertę (Zadania 1 - 7). W tym celu, w kolumnie "J55 -J61", należy zaznaczyć/wybrać checkboxy dla tych Zadań dla których Wykonawca składa ofertę. 2. Następnie proszę wybrać przycisk "Wykonaj". Spowoduje to uruchomienie makra, które dostosuje listę produktów dla których należy uzupełnić ceny jednostkowe netto do wybranych Zadań na które Wykonawca składa ofertę (produkty będą widoczne w wierszu od 53). Przykładowo jeżeli Wykonawca zaznaczy, że składa ofertę tylko dla Zadania 7, wówczas w wierszach od 53 będą widoczne tylko produkty dla Zadania 7. Jeżeli Wykonawca zaznaczy, że składa ofertę dla Zadania 3, 4, 7 wówczas w wierszach od 53 będą widoczne produkty dla tych Zadań (jeżeli produkt występuje w każdym Zadaniu to widoczny jest tylko jeden raz - nie powtarzają się produkty). 3.Wykonawca uzupełnia ceny jednostkowe netto oraz Stawki Vat dla wszystkich produktów - zaznaczone na niebiesko (kolumna "F" i "G" wiersze od 53). 4. Ceny jednostkowe netto wpisane w arkuszu Załącznik 1 - Formularz Oferty automatycznie zaciągają się do kolejnych arkuszy Zadań i wyliczają łączną cenę netto Oferty dla poszczególnych Zadań w arkuszach. 5. Cena netto Oferty dla danego Zadania (łącznie z cenami jednostkowymi netto) musi być podana w złotych polskich, z dokładnością do dwóch miejsc po przecinku poprzez zastosowanie w arkuszu kalkulacyjnym Excel funkcji zaokrąglenia. tj. ZAOKR (=ZAOKR(A1;2), gdzie A1 oznacza liczbę). 6. Cena Oferty netto dla danego Zadania, w tym ceny jednostkowe netto, muszą być wyższe niż 0,00 PLN. 7. Uwaga! Ponowne uruchomienie makra (przycisk Wykonaj), dostosowującego listę produktów wg wybranych Zadań, po wpisaniu cen spowoduje wykasowanie wcześniej wprowadzonych cen.
C42: Uwaga: na niebiesko zostały zaznaczone pola do uzupełnienia przez Wykonawców (załączniki: Załącznik 1 - Formularz Oferty oraz Załączniki 2 do 8).
C43: W celu złożenia oferty Wykonawca zobowiązany jest do uzupełnienia i podpisania arkusza: Załącznik 1 - Formularz Oferty oraz uzupełnienia i podpisania załączników dla wszystkich Zadań, na które składa Ofertę, np. Wykonawca składając ofertę dla Zadania 1 i Zadania 7 powinien złożyć wypełniony i podpisany załącznik: Załącznik 1 - Formularz Oferty (wypełniony zgodnie z powyższa instrukcją) oraz Załącznik 2-F.O. dla Zadania 1 1 i Załącznik 8-F.O. dla Zadania 7 (należy wypełnić tylko pola oznaczone na niebiesko).
B52: lp | C52: Opis | D52: Opis szczegółowy | E52: Jednostka | F52: Stawka VAT | G52: Cena jednostkowa netto
B53: 1 | C53: PAPIER A4 80G, BIAŁOŚĆ 166 CIE | D53: Papier uniwersalny 80 g/m2 klasy A, Przeznaczony do kopiarek, drukarek laserowych i atramentowych oraz do wydruków kolorowych, Białość: 166 wg skali białości CIE. Format A4 | E53: karton/5 ryz po 500 arkuszy | J53: Wartość łączna oferty netto | K53: =SUM(K55:K61) -> 0
B54: 2 | C54: PAPIER A4 80G, BIAŁOŚĆ 146 CIE | D54: Papier uniwersalny 80 g/m² klasy C+, Przeznaczony do drukarek laserowych,kopiarek oraz faksów. Białość: 146 wg skali białości CIE. Format A4 | E54: karton/5 ryz po 500 arkuszy | J54: Zaznacz zadanie/zadania na które składana jest oferta:
B55: 3 | C55: PAPIER UNIWERSALNY A5 80G BIAŁY, BIAŁOŚĆ 146 CIE | D55: Papier uniwersalny 80 g/m² klasy C+. Przeznaczony do drukarek laserowych, kopiarek oraz faksów. Białość: 146 wg skali białości CIE. Format A5 | E55: ryza/500 arkuszy | K55: =IF(V55=TRUE,'Załącznik 2-F.O. dla Zadania 1'!D19,0) -> 0 | V55: FALSE
B56: 4 | C56: PAPIER A3 80G, BIAŁOŚĆ 146 CIE | D56: Papier uniwersalny 80 g/m² klasy C+. Przeznaczony do drukarek laserowych, kopiarek oraz faksów. Białość: 146 wg skali białości CIE. Format A3 | E56: ryza/500 arkuszy | K56: =IF(V56=TRUE,'Załącznik 3-F.O. dla Zadania 2'!D19,0) -> 0 | V56: FALSE
B57: 5 | C57: PAPIER SATYNOWY A4 160G BIAŁY, BIAŁOŚC 168 CIE | D57: Satynowany,biały papier przeznaczony do pełnokolorowych wydruków, nadaje się do maszyn cyfrowych,prezentacji, broszur, raportów oraz materiałów informacyjnych. Białość: 168 wg skali białości CIE. Gramatura 160 g//m². Format A4 | E57: ryza/250 arkuszy | K57: =IF(V57=TRUE,'Załącznik 4-F.O. dla Zadania 3'!D19,0) -> 0 | V57: FALSE
B58: 6 | C58: PAPIER DO DRUKAREK IGŁOWYCH 240MM 1+1 O/K | D58: Papier do drukarek igłowych, wielowarstwowy o gramaturze 53-57 g/m², wytwarzany z papieru samokopiującego, Liczba warstw 1+1. Biały oryginał i różowa kopia, posiada nadruk oryginał/kopia. Format: długość 12''= 305 mm, szerokość 240 mm | E58: karton/900 składek | K58: =IF(V58=TRUE,'Załącznik 5-F.O. dla Zadania 4'!D19,0) -> 0 | V58: FALSE
B59: 7 | C59: PAPIER DO DRUKAREK IGŁOWYCH 240MM 1+2 O/K | D59: Papier do drukarek igłowych, wielowarstwowy o gramaturze 53-57 g/m²,Liczba warstw 1+2. Biały oryginał, żółta i różowa kopia, posiada nadruk oryginał/kopia. Format: długość 12''= 305 mm, szerokość 240 mm | E59: karton/600 składek | K59: =IF(V59=TRUE,'Załącznik 6-F.O. dla Zadania 5'!D19,0) -> 0 | V59: FALSE
B60: 8 | C60: PAPIER DO DRUKAREK IGŁOWYCH 240MM 1+3 O/K | D60: Papier do drukarek igłowych, wielowarstwowy o gramaturze 53-57 g/m², wytwarzany z papieru samokopiującego.Liczba warstw 1+3. Biały oryginał, żółta, zielona i różowa kopia, posiada nadruk oryginał/kopia. Format: długość 12''= 305 mm, szerokość 240 mm | E60: karton/450 składek | K60: =IF(V60=TRUE,'Załącznik 7-F.O. dla Zadania 6'!D19,0) -> 0 | V60: FALSE
B61: 9 | C61: PAPIER DO DRUKAREK IGŁOWYCH 240MM 1+4 | D61: Papier do drukarek igłowych, wielowarstwowy o gramaturze 53-57 g/m², wytwarzany z papieru samokopiującego.Kolory kopii:1+4: żółta, zielona, żółta, różowa. Długość: 12'' = 305mm; Szerokość: 240(mm). Liczba warstw 1+4 | E61: karton/350 składek | K61: =IF(V61=TRUE,'Załącznik 8-F.O. dla Zadania 7'!D19,0) -> 0 | V61: FALSE
B62: 10 | C62: PAPIER DO PLOTERÓW 297MMX50M 90G | D62: Uniwersalny papier do ploterów atramentowych. Biały, niepowlekany. Przeznaczony do wydruków monochromatycznych i kolorowych. Długość: 50 m. Średnica tulejki: 50 mm | E62: opakowanie/ 2 rolki
B63: 11 | C63: PAPIER DO PLOTERÓW 420MMX50M 80G | D63: Uniwersalny papier do ploterów atramentowych. Biały, niepowlekany. Przeznaczony do wydruków monochromatycznych i kolorowych. Gramatura 80 g/m². Szerokość 420 mm. Długość 50 m. Średnica gilzy: 50 mm | E63: opakowanie/ 2 rolki
B64: 12 | C64: PAPIER DO PLOTERÓW 594MMX50M 80G | D64: Uniwersalny papier do ploterów atramentowych. Biały, niepowlekany. Przeznaczony do wydruków monochromatycznych i kolorowych. Gramatura 80 g/m². Szerokość 594 mm. Długość 50 m. Średnica gilzy: 50 mm | E64: 1 rolka
B65: 13 | C65: PAPIER DO PLOTERÓW 610MMX50M 80G | D65: Uniwersalny papier do ploterów atramentowych. Biały, niepowlekany. Przeznaczony do wydruków monochromatycznych i kolorowych. Gramatura 80 g/m². Szerokość 610 mm. Długość 50 m.Średnica gilzy: 50 mm | E65: 1 rolka
B66: 14 | C66: PAPIER DO PLOTERÓW 841MMX50M 80G | D66: Uniwersalny papier do ploterów atramentowych. Biały, niepowlekany. Przeznaczony do wydruków monochromatycznych i kolorowych. Gramatura 80 g/m². Szerokość 841 mm. Długość 50 m. Średnica gilzy: 50 mm | E66: 1 rolka
B67: 15 | C67: PAPIER DO PLOTERÓW 914MMX50M 80G | D67: Uniwersalny papier do ploterów atramentowych. Biały, niepowlekany. Przeznaczony do wydruków monochromatycznych i kolorowych. Gramatura 80 g/m². Szerokość 914 mm. Długość 50 m. Średnica gilzy: 50 mm | E67: 1 rolka
B68: 16 | C68: ROLKA PAPIEROWA 76MMX25M | D68: Rolka papierowa (offsetowa) Gwarancja: 5 lat na zdolność kopiowania papieru i 25 lat na trwałość kopii. Wymiary: 76 mm x dl. 25m | E68: opakowanie/10 sztuk
B69: 17 | C69: PELIKAN KALKA OŁÓWKOWA NIEBIESKA A4 | D69: Kalka przebitkowa, maszynowa i do pisania odręcznego. Samoregenerująca się. Format A4. Kolor niebieski | E69: opakowanie/10 arkuszy
B70: 18 | C70: PAPIER FOTOGRAFICZNY, A4, 180 g | D70: Szybkoschnący papier fotograficzny do wydruku profesjonalnej jakości fotografii. Gładkie, lśniące wykończenie zapewnia wyraźne zdjęcia o żywych kolorach. Format A4, 180 g | E70: ryza/50 arkuszy
B71: 19 | C71: PAPIER FOTOGRAFICZNY, A4, 200G, | D71: Szybkoschnący papier fotograficzny do wydruku profesjonalnej jakości fotografii. Gładkie, lśniące wykończenie zapewnia wyraźne zdjęcia o żywych kolorach. Format A4, 200g | E71: opakowanie/25 arkuszy
B72: 20 | C72: PAPIER A4 160G, BIAŁOŚĆ 169 CIE | D72: Papier przeznaczony do dwustronnych wydruków laserowych i atramentowych. Zapobiega przesiąkaniu druku. Białość: 169 wg skali białości CIE 160 g/m². Format A4 | E72: ryza/250 arkuszy
B73: 21 | C73: OKŁADKI DO DYPLOMÓW GRANAT, ROZMIAR 220 X 310 MM | D73: Okładki do certyfikatów, dyplomów, listów gratulacyjnych. Twarda oprawa o fakturze skóry. Posiadają ozdobny złoty sznureczek. Rozmiar okładki: 220 x 310 mm. Kolor granatowy | E73: opakowanie/10 sztuk
B74: 22 | C74: PAPIER INTENSYWNY NIEBIESKI A4, 80 g | D74: Papier uniwersalny 80 g/m2, Przeznaczony do kopiarek, drukarek laserowych i atramentowych. Kolor intensywny niebieski. Format A4 | E74: ryza/500 arkuszy
B75: 23 | C75: PAPIER INTENSYWNY ZIELONY A4, 80 g | D75: Papier uniwersalny 80 g/m2, Przeznaczony do kopiarek, drukarek laserowych i atramentowych. Kolor intensywny zielony. Format A4 | E75: ryza/500 arkuszy
B76: 24 | C76: PAPIER INTENSYWNY ŻÓŁTY, A4, 80 g | D76: Papier uniwersalny 80 g/m2, Przeznaczony do kopiarek, drukarek laserowych i atramentowych. Kolor intensywny żółty. Format A4 | E76: ryza/500 arkuszy
B77: 25 | C77: PAPIER INTENSYWNY CZERWONY A4, 80g | D77: Papier uniwersalny 80 g/m2, Przeznaczony do kopiarek, drukarek laserowych i atramentowych. Kolor intensywny czerwony. Format A4 | E77: ryza/500 arkuszy
B78: 26 | C78: PAPIER MIX KOLORÓW A4, 80 g | D78: Papier uniwersalny 80 g/m2, Przeznaczony do kopiarek, drukarek laserowych i atramentowych. Mix kolorów. Format A4 | E78: ryza/500 arkuszy
B79: 27 | C79: PAPIER A4 100G, BIAŁOŚĆ 168 CIE | D79: Papier uniwersalny 100 g/m2 klasy A, Przeznaczony do kopiarek, drukarek laserowych i atramentowych oraz do wydruków kolorowych, Białość: 168 wg skali białości CIE. Format A4 | E79: ryza/ 250 arkuszy
B80: 28 | C80: PAPIER DO DRUKAREK WIELKOFORMATOWYCH, ROLKA A1 594/175, 80 g, gilza 76 | D80: Papier standard, biały. Przeznaczony do wydruków monochromatycznych . Gramatura 80 g/m². Szerokość 594 mm. Długość 175 m. Średnica gilzy: 76 mm. Format A1 rolka | E80: rolka
B81: 29 | C81: Papier ozdobny – biały 250 g/m3 20 arkuszy | D81: papier wizytówkowy/ozdobny - np.. R20 TOP STYLE TRAD PAPIER A4 250G BIAŁY lub podobny | E81: opakowanie 20 arkuszy
B82: 30 | C82: Papier ozdobny - - kość słoniowa 250 g/m3 20 arkuszy | D82: papier wizytówkowy/ozdobny np..R20 TOP STYLE TRAD PAP A4 250G KOŚĆ SŁONIOWA lub podobny | E82: opakowanie 20 arkuszy
C88: miejscowość i data | D88: Pieczęć imienna i podpis przedstawiciela(i) Wykonawcy

Sheet zadanie 1-4 (hidden)
A1: 1 | B1: PAPIER A4 80G, BIAŁOŚĆ 166 CIE | C1: Papier uniwersalny 80 g/m2 klasy A, Przeznaczony do kopiarek, drukarek laserowych i atramentowych oraz do wydruków kolorowych, Białość: 166 wg skali białości CIE. Format A4 | D1: karton/5 ryz po 500 arkuszy
A2: 2 | B2: PAPIER A4 80G, BIAŁOŚĆ 146 CIE | C2: Papier uniwersalny 80 g/m² klasy C+, Przeznaczony do drukarek laserowych,kopiarek oraz faksów. Białość: 146 wg skali białości CIE. Format A4 | D2: karton/5 ryz po 500 arkuszy
A3: 3 | B3: PAPIER UNIWERSALNY A5 80G BIAŁY, BIAŁOŚĆ 146 CIE | C3: Papier uniwersalny 80 g/m² klasy C+. Przeznaczony do drukarek laserowych, kopiarek oraz faksów. Białość: 146 wg skali białości CIE. Format A5 | D3: ryza/500 arkuszy
A4: 4 | B4: PAPIER A3 80G, BIAŁOŚĆ 146 CIE | C4: Papier uniwersalny 80 g/m² klasy C+. Przeznaczony do drukarek laserowych, kopiarek oraz faksów. Białość: 146 wg skali białości CIE. Format A3 | D4: ryza/500 arkuszy
A5: 5 | B5: PAPIER SATYNOWY A4 160G BIAŁY, BIAŁOŚC 168 CIE | C5: Satynowany,biały papier przeznaczony do pełnokolorowych wydruków, nadaje się do maszyn cyfrowych,prezentacji, broszur, raportów oraz materiałów informacyjnych. Białość: 168 wg skali białości CIE. Gramatura 160 g//m². Format A4 | D5: ryza/250 arkuszy
A6: 6 | B6: PAPIER DO DRUKAREK IGŁOWYCH 240MM 1+1 O/K | C6: Papier do drukarek igłowych, wielowarstwowy o gramaturze 53-57 g/m², wytwarzany z papieru samokopiującego, Liczba warstw 1+1. Biały oryginał i różowa kopia, posiada nadruk oryginał/kopia. Format: długość 12''= 305 mm, szerokość 240 mm | D6: karton/900 składek
A7: 7 | B7: PAPIER DO DRUKAREK IGŁOWYCH 240MM 1+2 O/K | C7: Papier do drukarek igłowych, wielowarstwowy o gramaturze 53-57 g/m²,Liczba warstw 1+2. Biały oryginał, żółta i różowa kopia, posiada nadruk oryginał/kopia. Format: długość 12''= 305 mm, szerokość 240 mm | D7: karton/600 składek
A8: 8 | B8: PAPIER DO DRUKAREK IGŁOWYCH 240MM 1+3 O/K | C8: Papier do drukarek igłowych, wielowarstwowy o gramaturze 53-57 g/m², wytwarzany z papieru samokopiującego.Liczba warstw 1+3. Biały oryginał, żółta, zielona i różowa kopia, posiada nadruk oryginał/kopia. Format: długość 12''= 305 mm, szerokość 240 mm | D8: karton/450 składek
A9: 9 | B9: PAPIER DO DRUKAREK IGŁOWYCH 240MM 1+4 | C9: Papier do drukarek igłowych, wielowarstwowy o gramaturze 53-57 g/m², wytwarzany z papieru samokopiującego.Kolory kopii:1+4: żółta, zielona, żółta, różowa. Długość: 12'' = 305mm; Szerokość: 240(mm). Liczba warstw 1+4 | D9: karton/350 składek
A10: 10 | B10: PAPIER DO PLOTERÓW 297MMX50M 90G | C10: Uniwersalny papier do ploterów atramentowych. Biały, niepowlekany. Przeznaczony do wydruków monochromatycznych i kolorowych. Długość: 50 m. Średnica tulejki: 50 mm | D10: opakowanie/ 2 rolki
A11: 11 | B11: PAPIER DO PLOTERÓW 420MMX50M 80G | C11: Uniwersalny papier do ploterów atramentowych. Biały, niepowlekany. Przeznaczony do wydruków monochromatycznych i kolorowych. Gramatura 80 g/m². Szerokość 420 mm. Długość 50 m. Średnica gilzy: 50 mm | D11: opakowanie/ 2 rolki
A12: 12 | B12: PAPIER DO PLOTERÓW 594MMX50M 80G | C12: Uniwersalny papier do ploterów atramentowych. Biały, niepowlekany. Przeznaczony do wydruków monochromatycznych i kolorowych. Gramatura 80 g/m². Szerokość 594 mm. Długość 50 m. Średnica gilzy: 50 mm | D12: 1 rolka
A13: 13 | B13: PAPIER DO PLOTERÓW 610MMX50M 80G | C13: Uniwersalny papier do ploterów atramentowych. Biały, niepowlekany. Przeznaczony do wydruków monochromatycznych i kolorowych. Gramatura 80 g/m². Szerokość 610 mm. Długość 50 m.Średnica gilzy: 50 mm | D13: 1 rolka
A14: 14 | B14: PAPIER DO PLOTERÓW 841MMX50M 80G | C14: Uniwersalny papier do ploterów atramentowych. Biały, niepowlekany. Przeznaczony do wydruków monochromatycznych i kolorowych. Gramatura 80 g/m². Szerokość 841 mm. Długość 50 m. Średnica gilzy: 50 mm | D14: 1 rolka
A15: 15 | B15: PAPIER DO PLOTERÓW 914MMX50M 80G | C15: Uniwersalny papier do ploterów atramentowych. Biały, niepowlekany. Przeznaczony do wydruków monochromatycznych i kolorowych. Gramatura 80 g/m². Szerokość 914 mm. Długość 50 m. Średnica gilzy: 50 mm | D15: 1 rolka
A16: 16 | B16: ROLKA PAPIEROWA 76MMX25M | C16: Rolka papierowa (offsetowa) Gwarancja: 5 lat na zdolność kopiowania papieru i 25 lat na trwałość kopii. Wymiary: 76 mm x dl. 25m | D16: opakowanie/10 sztuk
A17: 17 | B17: PELIKAN KALKA OŁÓWKOWA NIEBIESKA A4 | C17: Kalka przebitkowa, maszynowa i do pisania odręcznego. Samoregenerująca się. Format A4. Kolor niebieski | D17: opakowanie/10 arkuszy
A18: 18 | B18: PAPIER FOTOGRAFICZNY, A4, 180 g | C18: Szybkoschnący papier fotograficzny do wydruku profesjonalnej jakości fotografii. Gładkie, lśniące wykończenie zapewnia wyraźne zdjęcia o żywych kolorach. Format A4, 180 g | D18: ryza/50 arkuszy
A19: 19 | B19: PAPIER FOTOGRAFICZNY, A4, 200G, | C19: Szybkoschnący papier fotograficzny do wydruku profesjonalnej jakości fotografii. Gładkie, lśniące wykończenie zapewnia wyraźne zdjęcia o żywych kolorach. Format A4, 200g | D19: opakowanie/25 arkuszy
A20: 20 | B20: PAPIER A4 160G, BIAŁOŚĆ 169 CIE | C20: Papier przeznaczony do dwustronnych wydruków laserowych i atramentowych. Zapobiega przesiąkaniu druku. Białość: 169 wg skali białości CIE 160 g/m². Format A4 | D20: ryza/250 arkuszy
A21: 21 | B21: OKŁADKI DO DYPLOMÓW GRANAT, ROZMIAR 220 X 310 MM | C21: Okładki do certyfikatów, dyplomów, listów gratulacyjnych. Twarda oprawa o fakturze skóry. Posiadają ozdobny złoty sznureczek. Rozmiar okładki: 220 x 310 mm. Kolor granatowy | D21: opakowanie/10 sztuk
A22: 22 | B22: PAPIER INTENSYWNY NIEBIESKI A4, 80 g | C22: Papier uniwersalny 80 g/m2, Przeznaczony do kopiarek, drukarek laserowych i atramentowych. Kolor intensywny niebieski. Format A4 | D22: ryza/500 arkuszy
A23: 23 | B23: PAPIER INTENSYWNY ZIELONY A4, 80 g | C23: Papier uniwersalny 80 g/m2, Przeznaczony do kopiarek, drukarek laserowych i atramentowych. Kolor intensywny zielony. Format A4 | D23: ryza/500 arkuszy
A24: 24 | B24: PAPIER INTENSYWNY ŻÓŁTY, A4, 80 g | C24: Papier uniwersalny 80 g/m2, Przeznaczony do kopiarek, drukarek laserowych i atramentowych. Kolor intensywny żółty. Format A4 | D24: ryza/500 arkuszy
A25: 25 | B25: PAPIER INTENSYWNY CZERWONY A4, 80g | C25: Papier uniwersalny 80 g/m2, Przeznaczony do kopiarek, drukarek laserowych i atramentowych. Kolor intensywny czerwony. Format A4 | D25: ryza/500 arkuszy
A26: 26 | B26: PAPIER MIX KOLORÓW A4, 80 g | C26: Papier uniwersalny 80 g/m2, Przeznaczony do kopiarek, drukarek laserowych i atramentowych. Mix kolorów. Format A4 | D26: ryza/500 arkuszy
A27: 27 | B27: PAPIER A4 100G, BIAŁOŚĆ 168 CIE | C27: Papier uniwersalny 100 g/m2 klasy A, Przeznaczony do kopiarek, drukarek laserowych i atramentowych oraz do wydruków kolorowych, Białość: 168 wg skali białości CIE. Format A4 | D27: ryza/ 250 arkuszy
A28: 28 | B28: PAPIER DO DRUKAREK WIELKOFORMATOWYCH, ROLKA A1 594/175, 80 g, gilza 76 | C28: Papier standard, biały. Przeznaczony do wydruków monochromatycznych . Gramatura 80 g/m². Szerokość 594 mm. Długość 175 m. Średnica gilzy: 76 mm. Format A1 rolka | D28: rolka
A29: 29 | B29: Papier ozdobny – biały 250 g/m3 20 arkuszy | C29: papier wizytówkowy/ozdobny - np.. R20 TOP STYLE TRAD PAPIER A4 250G BIAŁY lub podobny | D29: opakowanie 20 arkuszy
A30: 30 | B30: Papier ozdobny - - kość słoniowa 250 g/m3 20 arkuszy | C30: papier wizytówkowy/ozdobny np..R20 TOP STYLE TRAD PAP A4 250G KOŚĆ SŁONIOWA lub podobny | D30: opakowanie 20 arkuszy
B35: miejscowość i data | C35: Pieczęć imienna i podpis przedstawiciela(i) Wykonawcy

Sheet Zadanie55 (hidden)
A1: 1 | B1: PAPIER A4 80G, BIAŁOŚĆ 166 CIE | C1: Papier uniwersalny 80 g/m2 klasy A, Przeznaczony do kopiarek, drukarek laserowych i atramentowych oraz do wydruków kolorowych, Białość: 166 wg skali białości CIE. Format A4 | D1: karton/5 ryz po 500 arkuszy
A2: 2 | B2: PAPIER A4 80G, BIAŁOŚĆ 146 CIE | C2: Papier uniwersalny 80 g/m² klasy C+, Przeznaczony do drukarek laserowych,kopiarek oraz faksów. Białość: 146 wg skali białości CIE. Format A4 | D2: karton/5 ryz po 500 arkuszy
A3: 3 | B3: PAPIER UNIWERSALNY A5 80G BIAŁY, BIAŁOŚĆ 146 CIE | C3: Papier uniwersalny 80 g/m² klasy C+. Przeznaczony do drukarek laserowych, kopiarek oraz faksów. Białość: 146 wg skali białości CIE. Format A5 | D3: ryza/500 arkuszy
A4: 4 | B4: PAPIER A3 80G, BIAŁOŚĆ 146 CIE | C4: Papier uniwersalny 80 g/m² klasy C+. Przeznaczony do drukarek laserowych, kopiarek oraz faksów. Białość: 146 wg skali białości CIE. Format A3 | D4: ryza/500 arkuszy
A5: 5 | B5: PAPIER SATYNOWY A4 160G BIAŁY, BIAŁOŚC 168 CIE | C5: Satynowany,biały papier przeznaczony do pełnokolorowych wydruków, nadaje się do maszyn cyfrowych,prezentacji, broszur, raportów oraz materiałów informacyjnych. Białość: 168 wg skali białości CIE. Gramatura 160 g//m². Format A4 | D5: ryza/250 arkuszy
A6: 6 | B6: PAPIER DO PLOTERÓW 914MMX50M 80G | C6: Uniwersalny papier do ploterów atramentowych. Biały, niepowlekany. Przeznaczony do wydruków monochromatycznych i kolorowych. Gramatura 80 g/m². Szerokość 914 mm. Długość 50 m. Średnica gilzy: 50 mm | D6: 1 rolka
A7: 7 | B7: PELIKAN KALKA OŁÓWKOWA NIEBIESKA A4 | C7: Kalka przebitkowa, maszynowa i do pisania odręcznego. Samoregenerująca się. Format A4. Kolor niebieski | D7: opakowanie/10 arkuszy
A8: 8 | B8: PAPIER A4 160G, BIAŁOŚĆ 169 CIE | C8: Papier przeznaczony do dwustronnych wydruków laserowych i atramentowych. Zapobiega przesiąkaniu druku. Białość: 169 wg skali białości CIE 160 g/m². Format A4 | D8: ryza/250 arkuszy
A9: 9 | B9: PAPIER MIX KOLORÓW A4, 80 g | C9: Papier uniwersalny 80 g/m2, Przeznaczony do kopiarek, drukarek laserowych i atramentowych. Mix kolorów. Format A4 | D9: ryza/500 arkuszy
A10: 10 | B10: PAPIER DO DRUKAREK WIELKOFORMATOWYCH, ROLKA A1 594/175, 80 g, gilza 76 | C10: Papier standard, biały. Przeznaczony do wydruków monochromatycznych . Gramatura 80 g/m². Szerokość 594 mm. Długość 175 m. Średnica gilzy: 76 mm. Format A1 rolka | D10: rolka
A11: 11 | B11: Papier ozdobny – biały 250 g/m3 20 arkuszy | C11: papier wizytówkowy/ozdobny - np.. R20 TOP STYLE TRAD PAPIER A4 250G BIAŁY lub podobny | D11: opakowanie 20 arkuszy
A12: 12 | B12: Papier ozdobny - - kość słoniowa 250 g/m3 20 arkuszy | C12: papier wizytówkowy/ozdobny np..R20 TOP STYLE TRAD PAP A4 250G KOŚĆ SŁONIOWA lub podobny | D12: opakowanie 20 arkuszy

Sheet Zadanie66 (hidden)
A1: 1 | B1: PAPIER A4 80G, BIAŁOŚĆ 166 CIE | C1: Papier uniwersalny 80 g/m2 klasy A, Przeznaczony do kopiarek, drukarek laserowych i atramentowych oraz do wydruków kolorowych, Białość: 166 wg skali białości CIE. Format A4 | D1: karton/5 ryz po 500 arkuszy
A2: 2 | B2: PAPIER A4 80G, BIAŁOŚĆ 146 CIE | C2: Papier uniwersalny 80 g/m² klasy C+, Przeznaczony do drukarek laserowych,kopiarek oraz faksów. Białość: 146 wg skali białości CIE. Format A4 | D2: karton/5 ryz po 500 arkuszy
A3: 3 | B3: PAPIER UNIWERSALNY A5 80G BIAŁY, BIAŁOŚĆ 146 CIE | C3: Papier uniwersalny 80 g/m² klasy C+. Przeznaczony do drukarek laserowych, kopiarek oraz faksów. Białość: 146 wg skali białości CIE. Format A5 | D3: ryza/500 arkuszy
A4: 4 | B4: PAPIER A3 80G, BIAŁOŚĆ 146 CIE | C4: Papier uniwersalny 80 g/m² klasy C+. Przeznaczony do drukarek laserowych, kopiarek oraz faksów. Białość: 146 wg skali białości CIE. Format A3 | D4: ryza/500 arkuszy
A5: 5 | B5: PAPIER SATYNOWY A4 160G BIAŁY, BIAŁOŚC 168 CIE | C5: Satynowany,biały papier przeznaczony do pełnokolorowych wydruków, nadaje się do maszyn cyfrowych,prezentacji, broszur, raportów oraz materiałów informacyjnych. Białość: 168 wg skali białości CIE. Gramatura 160 g//m². Format A4 | D5: ryza/250 arkuszy
A6: 6 | B6: PAPIER DO DRUKAREK IGŁOWYCH 240MM 1+3 O/K | C6: Papier do drukarek igłowych, wielowarstwowy o gramaturze 53-57 g/m², wytwarzany z papieru samokopiującego.Liczba warstw 1+3. Biały oryginał, żółta, zielona i różowa kopia, posiada nadruk oryginał/kopia. Format: długość 12''= 305 mm, szerokość 240 mm | D6: karton/450 składek
A7: 7 | B7: PAPIER DO DRUKAREK IGŁOWYCH 240MM 1+4 | C7: Papier do drukarek igłowych, wielowarstwowy o gramaturze 53-57 g/m², wytwarzany z papieru samokopiującego.Kolory kopii:1+4: żółta, zielona, żółta, różowa. Długość: 12'' = 305mm; Szerokość: 240(mm). Liczba warstw 1+4 | D7: karton/350 składek
A8: 8 | B8: ROLKA PAPIEROWA 76MMX25M | C8: Rolka papierowa (offsetowa) Gwarancja: 5 lat na zdolność kopiowania papieru i 25 lat na trwałość kopii. Wymiary: 76 mm x dl. 25m | D8: opakowanie/10 sztuk
A9: 9 | B9: PELIKAN KALKA OŁÓWKOWA NIEBIESKA A4 | C9: Kalka przebitkowa, maszynowa i do pisania odręcznego. Samoregenerująca się. Format A4. Kolor niebieski | D9: opakowanie/10 arkuszy
A10: 10 | B10: PAPIER FOTOGRAFICZNY, A4, 180 g | C10: Szybkoschnący papier fotograficzny do wydruku profesjonalnej jakości fotografii. Gładkie, lśniące wykończenie zapewnia wyraźne zdjęcia o żywych kolorach. Format A4, 180 g | D10: ryza/50 arkuszy
A11: 11 | B11: PAPIER FOTOGRAFICZNY, A4, 200G, | C11: Szybkoschnący papier fotograficzny do wydruku profesjonalnej jakości fotografii. Gładkie, lśniące wykończenie zapewnia wyraźne zdjęcia o żywych kolorach. Format A4, 200g | D11: opakowanie/25 arkuszy
A12: 12 | B12: PAPIER A4 160G, BIAŁOŚĆ 169 CIE | C12: Papier przeznaczony do dwustronnych wydruków laserowych i atramentowych. Zapobiega przesiąkaniu druku. Białość: 169 wg skali białości CIE 160 g/m². Format A4 | D12: ryza/250 arkuszy
A13: 13 | B13: OKŁADKI DO DYPLOMÓW GRANAT, ROZMIAR 220 X 310 MM | C13: Okładki do certyfikatów, dyplomów, listów gratulacyjnych. Twarda oprawa o fakturze skóry. Posiadają ozdobny złoty sznureczek. Rozmiar okładki: 220 x 310 mm. Kolor granatowy | D13: opakowanie/10 sztuk
A14: 14 | B14: PAPIER INTENSYWNY NIEBIESKI A4, 80 g | C14: Papier uniwersalny 80 g/m2, Przeznaczony do kopiarek, drukarek laserowych i atramentowych. Kolor intensywny niebieski. Format A4 | D14: ryza/500 arkuszy
A15: 15 | B15: PAPIER INTENSYWNY ZIELONY A4, 80 g | C15: Papier uniwersalny 80 g/m2, Przeznaczony do kopiarek, drukarek laserowych i atramentowych. Kolor intensywny zielony. Format A4 | D15: ryza/500 arkuszy
A16: 16 | B16: PAPIER INTENSYWNY ŻÓŁTY, A4, 80 g | C16: Papier uniwersalny 80 g/m2, Przeznaczony do kopiarek, drukarek laserowych i atramentowych. Kolor intensywny żółty. Format A4 | D16: ryza/500 arkuszy
A17: 17 | B17: PAPIER INTENSYWNY CZERWONY A4, 80g | C17: Papier uniwersalny 80 g/m2, Przeznaczony do kopiarek, drukarek laserowych i atramentowych. Kolor intensywny czerwony. Format A4 | D17: ryza/500 arkuszy
A18: 18 | B18: PAPIER MIX KOLORÓW A4, 80 g | C18: Papier uniwersalny 80 g/m2, Przeznaczony do kopiarek, drukarek laserowych i atramentowych. Mix kolorów. Format A4 | D18: ryza/500 arkuszy
A19: 19 | B19: PAPIER A4 100G, BIAŁOŚĆ 168 CIE | C19: Papier uniwersalny 100 g/m2 klasy A, Przeznaczony do kopiarek, drukarek laserowych i atramentowych oraz do wydruków kolorowych, Białość: 168 wg skali białości CIE. Format A4 | D19: ryza/ 250 arkuszy
A20: 20 | B20: Papier ozdobny – biały 250 g/m3 20 arkuszy | C20: papier wizytówkowy/ozdobny - np.. R20 TOP STYLE TRAD PAPIER A4 250G BIAŁY lub podobny | D20: opakowanie 20 arkuszy
A21: 21 | B21: Papier ozdobny - - kość słoniowa 250 g/m3 20 arkuszy | C21: papier wizytówkowy/ozdobny np..R20 TOP STYLE TRAD PAP A4 250G KOŚĆ SŁONIOWA lub podobny | D21: opakowanie 20 arkuszy

Sheet Zadanie77 (hidden)
A1: 1 | B1: PAPIER A4 80G, BIAŁOŚĆ 166 CIE | C1: Papier uniwersalny 80 g/m2 klasy A, Przeznaczony do kopiarek, drukarek laserowych i atramentowych oraz do wydruków kolorowych, Białość: 166 wg skali białości CIE. Format A4 | D1: karton/5 ryz po 500 arkuszy
A2: 2 | B2: PAPIER A4 80G, BIAŁOŚĆ 146 CIE | C2: Papier uniwersalny 80 g/m² klasy C+, Przeznaczony do drukarek laserowych,kopiarek oraz faksów. Białość: 146 wg skali białości CIE. Format A4 | D2: karton/5 ryz po 500 arkuszy
A3: 3 | B3: PAPIER UNIWERSALNY A5 80G BIAŁY, BIAŁOŚĆ 146 CIE | C3: Papier uniwersalny 80 g/m² klasy C+. Przeznaczony do drukarek laserowych, kopiarek oraz faksów. Białość: 146 wg skali białości CIE. Format A5 | D3: ryza/500 arkuszy
A4: 4 | B4: PAPIER A3 80G, BIAŁOŚĆ 146 CIE | C4: Papier uniwersalny 80 g/m² klasy C+. Przeznaczony do drukarek laserowych, kopiarek oraz faksów. Białość: 146 wg skali białości CIE. Format A3 | D4: ryza/500 arkuszy
A5: 5 | B5: PAPIER SATYNOWY A4 160G BIAŁY, BIAŁOŚC 168 CIE | C5: Satynowany,biały papier przeznaczony do pełnokolorowych wydruków, nadaje się do maszyn cyfrowych,prezentacji, broszur, raportów oraz materiałów informacyjnych. Białość: 168 wg skali białości CIE. Gramatura 160 g//m². Format A4 | D5: ryza/250 arkuszy
A6: 6 | B6: PAPIER A4 160G, BIAŁOŚĆ 169 CIE | C6: Papier przeznaczony do dwustronnych wydruków laserowych i atramentowych. Zapobiega przesiąkaniu druku. Białość: 169 wg skali białości CIE 160 g/m². Format A4 | D6: ryza/250 arkuszy
A7: 7 | B7: PAPIER INTENSYWNY NIEBIESKI A4, 80 g | C7: Papier uniwersalny 80 g/m2, Przeznaczony do kopiarek, drukarek laserowych i atramentowych. Kolor intensywny niebieski. Format A4 | D7: ryza/500 arkuszy
A8: 8 | B8: PAPIER INTENSYWNY ZIELONY A4, 80 g | C8: Papier uniwersalny 80 g/m2, Przeznaczony do kopiarek, drukarek laserowych i atramentowych. Kolor intensywny zielony. Format A4 | D8: ryza/500 arkuszy
A9: 9 | B9: PAPIER INTENSYWNY ŻÓŁTY, A4, 80 g | C9: Papier uniwersalny 80 g/m2, Przeznaczony do kopiarek, drukarek laserowych i atramentowych. Kolor intensywny żółty. Format A4 | D9: ryza/500 arkuszy
A10: 10 | B10: PAPIER INTENSYWNY CZERWONY A4, 80g | C10: Papier uniwersalny 80 g/m2, Przeznaczony do kopiarek, drukarek laserowych i atramentowych. Kolor intensywny czerwony. Format A4 | D10: ryza/500 arkuszy
A11: 11 | B11: PAPIER MIX KOLORÓW A4, 80 g | C11: Papier uniwersalny 80 g/m2, Przeznaczony do kopiarek, drukarek laserowych i atramentowych. Mix kolorów. Format A4 | D11: ryza/500 arkuszy
A12: 12 | B12: PAPIER A4 100G, BIAŁOŚĆ 168 CIE | C12: Papier uniwersalny 100 g/m2 klasy A, Przeznaczony do kopiarek, drukarek laserowych i atramentowych oraz do wydruków kolorowych, Białość: 168 wg skali białości CIE. Format A4 | D12: ryza/ 250 arkuszy
A13: 13 | B13: Papier ozdobny – biały 250 g/m3 20 arkuszy | C13: papier wizytówkowy/ozdobny - np.. R20 TOP STYLE TRAD PAPIER A4 250G BIAŁY lub podobny | D13: opakowanie 20 arkuszy

Sheet Załącznik 2-F.O. dla Zadania 1
B1: Oznaczenie sprawy: 1400/DW00/ZU/KZ/2021/0000061751
B3: ZAŁĄCZNIK NR 2 - FORMULARZ OFERTY DLA ZADANIA 1 - Dostawa papieru do wydruku – Poznań + woj. Wielkopolskie.
C6: (pieczęć wykonawcy)
B8: Ja, niżej podpisany (My niżej podpisani):
B11: działając w imieniu i na rzecz:
B14: Składam(y) ofertę na wykonanie zamówienia, którego przedmiotem jest:
B15: Dostawa papieru do wydruku dla spółek GK ENEA
B17: Zadanie 1: Dostawa papieru do wydruku – Poznań + woj. Wielkopolskie
B19: ŁĄCZNA CENA NETTO OFERTY DLA ZADANIA 1: | D19: =SUM(H22:H512) -> 0
B21: LP | C21: Nazwa produktu | D21: Opis szczegółowy | E21: Jednostka | F21: cena jednostkowa netto | G21: Ilość | H21: Wartość | I21: ENEA Centrum Sp. z o.o. - Szacowana ilość | J21: ŁĄCZNA CENA NETTO DLA ENEA Centrum Sp. z o.o. | K21: ENEA S.A. - Szacowana ilość | L21: ŁĄCZNA CENA NETTO DLA ENEA S.A. | M21: ENEA Operator Sp. z o.o. - Szacowana ilość | N21: ŁĄCZNA CENA NETTO DLA ENEA Operator Sp. z o.o. | O21: ENEA Trading Sp. z o.o. - Szacowana ilość | P21: ŁĄCZNA CENA NETTO DLA ENEA Trading Sp. z o.o. | Q21: ENEA Serwis Sp. z o.o. - Szacowana ilość | R21: ŁĄCZNA CENA NETTO DLA ENEA Serwis Sp. z o.o. | S21: ENEA Pomiary Sp. z o.o. - Szacowana ilość | T21: ŁĄCZNA CENA NETTO DLA ENEA Pomiary Sp. z o.o. | U21: ENEA Logistyka Sp. z o.o. - Szacowana ilość | V21: ŁĄCZNA CENA NETTO DLA ENEA Logistyka Sp. z o.o. | W21: ENEA Oświetlenie Sp. z o.o. - Szacowana ilość | X21: ŁĄCZNA CENA NETTO DLA ENEA Oświetlenie Sp. z o.o.
B22: 1 | C22: PAPIER A4 80G, BIAŁOŚĆ 166 CIE | D22: Papier uniwersalny 80 g/m2 klasy A, Przeznaczony do kopiarek, drukarek laserowych i atramentowych oraz do wydruków kolorowych, Białość: 166 wg skali białości CIE. Format A4 | E22: karton/5 ryz po 500 arkuszy | F22: =IF('Załącznik 1 - Formularz Oferty'!$V$55=TRUE,(VLOOKUP(C22,'Załącznik 1 - Formularz Oferty'!$C$53:$G$83,5,0)),0) -> 0 | G22: =I22+K22+M22+O22+Q22+S22+U22+W22 -> 1891 | H22: =G22*F22 -> 0 | I22: 1330 | J22: =I22*F22 -> 0 | M22: 524 | N22: =M22*F22 -> 0 | O22: 10 | P22: =O22*F22 -> 0 | Q22: 6 | R22: =Q22*F22 -> 0 | S22: 10 | T22: =S22*F22 -> 0 | U22: 1 | V22: =U22*F22 -> 0 | W22: 10 | X22: =W22*F22 -> 0
B23: 2 | C23: PAPIER A4 80G, BIAŁOŚĆ 146 CIE | D23: Papier uniwersalny 80 g/m² klasy C+, Przeznaczony do drukarek laserowych,kopiarek oraz faksów. Białość: 146 wg skali białości CIE. Format A4 | E23: karton/5 ryz po 500 arkuszy | F23: =IF('Załącznik 1 - Formularz Oferty'!$V$55=TRUE,(VLOOKUP(C23,'Załącznik 1 - Formularz Oferty'!$C$53:$G$83,5,0)),0) -> 0 | G23: =I23+K23+M23+O23+Q23+S23+U23+W23 -> 2231 | H23: =G23*F23 -> 0 | I23: 750 | J23: =I23*F23 -> 0 | K23: 10 | L23: =K23*F23 -> 0 | M23: 1173 | N23: =M23*F23 -> 0 | O23: 20 | P23: =O23*F23 -> 0 | Q23: 6 | R23: =Q23*F23 -> 0 | S23: 72 | T23: =S23*F23 -> 0 | U23: =6+7+6+9+11+2+1+2+5+4+32+15 -> 100 | V23: =U23*F23 -> 0 | W23: 100 | X23: =W23*F23 -> 0
B24: 3 | C24: PAPIER UNIWERSALNY A5 80G BIAŁY, BIAŁOŚĆ 146 CIE | D24: Papier uniwersalny 80 g/m² klasy C+. Przeznaczony do drukarek laserowych, kopiarek oraz faksów. Białość: 146 wg skali białości CIE. Format A5 | E24: ryza/500 arkuszy | F24: =IF('Załącznik 1 - Formularz Oferty'!$V$55=TRUE,(VLOOKUP(C24,'Załącznik 1 - Formularz Oferty'!$C$53:$G$83,5,0)),0) -> 0 | G24: 60 | H24: 0 | I24: 1 | J24: 0 | M24: 31 | N24: 0 | O24: 20 | P24: 0 | Q24: 6 | R24: 0 | S24: 2 | T24: 0
B25: 4 | C25: PAPIER A3 80G, BIAŁOŚĆ 146 CIE | D25: Papier uniwersalny 80 g/m² klasy C+. Przeznaczony do drukarek laserowych, kopiarek oraz faksów. Białość: 146 wg skali białości CIE. Format A3 | E25: ryza/500 arkuszy | F25: =IF('Załącznik 1 - Formularz Oferty'!$V$55=TRUE,(VLOOKUP(C25,'Załącznik 1 - Formularz Oferty'!$C$53:$G$83,5,0)),0) -> 0 | G25: 291 | H25: 0 | I25: 56 | J25: 0 | K25: 2 | L25: =K25*F25 -> 0 | M25: 203 | N25: 0 | Q25: 6 | R25: 0 | S25: 5 | T25: 0 | U25: 4 | V25: =U25*F25 -> 0 | W25: 15 | X25: =W25*F25 -> 0
B26: 5 | C26: PAPIER SATYNOWY A4 160G BIAŁY, BIAŁOŚC 168 CIE | D26: Satynowany,biały papier przeznaczony do pełnokolorowych wydruków, nadaje się do maszyn cyfrowych,prezentacji, broszur, raportów oraz materiałów informacyjnych. Białość: 168 wg skali białości CIE. Gramatura 160 g//m². Format A4 | E26: ryza/250 arkuszy | F26: =IF('Załącznik 1 - Formularz Oferty'!$V$55=TRUE,(VLOOKUP(C26,'Załącznik 1 - Formularz Oferty'!$C$53:$G$83,5,0)),0) -> 0 | G26: 29 | H26: 0 | I26: 1 | J26: 0 | M26: 12 | N26: 0 | O26: 10 | P26: =O26*F26 -> 0 | Q26: 6 | R26: 0
B27: 6 | C27: PAPIER DO DRUKAREK IGŁOWYCH 240MM 1+1 O/K | D27: Papier do drukarek igłowych, wielowarstwowy o gramaturze 53-57 g/m², wytwarzany z papieru samokopiującego, Liczba warstw 1+1. Biały oryginał i różowa kopia, posiada nadruk oryginał/kopia. Format: długość 12''= 305 mm, szerokość 240 mm | E27: karton/900 składek | F27: =IF('Załącznik 1 - Formularz Oferty'!$V$55=TRUE,(VLOOKUP(C27,'Załącznik 1 - Formularz Oferty'!$C$53:$G$83,5,0)),0) -> 0 | G27: 21 | H27: 0 | N27: 0 | Q27: 6 | R27: 0 | U27: 15 | V27: =U27*F27 -> 0
B28: 7 | C28: PAPIER DO DRUKAREK IGŁOWYCH 240MM 1+2 O/K | D28: Papier do drukarek igłowych, wielowarstwowy o gramaturze 53-57 g/m²,Liczba warstw 1+2. Biały oryginał, żółta i różowa kopia, posiada nadruk oryginał/kopia. Format: długość 12''= 305 mm, szerokość 240 mm | E28: karton/600 składek | F28: =IF('Załącznik 1 - Formularz Oferty'!$V$55=TRUE,(VLOOKUP(C28,'Załącznik 1 - Formularz Oferty'!$C$53:$G$83,5,0)),0) -> 0 | G28: 85 | H28: 0 | N28: 0 | Q28: 5 | R28: 0 | U28: 80 | V28: 0
B29: 8 | C29: PAPIER DO DRUKAREK IGŁOWYCH 240MM 1+3 O/K | D29: Papier do drukarek igłowych, wielowarstwowy o gramaturze 53-57 g/m², wytwarzany z papieru samokopiującego.Liczba warstw 1+3. Biały oryginał, żółta, zielona i różowa kopia, posiada nadruk oryginał/kopia. Format: długość 12''= 305 mm, szerokość 240 mm | E29: karton/450 składek | F29: =IF('Załącznik 1 - Formularz Oferty'!$V$55=TRUE,(VLOOKUP(C29,'Załącznik 1 - Formularz Oferty'!$C$53:$G$83,5,0)),0) -> 0 | G29: 6 | H29: 0 | N29: 0 | Q29: 6 | R29: 0
B30: 9 | C30: PAPIER DO DRUKAREK IGŁOWYCH 240MM 1+4 | D30: Papier do drukarek igłowych, wielowarstwowy o gramaturze 53-57 g/m², wytwarzany z papieru samokopiującego.Kolory kopii:1+4: żółta, zielona, żółta, różowa. Długość: 12'' = 305mm; Szerokość: 240(mm). Liczba warstw 1+4 | E30: karton/350 składek | F30: =IF('Załącznik 1 - Formularz Oferty'!$V$55=TRUE,(VLOOKUP(C30,'Załącznik 1 - Formularz Oferty'!$C$53:$G$83,5,0)),0) -> 0 | G30: 6 | H30: 0 | N30: 0 | Q30: 6 | R30: 0
B31: 10 | C31: PAPIER DO PLOTERÓW 297MMX50M 90G | D31: Uniwersalny papier do ploterów atramentowych. Biały, niepowlekany. Przeznaczony do wydruków monochromatycznych i kolorowych. Długość: 50 m. Średnica tulejki: 50 mm | E31: opakowanie/ 2 rolki | F31: =IF('Załącznik 1 - Formularz Oferty'!$V$55=TRUE,(VLOOKUP(C31,'Załącznik 1 - Formularz Oferty'!$C$53:$G$83,5,0)),0) -> 0 | G31: 22 | H31: 0 | M31: 1 | N31: 0 | Q31: 6 | R31: 0 | W31: 15 | X31: =W31*F31 -> 0
B32: 11 | C32: PAPIER DO PLOTERÓW 420MMX50M 80G | D32: Uniwersalny papier do ploterów atramentowych. Biały, niepowlekany. Przeznaczony do wydruków monochromatycznych i kolorowych. Gramatura 80 g/m². Szerokość 420 mm. Długość 50 m. Średnica gilzy: 50 mm | E32: opakowanie/ 2 rolki | F32: =IF('Załącznik 1 - Formularz Oferty'!$V$55=TRUE,(VLOOKUP(C32,'Załącznik 1 - Formularz Oferty'!$C$53:$G$83,5,0)),0) -> 0 | G32: 24 | H32: 0 | M32: 3 | N32: 0 | Q32: 6 | R32: 0 | W32: 15 | X32: 0
B33: 12 | C33: PAPIER DO PLOTERÓW 594MMX50M 80G | D33: Uniwersalny papier do ploterów atramentowych. Biały, niepowlekany. Przeznaczony do wydruków monochromatycznych i kolorowych. Gramatura 80 g/m². Szerokość 594 mm. Długość 50 m. Średnica gilzy: 50 mm | E33: 1 rolka | F33: =IF('Załącznik 1 - Formularz Oferty'!$V$55=TRUE,(VLOOKUP(C33,'Załącznik 1 - Formularz Oferty'!$C$53:$G$83,5,0)),0) -> 0 | G33: 22 | H33: 0 | M33: 1 | N33: 0 | Q33: 6 | R33: 0 | W33: 15 | X33: 0
B34: 13 | C34: PAPIER DO PLOTERÓW 610MMX50M 80G | D34: Uniwersalny papier do ploterów atramentowych. Biały, niepowlekany. Przeznaczony do wydruków monochromatycznych i kolorowych. Gramatura 80 g/m². Szerokość 610 mm. Długość 50 m.Średnica gilzy: 50 mm | E34: 1 rolka | F34: =IF('Załącznik 1 - Formularz Oferty'!$V$55=TRUE,(VLOOKUP(C34,'Załącznik 1 - Formularz Oferty'!$C$53:$G$83,5,0)),0) -> 0 | G34: 11 | H34: 0 | M34: 1 | N34: 0 | Q34: 5 | R34: 0 | W34: 5 | X34: 0
B35: 14 | C35: PAPIER DO PLOTERÓW 841MMX50M 80G | D35: Uniwersalny papier do ploterów atramentowych. Biały, niepowlekany. Przeznaczony do wydruków monochromatycznych i kolorowych. Gramatura 80 g/m². Szerokość 841 mm. Długość 50 m. Średnica gilzy: 50 mm | E35: 1 rolka | F35: =IF('Załącznik 1 - Formularz Oferty'!$V$55=TRUE,(VLOOKUP(C35,'Załącznik 1 - Formularz Oferty'!$C$53:$G$83,5,0)),0) -> 0 | G35: 12 | H35: 0 | M35: 1 | N35: 0 | Q35: 6 | R35: 0 | W35: 5 | X35: 0
B36: 15 | C36: PAPIER DO PLOTERÓW 914MMX50M 80G | D36: Uniwersalny papier do ploterów atramentowych. Biały, niepowlekany. Przeznaczony do wydruków monochromatycznych i kolorowych. Gramatura 80 g/m². Szerokość 914 mm. Długość 50 m. Średnica gilzy: 50 mm | E36: 1 rolka | F36: =IF('Załącznik 1 - Formularz Oferty'!$V$55=TRUE,(VLOOKUP(C36,'Załącznik 1 - Formularz Oferty'!$C$53:$G$83,5,0)),0) -> 0 | G36: 13 | H36: 0 | M36: 1 | N36: 0 | Q36: 7 | R36: 0 | W36: 5 | X36: 0
B37: 16 | C37: ROLKA PAPIEROWA 76MMX25M | D37: Rolka papierowa (offsetowa) Gwarancja: 5 lat na zdolność kopiowania papieru i 25 lat na trwałość kopii. Wymiary: 76 mm x dl. 25m | E37: opakowanie/10 sztuk | F37: =IF('Załącznik 1 - Formularz Oferty'!$V$55=TRUE,(VLOOKUP(C37,'Załącznik 1 - Formularz Oferty'!$C$53:$G$83,5,0)),0) -> 0 | G37: 6 | H37: =G37*F37 -> 0 | M37: 1 | N37: 0 | Q37: 5 | R37: 0
B38: 17 | C38: PELIKAN KALKA OŁÓWKOWA NIEBIESKA A4 | D38: Kalka przebitkowa, maszynowa i do pisania odręcznego. Samoregenerująca się. Format A4. Kolor niebieski | E38: opakowanie/10 arkuszy | F38: =IF('Załącznik 1 - Formularz Oferty'!$V$55=TRUE,(VLOOKUP(C38,'Załącznik 1 - Formularz Oferty'!$C$53:$G$83,5,0)),0) -> 0 | G38: 10 | H38: 0 | M38: 1 | N38: 0 | Q38: 6 | R38: 0 | W38: 3 | X38: =W38*F38 -> 0
B39: 18 | C39: PAPIER FOTOGRAFICZNY, A4, 180 g | D39: Szybkoschnący papier fotograficzny do wydruku profesjonalnej jakości fotografii. Gładkie, lśniące wykończenie zapewnia wyraźne zdjęcia o żywych kolorach. Format A4, 180 g | E39: ryza/50 arkuszy | F39: =IF('Załącznik 1 - Formularz Oferty'!$V$55=TRUE,(VLOOKUP(C39,'Załącznik 1 - Formularz Oferty'!$C$53:$G$83,5,0)),0) -> 0 | G39: 171 | H39: 0 | I39: 1 | J39: 0 | K39: 1 | L39: =K39*F39 -> 0 | M39: 162 | N39: 0 | Q39: 5 | R39: 0 | W39: 2 | X39: 0
B40: 19 | C40: PAPIER FOTOGRAFICZNY, A4, 200G, | D40: Szybkoschnący papier fotograficzny do wydruku profesjonalnej jakości fotografii. Gładkie, lśniące wykończenie zapewnia wyraźne zdjęcia o żywych kolorach. Format A4, 200g | E40: opakowanie/25 arkuszy | F40: =IF('Załącznik 1 - Formularz Oferty'!$V$55=TRUE,(VLOOKUP(C40,'Załącznik 1 - Formularz Oferty'!$C$53:$G$83,5,0)),0) -> 0 | G40: 10 | H40: 0 | I40: 1 | J40: 0 | K40: 1 | L40: =K40*F40 -> 0 | M40: 1 | N40: 0 | Q40: 5 | R40: 0 | W40: 2 | X40: 0
B41: 20 | C41: PAPIER A4 160G, BIAŁOŚĆ 169 CIE | D41: Papier przeznaczony do dwustronnych wydruków laserowych i atramentowych. Zapobiega przesiąkaniu druku. Białość: 169 wg skali białości CIE 160 g/m². Format A4 | E41: ryza/250 arkuszy | F41: =IF('Załącznik 1 - Formularz Oferty'!$V$55=TRUE,(VLOOKUP(C41,'Załącznik 1 - Formularz Oferty'!$C$53:$G$83,5,0)),0) -> 0 | G41: 20 | H41: 0 | I41: 1 | J41: 0 | K41: 1 | L41: 0 | M41: 2 | N41: 0 | O41: 10 | P41: =O41*F41 -> 0 | Q41: 6 | R41: 0
B42: 21 | C42: OKŁADKI DO DYPLOMÓW GRANAT, ROZMIAR 220 X 310 MM | D42: Okładki do certyfikatów, dyplomów, listów gratulacyjnych. Twarda oprawa o fakturze skóry. Posiadają ozdobny złoty sznureczek. Rozmiar okładki: 220 x 310 mm. Kolor granatowy | E42: opakowanie/10 sztuk | F42: =IF('Załącznik 1 - Formularz Oferty'!$V$55=TRUE,(VLOOKUP(C42,'Załącznik 1 - Formularz Oferty'!$C$53:$G$83,5,0)),0) -> 0 | G42: 132 | H42: 0 | I42: 1 | J42: 0 | M42: 90 | N42: 0 | O42: 20 | P42: 0 | Q42: 6 | R42: 0 | S42: 5 | T42: =S42*F42 -> 0 | W42: 10 | X42: =W42*F42 -> 0
B43: 22 | C43: PAPIER INTENSYWNY NIEBIESKI A4, 80 g | D43: Papier uniwersalny 80 g/m2, Przeznaczony do kopiarek, drukarek laserowych i atramentowych. Kolor intensywny niebieski. Format A4 | E43: ryza/500 arkuszy | F43: =IF('Załącznik 1 - Formularz Oferty'!$V$55=TRUE,(VLOOKUP(C43,'Załącznik 1 - Formularz Oferty'!$C$53:$G$83,5,0)),0) -> 0 | G43: 11 | H43: 0 | I43: 1 | J43: 0 | M43: 4 | N43: 0 | Q43: 6 | R43: 0
B44: 23 | C44: PAPIER INTENSYWNY ZIELONY A4, 80 g | D44: Papier uniwersalny 80 g/m2, Przeznaczony do kopiarek, drukarek laserowych i atramentowych. Kolor intensywny zielony. Format A4 | E44: ryza/500 arkuszy | F44: =IF('Załącznik 1 - Formularz Oferty'!$V$55=TRUE,(VLOOKUP(C44,'Załącznik 1 - Formularz Oferty'!$C$53:$G$83,5,0)),0) -> 0 | G44: 8 | H44: 0 | I44: 1 | J44: 0 | M44: 1 | N44: 0 | Q44: 6 | R44: 0
B45: 24 | C45: PAPIER INTENSYWNY ŻÓŁTY, A4, 80 g | D45: Papier uniwersalny 80 g/m2, Przeznaczony do kopiarek, drukarek laserowych i atramentowych. Kolor intensywny żółty. Format A4 | E45: ryza/500 arkuszy | F45: =IF('Załącznik 1 - Formularz Oferty'!$V$55=TRUE,(VLOOKUP(C45,'Załącznik 1 - Formularz Oferty'!$C$53:$G$83,5,0)),0) -> 0 | G45: 9 | H45: 0 | I45: 1 | J45: 0 | M45: 2 | N45: 0 | Q45: 5 | R45: 0 | U45: 1 | V45: =U45*F45 -> 0
B46: 25 | C46: PAPIER INTENSYWNY CZERWONY A4, 80g | D46: Papier uniwersalny 80 g/m2, Przeznaczony do kopiarek, drukarek laserowych i atramentowych. Kolor intensywny czerwony. Format A4 | E46: ryza/500 arkuszy | F46: =IF('Załącznik 1 - Formularz Oferty'!$V$55=TRUE,(VLOOKUP(C46,'Załącznik 1 - Formularz Oferty'!$C$53:$G$83,5,0)),0) -> 0 | G46: 15 | H46: 0 | I46: 1 | J46: 0 | M46: 8 | N46: 0 | Q46: 6 | R46: 0
B47: 26 | C47: PAPIER MIX KOLORÓW A4, 80 g | D47: Papier uniwersalny 80 g/m2, Przeznaczony do kopiarek, drukarek laserowych i atramentowych. Mix kolorów. Format A4 | E47: ryza/500 arkuszy | F47: =IF('Załącznik 1 - Formularz Oferty'!$V$55=TRUE,(VLOOKUP(C47,'Załącznik 1 - Formularz Oferty'!$C$53:$G$83,5,0)),0) -> 0 | G47: 12 | H47: 0 | I47: 1 | J47: 0 | M47: 2 | N47: 0 | O47: 2 | P47: =O47*F47 -> 0 | Q47: 5 | R47: 0 | S47: 2 | T47: =S47*F47 -> 0
B48: 27 | C48: PAPIER A4 100G, BIAŁOŚĆ 168 CIE | D48: Papier uniwersalny 100 g/m2 klasy A, Przeznaczony do kopiarek, drukarek laserowych i atramentowych oraz do wydruków kolorowych, Białość: 168 wg skali białości CIE. Format A4 | E48: ryza/ 250 arkuszy | F48: =IF('Załącznik 1 - Formularz Oferty'!$V$55=TRUE,(VLOOKUP(C48,'Załącznik 1 - Formularz Oferty'!$C$53:$G$83,5,0)),0) -> 0 | G48: 16 | H48: 0 | K48: 2 | L48: =K48*F48 -> 0 | M48: 8 | N48: 0 | Q48: 6 | R48: 0
B49: 28 | C49: PAPIER DO DRUKAREK WIELKOFORMATOWYCH, ROLKA A1 594/175, 80 g, gilza 76 | D49: Papier standard, biały. Przeznaczony do wydruków monochromatycznych . Gramatura 80 g/m². Szerokość 594 mm. Długość 175 m. Średnica gilzy: 76 mm. Format A1 rolka | E49: rolka | F49: =IF('Załącznik 1 - Formularz Oferty'!$V$55=TRUE,(VLOOKUP(C49,'Załącznik 1 - Formularz Oferty'!$C$53:$G$83,5,0)),0) -> 0 | G49: 9 | H49: 0 | M49: 3 | N49: 0 | Q49: 6 | R49: 0
B50: 29 | C50: Papier ozdobny – biały 250 g/m3 20 arkuszy | D50: papier wizytówkowy/ozdobny - np.. R20 TOP STYLE TRAD PAPIER A4 250G BIAŁY lub podobny | E50: opakowanie 20 arkuszy | F50: =IF('Załącznik 1 - Formularz Oferty'!$V$55=TRUE,(VLOOKUP(C50,'Załącznik 1 - Formularz Oferty'!$C$53:$G$83,5,0)),0) -> 0 | G50: 15 | H50: 0 | I50: 1 | J50: 0 | K50: 1 | L50: =K50*F50 -> 0 | M50: 2 | N50: 0 | Q50: 7 | R50: 0 | U50: 3 | V50: =U50*F50 -> 0 | W50: 1 | X50: =W50*F50 -> 0
B51: 30 | C51: Papier ozdobny - - kość słoniowa 250 g/m3 20 arkuszy | D51: papier wizytówkowy/ozdobny np..R20 TOP STYLE TRAD PAP A4 250G KOŚĆ SŁONIOWA lub podobny | E51: opakowanie 20 arkuszy | F51: =IF('Załącznik 1 - Formularz Oferty'!$V$55=TRUE,(VLOOKUP(C51,'Załącznik 1 - Formularz Oferty'!$C$53:$G$83,5,0)),0) -> 0 | G51: 19 | H51: 0 | I51: 1 | J51: 0 | M51: 3 | N51: 0 | Q51: 7 | R51: 0 | U51: 3 | V51: 0 | W51: 5 | X51: 0
I52: ŁĄCZNA CENA NETTO DLA ENEA Centrum Sp. z o.o. | J52: =SUM(J22:J51) -> 0 | K52: ŁĄCZNA CENA NETTO DLA ENEA S.A. | L52: =SUM(L22:L51) -> 0 | M52: ŁĄCZNA CENA NETTO DLA ENEA Operator sp. z.o.o. | N52: =SUM(N22:N51) -> 0 | O52: ŁĄCZNA CENA NETTO DLA ENEA Trading Sp. z o.o. | P52: =SUM(P22:P51) -> 0 | Q52: ŁĄCZNA CENA NETTO DLA ENEA Serwis sp. z.o.o. | R52: =SUM(R22:R51) -> 0 | S52: ŁĄCZNA CENA NETTO DLA ENEA Pomiary Sp. z o.o. | T52: =SUM(T22:T51) -> 0 | U52: ŁĄCZNA CENA NETTO DLA ENEA Logistyka sp. z.o.o. | V52: =SUM(V22:V51) -> 0 | W52: ŁĄCZNA CENA NETTO DLA ENEA Oświetlenie Sp. z o.o. | X52: =SUM(X22:X51) -> 0
C56: miejscowość i data | F56: Pieczęć imienna i podpis przedstawiciela(i) Wykonawcy

Sheet Załącznik 3-F.O. dla Zadania 2
B1: Oznaczenie sprawy: 1400/DW00/ZU/KZ/2021/0000061751
B3: ZAŁĄCZNIK NR 3 - FORMULARZ OFERTY DLA ZADANIA 2 - Dostawa papieru do wydruku – Zielona Góra, Gorzów + woj. lubuskie.
C6: (pieczęć wykonawcy)
B8: Ja, niżej podpisany (My niżej podpisani):
B11: działając w imieniu i na rzecz:
B14: Składam(y) ofertę na wykonanie zamówienia, którego przedmiotem jest:
B15: Dostawa papieru do wydruku dla spółek GK ENEA
B17: Zadanie 2: Dostawa papieru do wydruku - Zielona Góra + woj. lubuskie
B19: ŁĄCZNA CENA NETTO OFERTY DLA ZADANIA 2: | D19: =SUM(H22:H51) -> 0
B21: LP | C21: Nazwa produktu | D21: Opis szczegółowy | E21: Jednostka | F21: cena jednostkowa netto | G21: Ilość | H21: Wartość | I21: ENEA Centrum Sp. z o.o. - Szacowana ilość | J21: ŁĄCZNA CENA NETTO DLA ENEA Centrum Sp. z o.o. | K21: ENEA S.A. - Szacowana ilość | L21: ŁĄCZNA CENA NETTO DLA ENEA S.A. | M21: ENEA Operator Sp. z o.o. - Szacowana ilość | N21: ŁĄCZNA CENA NETTO DLA ENEA Operator Sp. z o.o. | O21: ENEA Serwis Sp. z o.o. - Szacowana ilość | P21: ŁĄCZNA CENA NETTO DLA ENEA Serwis Sp. z o.o. | Q21: ENEA Pomiary Sp. z o.o. - Szacowana ilość | R21: ŁĄCZNA CENA NETTO DLA ENEA Pomiary Sp. z o.o. | S21: ENEA Logistyka Sp. z o.o. - Szacowana ilość | T21: ŁĄCZNA CENA NETTO DLA ENEA Logistyka Sp. z o.o. | U21: ENEA Oświetlenie Sp. z o.o. - Szacowana ilość | V21: ŁĄCZNA CENA NETTO DLA ENEA Oświetlenie Sp. z o.o.
B22: 1 | C22: PAPIER A4 80G, BIAŁOŚĆ 166 CIE | D22: Papier uniwersalny 80 g/m2 klasy A, Przeznaczony do kopiarek, drukarek laserowych i atramentowych oraz do wydruków kolorowych, Białość: 166 wg skali białości CIE. Format A4 | E22: karton/5 ryz po 500 arkuszy | F22: =IF('Załącznik 1 - Formularz Oferty'!$V$56=TRUE,(VLOOKUP(C22,'Załącznik 1 - Formularz Oferty'!$C$53:$G$83,5,0)),0) -> 0 | G22: =I22+K22+M22+O22+Q22+S22+U22 -> 331 | H22: =G22*F22 -> 0 | I22: 33 | J22: =I22*F22 -> 0 | M22: 283 | N22: =M22*F22 -> 0 | O22: 6 | P22: =O22*F22 -> 0 | Q22: 4 | R22: =Q22*F22 -> 0 | S22: 5 | T22: =S22*F22 -> 0
B23: 2 | C23: PAPIER A4 80G, BIAŁOŚĆ 146 CIE | D23: Papier uniwersalny 80 g/m² klasy C+, Przeznaczony do drukarek laserowych,kopiarek oraz faksów. Białość: 146 wg skali białości CIE. Format A4 | E23: karton/5 ryz po 500 arkuszy | F23: =IF('Załącznik 1 - Formularz Oferty'!$V$56=TRUE,(VLOOKUP(C23,'Załącznik 1 - Formularz Oferty'!$C$53:$G$83,5,0)),0) -> 0 | G23: =I23+K23+M23+O23+Q23+S23+U23 -> 1065 | H23: =G23*F23 -> 0 | I23: 340 | J23: =I23*F23 -> 0 | K23: 25 | L23: =K23*F23 -> 0 | M23: 634 | N23: =M23*F23 -> 0 | O23: 6 | P23: =O23*F23 -> 0 | Q23: 10 | R23: =Q23*F23 -> 0 | S23: 30 | T23: =S23*F23 -> 0 | U23: 20 | V23: =U23*F23 -> 0
B24: 3 | C24: PAPIER UNIWERSALNY A5 80G BIAŁY, BIAŁOŚĆ 146 CIE | D24: Papier uniwersalny 80 g/m² klasy C+. Przeznaczony do drukarek laserowych, kopiarek oraz faksów. Białość: 146 wg skali białości CIE. Format A5 | E24: ryza/500 arkuszy | F24: =IF('Załącznik 1 - Formularz Oferty'!$V$56=TRUE,(VLOOKUP(C24,'Załącznik 1 - Formularz Oferty'!$C$53:$G$83,5,0)),0) -> 0 | G24: 24 | H24: 0 | M24: 17 | N24: 0 | O24: 6 | P24: 0 | Q24: 1 | R24: 0
B25: 4 | C25: PAPIER A3 80G, BIAŁOŚĆ 146 CIE | D25: Papier uniwersalny 80 g/m² klasy C+. Przeznaczony do drukarek laserowych, kopiarek oraz faksów. Białość: 146 wg skali białości CIE. Format A3 | E25: ryza/500 arkuszy | F25: =IF('Załącznik 1 - Formularz Oferty'!$V$56=TRUE,(VLOOKUP(C25,'Załącznik 1 - Formularz Oferty'!$C$53:$G$83,5,0)),0) -> 0 | G25: 132 | H25: 0 | I25: 8 | J25: =I25*F25 -> 0 | M25: 110 | N25: 0 | O25: 6 | P25: 0 | Q25: 3 | R25: 0 | S25: 1 | T25: =S25*F25 -> 0 | U25: 4 | V25: =U25*F25 -> 0
B26: 5 | C26: PAPIER SATYNOWY A4 160G BIAŁY, BIAŁOŚC 168 CIE | D26: Satynowany,biały papier przeznaczony do pełnokolorowych wydruków, nadaje się do maszyn cyfrowych,prezentacji, broszur, raportów oraz materiałów informacyjnych. Białość: 168 wg skali białości CIE. Gramatura 160 g//m². Format A4 | E26: ryza/250 arkuszy | F26: =IF('Załącznik 1 - Formularz Oferty'!$V$56=TRUE,(VLOOKUP(C26,'Załącznik 1 - Formularz Oferty'!$C$53:$G$83,5,0)),0) -> 0 | G26: 13 | H26: 0 | I26: 1 | J26: 0 | M26: 6 | N26: 0 | O26: 6 | P26: 0
B27: 6 | C27: PAPIER DO DRUKAREK IGŁOWYCH 240MM 1+1 O/K | D27: Papier do drukarek igłowych, wielowarstwowy o gramaturze 53-57 g/m², wytwarzany z papieru samokopiującego, Liczba warstw 1+1. Biały oryginał i różowa kopia, posiada nadruk oryginał/kopia. Format: długość 12''= 305 mm, szerokość 240 mm | E27: karton/900 składek | F27: =IF('Załącznik 1 - Formularz Oferty'!$V$56=TRUE,(VLOOKUP(C27,'Załącznik 1 - Formularz Oferty'!$C$53:$G$83,5,0)),0) -> 0 | G27: 16 | H27: 0 | O27: 6 | P27: 0 | S27: 10 | T27: =S27*F27 -> 0
B28: 7 | C28: PAPIER DO DRUKAREK IGŁOWYCH 240MM 1+2 O/K | D28: Papier do drukarek igłowych, wielowarstwowy o gramaturze 53-57 g/m²,Liczba warstw 1+2. Biały oryginał, żółta i różowa kopia, posiada nadruk oryginał/kopia. Format: długość 12''= 305 mm, szerokość 240 mm | E28: karton/600 składek | F28: =IF('Załącznik 1 - Formularz Oferty'!$V$56=TRUE,(VLOOKUP(C28,'Załącznik 1 - Formularz Oferty'!$C$53:$G$83,5,0)),0) -> 0 | G28: 41 | H28: 0 | O28: 6 | P28: 0 | S28: 35 | T28: 0
B29: 8 | C29: PAPIER DO DRUKAREK IGŁOWYCH 240MM 1+3 O/K | D29: Papier do drukarek igłowych, wielowarstwowy o gramaturze 53-57 g/m², wytwarzany z papieru samokopiującego.Liczba warstw 1+3. Biały oryginał, żółta, zielona i różowa kopia, posiada nadruk oryginał/kopia. Format: długość 12''= 305 mm, szerokość 240 mm | E29: karton/450 składek | F29: =IF('Załącznik 1 - Formularz Oferty'!$V$56=TRUE,(VLOOKUP(C29,'Załącznik 1 - Formularz Oferty'!$C$53:$G$83,5,0)),0) -> 0 | G29: 6 | H29: 0 | O29: 6 | P29: 0
B30: 9 | C30: PAPIER DO DRUKAREK IGŁOWYCH 240MM 1+4 | D30: Papier do drukarek igłowych, wielowarstwowy o gramaturze 53-57 g/m², wytwarzany z papieru samokopiującego.Kolory kopii:1+4: żółta, zielona, żółta, różowa. Długość: 12'' = 305mm; Szerokość: 240(mm). Liczba warstw 1+4 | E30: karton/350 składek | F30: =IF('Załącznik 1 - Formularz Oferty'!$V$56=TRUE,(VLOOKUP(C30,'Załącznik 1 - Formularz Oferty'!$C$53:$G$83,5,0)),0) -> 0 | G30: 6 | H30: 0 | O30: 6 | P30: 0
B31: 10 | C31: PAPIER DO PLOTERÓW 297MMX50M 90G | D31: Uniwersalny papier do ploterów atramentowych. Biały, niepowlekany. Przeznaczony do wydruków monochromatycznych i kolorowych. Długość: 50 m. Średnica tulejki: 50 mm | E31: opakowanie/ 2 rolki | F31: =IF('Załącznik 1 - Formularz Oferty'!$V$56=TRUE,(VLOOKUP(C31,'Załącznik 1 - Formularz Oferty'!$C$53:$G$83,5,0)),0) -> 0 | G31: 7 | H31: 0 | M31: 1 | N31: =M31*F31 -> 0 | O31: 6 | P31: 0
B32: 11 | C32: PAPIER DO PLOTERÓW 420MMX50M 80G | D32: Uniwersalny papier do ploterów atramentowych. Biały, niepowlekany. Przeznaczony do wydruków monochromatycznych i kolorowych. Gramatura 80 g/m². Szerokość 420 mm. Długość 50 m. Średnica gilzy: 50 mm | E32: opakowanie/ 2 rolki | F32: =IF('Załącznik 1 - Formularz Oferty'!$V$56=TRUE,(VLOOKUP(C32,'Załącznik 1 - Formularz Oferty'!$C$53:$G$83,5,0)),0) -> 0 | G32: 8 | H32: 0 | M32: 2 | N32: 0 | O32: 6 | P32: 0
B33: 12 | C33: PAPIER DO PLOTERÓW 594MMX50M 80G | D33: Uniwersalny papier do ploterów atramentowych. Biały, niepowlekany. Przeznaczony do wydruków monochromatycznych i kolorowych. Gramatura 80 g/m². Szerokość 594 mm. Długość 50 m. Średnica gilzy: 50 mm | E33: 1 rolka | F33: =IF('Załącznik 1 - Formularz Oferty'!$V$56=TRUE,(VLOOKUP(C33,'Załącznik 1 - Formularz Oferty'!$C$53:$G$83,5,0)),0) -> 0 | G33: 7 | H33: 0 | M33: 1 | N33: 0 | O33: 6 | P33: 0
B34: 13 | C34: PAPIER DO PLOTERÓW 610MMX50M 80G | D34: Uniwersalny papier do ploterów atramentowych. Biały, niepowlekany. Przeznaczony do wydruków monochromatycznych i kolorowych. Gramatura 80 g/m². Szerokość 610 mm. Długość 50 m.Średnica gilzy: 50 mm | E34: 1 rolka | F34: =IF('Załącznik 1 - Formularz Oferty'!$V$56=TRUE,(VLOOKUP(C34,'Załącznik 1 - Formularz Oferty'!$C$53:$G$83,5,0)),0) -> 0 | G34: 7 | H34: 0 | M34: 1 | N34: 0 | O34: 6 | P34: 0
B35: 14 | C35: PAPIER DO PLOTERÓW 841MMX50M 80G | D35: Uniwersalny papier do ploterów atramentowych. Biały, niepowlekany. Przeznaczony do wydruków monochromatycznych i kolorowych. Gramatura 80 g/m². Szerokość 841 mm. Długość 50 m. Średnica gilzy: 50 mm | E35: 1 rolka | F35: =IF('Załącznik 1 - Formularz Oferty'!$V$56=TRUE,(VLOOKUP(C35,'Załącznik 1 - Formularz Oferty'!$C$53:$G$83,5,0)),0) -> 0 | G35: 7 | H35: 0 | M35: 1 | N35: 0 | O35: 6 | P35: 0
B36: 15 | C36: PAPIER DO PLOTERÓW 914MMX50M 80G | D36: Uniwersalny papier do ploterów atramentowych. Biały, niepowlekany. Przeznaczony do wydruków monochromatycznych i kolorowych. Gramatura 80 g/m². Szerokość 914 mm. Długość 50 m. Średnica gilzy: 50 mm | E36: 1 rolka | F36: =IF('Załącznik 1 - Formularz Oferty'!$V$56=TRUE,(VLOOKUP(C36,'Załącznik 1 - Formularz Oferty'!$C$53:$G$83,5,0)),0) -> 0 | G36: 7 | H36: 0 | M36: 1 | N36: 0 | O36: 6 | P36: 0
B37: 16 | C37: ROLKA PAPIEROWA 76MMX25M | D37: Rolka papierowa (offsetowa) Gwarancja: 5 lat na zdolność kopiowania papieru i 25 lat na trwałość kopii. Wymiary: 76 mm x dl. 25m | E37: opakowanie/10 sztuk | F37: =IF('Załącznik 1 - Formularz Oferty'!$V$56=TRUE,(VLOOKUP(C37,'Załącznik 1 - Formularz Oferty'!$C$53:$G$83,5,0)),0) -> 0 | G37: 7 | H37: =G37*F37 -> 0 | M37: 1 | N37: 0 | O37: 6 | P37: 0
B38: 17 | C38: PELIKAN KALKA OŁÓWKOWA NIEBIESKA A4 | D38: Kalka przebitkowa, maszynowa i do pisania odręcznego. Samoregenerująca się. Format A4. Kolor niebieski | E38: opakowanie/10 arkuszy | F38: =IF('Załącznik 1 - Formularz Oferty'!$V$56=TRUE,(VLOOKUP(C38,'Załącznik 1 - Formularz Oferty'!$C$53:$G$83,5,0)),0) -> 0 | G38: 7 | H38: 0 | M38: 1 | N38: 0 | O38: 6 | P38: 0
B39: 18 | C39: PAPIER FOTOGRAFICZNY, A4, 180 g | D39: Szybkoschnący papier fotograficzny do wydruku profesjonalnej jakości fotografii. Gładkie, lśniące wykończenie zapewnia wyraźne zdjęcia o żywych kolorach. Format A4, 180 g | E39: ryza/50 arkuszy | F39: =IF('Załącznik 1 - Formularz Oferty'!$V$56=TRUE,(VLOOKUP(C39,'Załącznik 1 - Formularz Oferty'!$C$53:$G$83,5,0)),0) -> 0 | G39: 94 | H39: 0 | M39: 88 | N39: 0 | O39: 6 | P39: 0
B40: 19 | C40: PAPIER FOTOGRAFICZNY, A4, 200G, | D40: Szybkoschnący papier fotograficzny do wydruku profesjonalnej jakości fotografii. Gładkie, lśniące wykończenie zapewnia wyraźne zdjęcia o żywych kolorach. Format A4, 200g | E40: opakowanie/25 arkuszy | F40: =IF('Załącznik 1 - Formularz Oferty'!$V$56=TRUE,(VLOOKUP(C40,'Załącznik 1 - Formularz Oferty'!$C$53:$G$83,5,0)),0) -> 0 | G40: 7 | H40: 0 | M40: 1 | N40: 0 | O40: 6 | P40: 0
B41: 20 | C41: PAPIER A4 160G, BIAŁOŚĆ 169 CIE | D41: Papier przeznaczony do dwustronnych wydruków laserowych i atramentowych. Zapobiega przesiąkaniu druku. Białość: 169 wg skali białości CIE 160 g/m². Format A4 | E41: ryza/250 arkuszy | F41: =IF('Załącznik 1 - Formularz Oferty'!$V$56=TRUE,(VLOOKUP(C41,'Załącznik 1 - Formularz Oferty'!$C$53:$G$83,5,0)),0) -> 0 | G41: 7 | H41: 0 | M41: 1 | N41: 0 | O41: 6 | P41: 0
B42: 21 | C42: OKŁADKI DO DYPLOMÓW GRANAT, ROZMIAR 220 X 310 MM | D42: Okładki do certyfikatów, dyplomów, listów gratulacyjnych. Twarda oprawa o fakturze skóry. Posiadają ozdobny złoty sznureczek. Rozmiar okładki: 220 x 310 mm. Kolor granatowy | E42: opakowanie/10 sztuk | F42: =IF('Załącznik 1 - Formularz Oferty'!$V$56=TRUE,(VLOOKUP(C42,'Załącznik 1 - Formularz Oferty'!$C$53:$G$83,5,0)),0) -> 0 | G42: 56 | H42: 0 | M42: 49 | N42: 0 | O42: 6 | P42: 0 | Q42: 1 | R42: 0
B43: 22 | C43: PAPIER INTENSYWNY NIEBIESKI A4, 80 g | D43: Papier uniwersalny 80 g/m2, Przeznaczony do kopiarek, drukarek laserowych i atramentowych. Kolor intensywny niebieski. Format A4 | E43: ryza/500 arkuszy | F43: =IF('Załącznik 1 - Formularz Oferty'!$V$56=TRUE,(VLOOKUP(C43,'Załącznik 1 - Formularz Oferty'!$C$53:$G$83,5,0)),0) -> 0 | G43: 9 | H43: 0 | M43: 3 | N43: 0 | O43: 6 | P43: 0
B44: 23 | C44: PAPIER INTENSYWNY ZIELONY A4, 80 g | D44: Papier uniwersalny 80 g/m2, Przeznaczony do kopiarek, drukarek laserowych i atramentowych. Kolor intensywny zielony. Format A4 | E44: ryza/500 arkuszy | F44: =IF('Załącznik 1 - Formularz Oferty'!$V$56=TRUE,(VLOOKUP(C44,'Załącznik 1 - Formularz Oferty'!$C$53:$G$83,5,0)),0) -> 0 | G44: 7 | H44: 0 | M44: 1 | N44: 0 | O44: 6 | P44: 0
B45: 24 | C45: PAPIER INTENSYWNY ŻÓŁTY, A4, 80 g | D45: Papier uniwersalny 80 g/m2, Przeznaczony do kopiarek, drukarek laserowych i atramentowych. Kolor intensywny żółty. Format A4 | E45: ryza/500 arkuszy | F45: =IF('Załącznik 1 - Formularz Oferty'!$V$56=TRUE,(VLOOKUP(C45,'Załącznik 1 - Formularz Oferty'!$C$53:$G$83,5,0)),0) -> 0 | G45: 7 | H45: 0 | M45: 1 | N45: 0 | O45: 6 | P45: 0
B46: 25 | C46: PAPIER INTENSYWNY CZERWONY A4, 80g | D46: Papier uniwersalny 80 g/m2, Przeznaczony do kopiarek, drukarek laserowych i atramentowych. Kolor intensywny czerwony. Format A4 | E46: ryza/500 arkuszy | F46: =IF('Załącznik 1 - Formularz Oferty'!$V$56=TRUE,(VLOOKUP(C46,'Załącznik 1 - Formularz Oferty'!$C$53:$G$83,5,0)),0) -> 0 | G46: 11 | H46: 0 | M46: 5 | N46: 0 | O46: 6 | P46: 0
B47: 26 | C47: PAPIER MIX KOLORÓW A4, 80 g | D47: Papier uniwersalny 80 g/m2, Przeznaczony do kopiarek, drukarek laserowych i atramentowych. Mix kolorów. Format A4 | E47: ryza/500 arkuszy | F47: =IF('Załącznik 1 - Formularz Oferty'!$V$56=TRUE,(VLOOKUP(C47,'Załącznik 1 - Formularz Oferty'!$C$53:$G$83,5,0)),0) -> 0 | G47: 8 | H47: 0 | M47: 1 | N47: 0 | O47: 6 | P47: 0 | Q47: 1 | R47: 0
B48: 27 | C48: PAPIER A4 100G, BIAŁOŚĆ 168 CIE | D48: Papier uniwersalny 100 g/m2 klasy A, Przeznaczony do kopiarek, drukarek laserowych i atramentowych oraz do wydruków kolorowych, Białość: 168 wg skali białości CIE. Format A4 | E48: ryza/ 250 arkuszy | F48: =IF('Załącznik 1 - Formularz Oferty'!$V$56=TRUE,(VLOOKUP(C48,'Załącznik 1 - Formularz Oferty'!$C$53:$G$83,5,0)),0) -> 0 | G48: 12 | H48: 0 | I48: 1 | J48: =I48*F48 -> 0 | M48: 5 | N48: 0 | O48: 6 | P48: 0
B49: 28 | C49: PAPIER DO DRUKAREK WIELKOFORMATOWYCH, ROLKA A1 594/175, 80 g, gilza 76 | D49: Papier standard, biały. Przeznaczony do wydruków monochromatycznych . Gramatura 80 g/m². Szerokość 594 mm. Długość 175 m. Średnica gilzy: 76 mm. Format A1 rolka | E49: rolka | F49: =IF('Załącznik 1 - Formularz Oferty'!$V$56=TRUE,(VLOOKUP(C49,'Załącznik 1 - Formularz Oferty'!$C$53:$G$83,5,0)),0) -> 0 | G49: 8 | H49: 0 | M49: 2 | N49: 0 | O49: 6 | P49: 0
B50: 29 | C50: Papier ozdobny – biały 250 g/m3 20 arkuszy | D50: papier wizytówkowy/ozdobny - np.. R20 TOP STYLE TRAD PAPIER A4 250G BIAŁY lub podobny | E50: opakowanie 20 arkuszy | F50: =IF('Załącznik 1 - Formularz Oferty'!$V$56=TRUE,(VLOOKUP(C50,'Załącznik 1 - Formularz Oferty'!$C$53:$G$83,5,0)),0) -> 0 | G50: 5 | H50: 0 | M50: 1 | N50: 0 | O50: 4 | P50: 0
B51: 30 | C51: Papier ozdobny - - kość słoniowa 250 g/m3 20 arkuszy | D51: papier wizytówkowy/ozdobny np..R20 TOP STYLE TRAD PAP A4 250G KOŚĆ SŁONIOWA lub podobny | E51: opakowanie 20 arkuszy | F51: =IF('Załącznik 1 - Formularz Oferty'!$V$56=TRUE,(VLOOKUP(C51,'Załącznik 1 - Formularz Oferty'!$C$53:$G$83,5,0)),0) -> 0 | G51: 6 | H51: 0 | M51: 2 | N51: 0 | O51: 4 | P51: 0
I52: ŁĄCZNA CENA NETTO DLA ENEA Centrum Sp. z o.o. | J52: =SUM(J22:J51) -> 0 | K52: ŁĄCZNA CENA NETTO DLA ENEA S.A. | L52: =SUM(L22:L51) -> 0 | M52: ŁĄCZNA CENA NETTO DLA ENEA Operator sp. z.o.o. | N52: =SUM(N22:N51) -> 0 | O52: ŁĄCZNA CENA NETTO DLA ENEA Serwis Sp. z o.o. | P52: =SUM(P22:P51) -> 0 | Q52: ŁĄCZNA CENA NETTO DLA ENEA Pomiary sp. z.o.o. | R52: =SUM(R22:R51) -> 0 | S52: ŁĄCZNA CENA NETTO DLA ENEA Logistyka Sp. z o.o. | T52: =SUM(T22:T51) -> 0 | U52: ŁĄCZNA CENA NETTO DLA ENEA Oświetlenie sp. z.o.o. | V52: =SUM(V22:V51) -> 0
C56: miejscowość i data | F56: Pieczęć imienna i podpis przedstawiciela(i) Wykonawcy

Sheet Załącznik 4-F.O. dla Zadania 3
B1: Oznaczenie sprawy: 1400/DW00/ZU/KZ/2021/0000061751
B3: ZAŁĄCZNIK NR 4 - FORMULARZ OFERTY DLA ZADANIA 3 - Dostawa papieru do wydruku – Szczecin + woj. Zachodniopomorskie.
C6: (pieczęć wykonawcy)
B8: Ja, niżej podpisany (My niżej podpisani):
B11: działając w imieniu i na rzecz:
B14: Składam(y) ofertę na wykonanie zamówienia, którego przedmiotem jest:
B15: Dostawa papieru do wydruku dla spółek GK ENEA
B17: Zadanie 3: Dostawa papieru do wydruku - Szczecin + woj. zachodniopomorskie
B19: ŁĄCZNA CENA NETTO OFERTY DLA ZADANIA 3: | D19: =SUM(H22:H513) -> 0
B21: LP | C21: Nazwa produktu | D21: Opis szczegółowy | E21: Jednostka | F21: cena jednostkowa netto | G21: Ilość | H21: Wartość | I21: ENEA Centrum Sp. z o.o. - Szacowana ilość | J21: ŁĄCZNA CENA NETTO DLA ENEA Centrum Sp. z o.o. | K21: ENEA S.A. - Szacowana ilość | L21: ŁĄCZNA CENA NETTO DLA ENEA S.A. | M21: ENEA Operator Sp. z o.o. - Szacowana ilość | N21: ŁĄCZNA CENA NETTO DLA ENEA Operator Sp. z o.o. | O21: ENEA Serwis Sp. z o.o. - Szacowana ilość | P21: ŁĄCZNA CENA NETTO DLA ENEA Serwis Sp. z o.o. | Q21: ENEA Pomiary Sp. z o.o. - Szacowana ilość | R21: ŁĄCZNA CENA NETTO DLA ENEA Pomiary Sp. z o.o. | S21: ENEA Logistyka Sp. z o.o. - Szacowana ilość | T21: ŁĄCZNA CENA NETTO DLA ENEA Logistyka Sp. z o.o. | U21: ENEA Oświetlenie Sp. z o.o. - Szacowana ilość | V21: ŁĄCZNA CENA NETTO DLA ENEA Oświetlenie Sp. z o.o.
B22: 1 | C22: PAPIER A4 80G, BIAŁOŚĆ 166 CIE | D22: Papier uniwersalny 80 g/m2 klasy A, Przeznaczony do kopiarek, drukarek laserowych i atramentowych oraz do wydruków kolorowych, Białość: 166 wg skali białości CIE. Format A4 | E22: karton/5 ryz po 500 arkuszy | F22: =IF('Załącznik 1 - Formularz Oferty'!$V$57=TRUE,(VLOOKUP(C22,'Załącznik 1 - Formularz Oferty'!$C$53:$G$83,5,0)),0) -> 0 | G22: =I22+K22+M22+O22+Q22+S22+U22 -> 348 | H22: =G22*F22 -> 0 | M22: 326 | N22: =M22*F22 -> 0 | O22: 6 | P22: =O22*F22 -> 0 | Q22: 4 | R22: =Q22*F22 -> 0 | U22: 12 | V22: =U22*F22 -> 0
B23: 2 | C23: PAPIER A4 80G, BIAŁOŚĆ 146 CIE | D23: Papier uniwersalny 80 g/m² klasy C+, Przeznaczony do drukarek laserowych,kopiarek oraz faksów. Białość: 146 wg skali białości CIE. Format A4 | E23: karton/5 ryz po 500 arkuszy | F23: =IF('Załącznik 1 - Formularz Oferty'!$V$57=TRUE,(VLOOKUP(C23,'Załącznik 1 - Formularz Oferty'!$C$53:$G$83,5,0)),0) -> 0 | G23: =I23+K23+M23+O23+Q23+S23+U23 -> 1150 | H23: =G23*F23 -> 0 | I23: 231 | J23: =I23*F23 -> 0 | K23: 60 | L23: =K23*F23 -> 0 | M23: 729 | N23: =M23*F23 -> 0 | O23: 6 | P23: =O23*F23 -> 0 | Q23: 34 | R23: =Q23*F23 -> 0 | S23: 10 | T23: =S23*F23 -> 0 | U23: 80 | V23: =U23*F23 -> 0
B24: 3 | C24: PAPIER UNIWERSALNY A5 80G BIAŁY, BIAŁOŚĆ 146 CIE | D24: Papier uniwersalny 80 g/m² klasy C+. Przeznaczony do drukarek laserowych, kopiarek oraz faksów. Białość: 146 wg skali białości CIE. Format A5 | E24: ryza/500 arkuszy | F24: =IF('Załącznik 1 - Formularz Oferty'!$V$57=TRUE,(VLOOKUP(C24,'Załącznik 1 - Formularz Oferty'!$C$53:$G$83,5,0)),0) -> 0 | G24: 26 | H24: 0 | M24: 19 | N24: 0 | O24: 6 | P24: 0 | Q24: 1 | R24: 0
B25: 4 | C25: PAPIER A3 80G, BIAŁOŚĆ 146 CIE | D25: Papier uniwersalny 80 g/m² klasy C+. Przeznaczony do drukarek laserowych, kopiarek oraz faksów. Białość: 146 wg skali białości CIE. Format A3 | E25: ryza/500 arkuszy | F25: =IF('Załącznik 1 - Formularz Oferty'!$V$57=TRUE,(VLOOKUP(C25,'Załącznik 1 - Formularz Oferty'!$C$53:$G$83,5,0)),0) -> 0 | G25: 152 | H25: 0 | I25: 5 | J25: =I25*F25 -> 0 | M25: 126 | N25: 0 | O25: 6 | P25: 0 | Q25: 3 | R25: 0 | U25: 12 | V25: =U25*F25 -> 0
B26: 5 | C26: PAPIER SATYNOWY A4 160G BIAŁY, BIAŁOŚC 168 CIE | D26: Satynowany,biały papier przeznaczony do pełnokolorowych wydruków, nadaje się do maszyn cyfrowych,prezentacji, broszur, raportów oraz materiałów informacyjnych. Białość: 168 wg skali białości CIE. Gramatura 160 g//m². Format A4 | E26: ryza/250 arkuszy | F26: =IF('Załącznik 1 - Formularz Oferty'!$V$57=TRUE,(VLOOKUP(C26,'Załącznik 1 - Formularz Oferty'!$C$53:$G$83,5,0)),0) -> 0 | G26: 13 | H26: 0 | M26: 7 | N26: 0 | O26: 6 | P26: 0
B27: 6 | C27: PAPIER DO DRUKAREK IGŁOWYCH 240MM 1+1 O/K | D27: Papier do drukarek igłowych, wielowarstwowy o gramaturze 53-57 g/m², wytwarzany z papieru samokopiującego, Liczba warstw 1+1. Biały oryginał i różowa kopia, posiada nadruk oryginał/kopia. Format: długość 12''= 305 mm, szerokość 240 mm | E27: karton/900 składek | F27: =IF('Załącznik 1 - Formularz Oferty'!$V$57=TRUE,(VLOOKUP(C27,'Załącznik 1 - Formularz Oferty'!$C$53:$G$83,5,0)),0) -> 0 | G27: 6 | H27: 0 | O27: 6 | P27: 0
B28: 7 | C28: PAPIER DO DRUKAREK IGŁOWYCH 240MM 1+2 O/K | D28: Papier do drukarek igłowych, wielowarstwowy o gramaturze 53-57 g/m²,Liczba warstw 1+2. Biały oryginał, żółta i różowa kopia, posiada nadruk oryginał/kopia. Format: długość 12''= 305 mm, szerokość 240 mm | E28: karton/600 składek | F28: =IF('Załącznik 1 - Formularz Oferty'!$V$57=TRUE,(VLOOKUP(C28,'Załącznik 1 - Formularz Oferty'!$C$53:$G$83,5,0)),0) -> 0 | G28: 6 | H28: 0 | O28: 6 | P28: 0
B29: 8 | C29: PAPIER DO DRUKAREK IGŁOWYCH 240MM 1+3 O/K | D29: Papier do drukarek igłowych, wielowarstwowy o gramaturze 53-57 g/m², wytwarzany z papieru samokopiującego.Liczba warstw 1+3. Biały oryginał, żółta, zielona i różowa kopia, posiada nadruk oryginał/kopia. Format: długość 12''= 305 mm, szerokość 240 mm | E29: karton/450 składek | F29: =IF('Załącznik 1 - Formularz Oferty'!$V$57=TRUE,(VLOOKUP(C29,'Załącznik 1 - Formularz Oferty'!$C$53:$G$83,5,0)),0) -> 0 | G29: 6 | H29: 0 | O29: 6 | P29: 0
B30: 9 | C30: PAPIER DO DRUKAREK IGŁOWYCH 240MM 1+4 | D30: Papier do drukarek igłowych, wielowarstwowy o gramaturze 53-57 g/m², wytwarzany z papieru samokopiującego.Kolory kopii:1+4: żółta, zielona, żółta, różowa. Długość: 12'' = 305mm; Szerokość: 240(mm). Liczba warstw 1+4 | E30: karton/350 składek | F30: =IF('Załącznik 1 - Formularz Oferty'!$V$57=TRUE,(VLOOKUP(C30,'Załącznik 1 - Formularz Oferty'!$C$53:$G$83,5,0)),0) -> 0 | G30: 6 | H30: 0 | O30: 6 | P30: 0
B31: 10 | C31: PAPIER DO PLOTERÓW 297MMX50M 90G | D31: Uniwersalny papier do ploterów atramentowych. Biały, niepowlekany. Przeznaczony do wydruków monochromatycznych i kolorowych. Długość: 50 m. Średnica tulejki: 50 mm | E31: opakowanie/ 2 rolki | F31: =IF('Załącznik 1 - Formularz Oferty'!$V$57=TRUE,(VLOOKUP(C31,'Załącznik 1 - Formularz Oferty'!$C$53:$G$83,5,0)),0) -> 0 | G31: 25 | H31: 0 | M31: 1 | N31: =M31*F31 -> 0 | O31: 6 | P31: 0 | U31: 18 | V31: =U31*F31 -> 0
B32: 11 | C32: PAPIER DO PLOTERÓW 420MMX50M 80G | D32: Uniwersalny papier do ploterów atramentowych. Biały, niepowlekany. Przeznaczony do wydruków monochromatycznych i kolorowych. Gramatura 80 g/m². Szerokość 420 mm. Długość 50 m. Średnica gilzy: 50 mm | E32: opakowanie/ 2 rolki | F32: =IF('Załącznik 1 - Formularz Oferty'!$V$57=TRUE,(VLOOKUP(C32,'Załącznik 1 - Formularz Oferty'!$C$53:$G$83,5,0)),0) -> 0 | G32: 32 | H32: 0 | M32: 2 | N32: 0 | O32: 6 | P32: 0 | U32: 24 | V32: 0
B33: 12 | C33: PAPIER DO PLOTERÓW 594MMX50M 80G | D33: Uniwersalny papier do ploterów atramentowych. Biały, niepowlekany. Przeznaczony do wydruków monochromatycznych i kolorowych. Gramatura 80 g/m². Szerokość 594 mm. Długość 50 m. Średnica gilzy: 50 mm | E33: 1 rolka | F33: =IF('Załącznik 1 - Formularz Oferty'!$V$57=TRUE,(VLOOKUP(C33,'Załącznik 1 - Formularz Oferty'!$C$53:$G$83,5,0)),0) -> 0 | G33: 7 | H33: 0 | M33: 1 | N33: 0 | O33: 6 | P33: 0
B34: 13 | C34: PAPIER DO PLOTERÓW 610MMX50M 80G | D34: Uniwersalny papier do ploterów atramentowych. Biały, niepowlekany. Przeznaczony do wydruków monochromatycznych i kolorowych. Gramatura 80 g/m². Szerokość 610 mm. Długość 50 m.Średnica gilzy: 50 mm | E34: 1 rolka | F34: =IF('Załącznik 1 - Formularz Oferty'!$V$57=TRUE,(VLOOKUP(C34,'Załącznik 1 - Formularz Oferty'!$C$53:$G$83,5,0)),0) -> 0 | G34: 39 | H34: 0 | M34: 1 | N34: 0 | O34: 6 | P34: 0 | U34: 32 | V34: =U34*F34 -> 0
B35: 14 | C35: PAPIER DO PLOTERÓW 841MMX50M 80G | D35: Uniwersalny papier do ploterów atramentowych. Biały, niepowlekany. Przeznaczony do wydruków monochromatycznych i kolorowych. Gramatura 80 g/m². Szerokość 841 mm. Długość 50 m. Średnica gilzy: 50 mm | E35: 1 rolka | F35: =IF('Załącznik 1 - Formularz Oferty'!$V$57=TRUE,(VLOOKUP(C35,'Załącznik 1 - Formularz Oferty'!$C$53:$G$83,5,0)),0) -> 0 | G35: 7 | H35: 0 | M35: 1 | N35: 0 | O35: 6 | P35: 0
B36: 15 | C36: PAPIER DO PLOTERÓW 914MMX50M 80G | D36: Uniwersalny papier do ploterów atramentowych. Biały, niepowlekany. Przeznaczony do wydruków monochromatycznych i kolorowych. Gramatura 80 g/m². Szerokość 914 mm. Długość 50 m. Średnica gilzy: 50 mm | E36: 1 rolka | F36: =IF('Załącznik 1 - Formularz Oferty'!$V$57=TRUE,(VLOOKUP(C36,'Załącznik 1 - Formularz Oferty'!$C$53:$G$83,5,0)),0) -> 0 | G36: 21 | H36: 0 | M36: 1 | N36: 0 | O36: 6 | P36: 0 | U36: 14 | V36: =U36*F36 -> 0
B37: 16 | C37: ROLKA PAPIEROWA 76MMX25M | D37: Rolka papierowa (offsetowa) Gwarancja: 5 lat na zdolność kopiowania papieru i 25 lat na trwałość kopii. Wymiary: 76 mm x dl. 25m | E37: opakowanie/10 sztuk | F37: =IF('Załącznik 1 - Formularz Oferty'!$V$57=TRUE,(VLOOKUP(C37,'Załącznik 1 - Formularz Oferty'!$C$53:$G$83,5,0)),0) -> 0 | G37: 7 | H37: =G37*F37 -> 0 | M37: 1 | N37: 0 | O37: 6 | P37: 0
B38: 17 | C38: PELIKAN KALKA OŁÓWKOWA NIEBIESKA A4 | D38: Kalka przebitkowa, maszynowa i do pisania odręcznego. Samoregenerująca się. Format A4. Kolor niebieski | E38: opakowanie/10 arkuszy | F38: =IF('Załącznik 1 - Formularz Oferty'!$V$57=TRUE,(VLOOKUP(C38,'Załącznik 1 - Formularz Oferty'!$C$53:$G$83,5,0)),0) -> 0 | G38: 7 | H38: 0 | M38: 1 | N38: 0 | O38: 6 | P38: 0
B39: 18 | C39: PAPIER FOTOGRAFICZNY, A4, 180 g | D39: Szybkoschnący papier fotograficzny do wydruku profesjonalnej jakości fotografii. Gładkie, lśniące wykończenie zapewnia wyraźne zdjęcia o żywych kolorach. Format A4, 180 g | E39: ryza/50 arkuszy | F39: =IF('Załącznik 1 - Formularz Oferty'!$V$57=TRUE,(VLOOKUP(C39,'Załącznik 1 - Formularz Oferty'!$C$53:$G$83,5,0)),0) -> 0 | G39: 107 | H39: 0 | M39: 101 | N39: 0 | O39: 6 | P39: 0
B40: 19 | C40: PAPIER FOTOGRAFICZNY, A4, 200G, | D40: Szybkoschnący papier fotograficzny do wydruku profesjonalnej jakości fotografii. Gładkie, lśniące wykończenie zapewnia wyraźne zdjęcia o żywych kolorach. Format A4, 200g | E40: opakowanie/25 arkuszy | F40: =IF('Załącznik 1 - Formularz Oferty'!$V$57=TRUE,(VLOOKUP(C40,'Załącznik 1 - Formularz Oferty'!$C$53:$G$83,5,0)),0) -> 0 | G40: 7 | H40: 0 | M40: 1 | N40: 0 | O40: 6 | P40: 0
B41: 20 | C41: PAPIER A4 160G, BIAŁOŚĆ 169 CIE | D41: Papier przeznaczony do dwustronnych wydruków laserowych i atramentowych. Zapobiega przesiąkaniu druku. Białość: 169 wg skali białości CIE 160 g/m². Format A4 | E41: ryza/250 arkuszy | F41: =IF('Załącznik 1 - Formularz Oferty'!$V$57=TRUE,(VLOOKUP(C41,'Załącznik 1 - Formularz Oferty'!$C$53:$G$83,5,0)),0) -> 0 | G41: 8 | H41: 0 | M41: 2 | N41: 0 | O41: 6 | P41: 0
B42: 21 | C42: OKŁADKI DO DYPLOMÓW GRANAT, ROZMIAR 220 X 310 MM | D42: Okładki do certyfikatów, dyplomów, listów gratulacyjnych. Twarda oprawa o fakturze skóry. Posiadają ozdobny złoty sznureczek. Rozmiar okładki: 220 x 310 mm. Kolor granatowy | E42: opakowanie/10 sztuk | F42: =IF('Załącznik 1 - Formularz Oferty'!$V$57=TRUE,(VLOOKUP(C42,'Załącznik 1 - Formularz Oferty'!$C$53:$G$83,5,0)),0) -> 0 | G42: 63 | H42: 0 | M42: 56 | N42: 0 | O42: 6 | P42: 0 | Q42: 1 | R42: =Q42*F42 -> 0
B43: 22 | C43: PAPIER INTENSYWNY NIEBIESKI A4, 80 g | D43: Papier uniwersalny 80 g/m2, Przeznaczony do kopiarek, drukarek laserowych i atramentowych. Kolor intensywny niebieski. Format A4 | E43: ryza/500 arkuszy | F43: =IF('Załącznik 1 - Formularz Oferty'!$V$57=TRUE,(VLOOKUP(C43,'Załącznik 1 - Formularz Oferty'!$C$53:$G$83,5,0)),0) -> 0 | G43: 9 | H43: 0 | M43: 3 | N43: 0 | O43: 6 | P43: 0
B44: 23 | C44: PAPIER INTENSYWNY ZIELONY A4, 80 g | D44: Papier uniwersalny 80 g/m2, Przeznaczony do kopiarek, drukarek laserowych i atramentowych. Kolor intensywny zielony. Format A4 | E44: ryza/500 arkuszy | F44: =IF('Załącznik 1 - Formularz Oferty'!$V$57=TRUE,(VLOOKUP(C44,'Załącznik 1 - Formularz Oferty'!$C$53:$G$83,5,0)),0) -> 0 | G44: 7 | H44: 0 | M44: 1 | N44: 0 | O44: 6 | P44: 0
B45: 24 | C45: PAPIER INTENSYWNY ŻÓŁTY, A4, 80 g | D45: Papier uniwersalny 80 g/m2, Przeznaczony do kopiarek, drukarek laserowych i atramentowych. Kolor intensywny żółty. Format A4 | E45: ryza/500 arkuszy | F45: =IF('Załącznik 1 - Formularz Oferty'!$V$57=TRUE,(VLOOKUP(C45,'Załącznik 1 - Formularz Oferty'!$C$53:$G$83,5,0)),0) -> 0 | G45: 7 | H45: 0 | M45: 1 | N45: 0 | O45: 6 | P45: 0
B46: 25 | C46: PAPIER INTENSYWNY CZERWONY A4, 80g | D46: Papier uniwersalny 80 g/m2, Przeznaczony do kopiarek, drukarek laserowych i atramentowych. Kolor intensywny czerwony. Format A4 | E46: ryza/500 arkuszy | F46: =IF('Załącznik 1 - Formularz Oferty'!$V$57=TRUE,(VLOOKUP(C46,'Załącznik 1 - Formularz Oferty'!$C$53:$G$83,5,0)),0) -> 0 | G46: 11 | H46: 0 | M46: 5 | N46: 0 | O46: 6 | P46: 0
B47: 26 | C47: PAPIER MIX KOLORÓW A4, 80 g | D47: Papier uniwersalny 80 g/m2, Przeznaczony do kopiarek, drukarek laserowych i atramentowych. Mix kolorów. Format A4 | E47: ryza/500 arkuszy | F47: =IF('Załącznik 1 - Formularz Oferty'!$V$57=TRUE,(VLOOKUP(C47,'Załącznik 1 - Formularz Oferty'!$C$53:$G$83,5,0)),0) -> 0 | G47: 8 | H47: 0 | M47: 1 | N47: 0 | O47: 6 | P47: 0 | Q47: 1 | R47: =Q47*F47 -> 0
B48: 27 | C48: PAPIER A4 100G, BIAŁOŚĆ 168 CIE | D48: Papier uniwersalny 100 g/m2 klasy A, Przeznaczony do kopiarek, drukarek laserowych i atramentowych oraz do wydruków kolorowych, Białość: 168 wg skali białości CIE. Format A4 | E48: ryza/ 250 arkuszy | F48: =IF('Załącznik 1 - Formularz Oferty'!$V$57=TRUE,(VLOOKUP(C48,'Załącznik 1 - Formularz Oferty'!$C$53:$G$83,5,0)),0) -> 0 | G48: 11 | H48: 0 | M48: 5 | N48: 0 | O48: 6 | P48: 0
B49: 28 | C49: PAPIER DO DRUKAREK WIELKOFORMATOWYCH, ROLKA A1 594/175, 80 g, gilza 76 | D49: Papier standard, biały. Przeznaczony do wydruków monochromatycznych . Gramatura 80 g/m². Szerokość 594 mm. Długość 175 m. Średnica gilzy: 76 mm. Format A1 rolka | E49: rolka | F49: =IF('Załącznik 1 - Formularz Oferty'!$V$57=TRUE,(VLOOKUP(C49,'Załącznik 1 - Formularz Oferty'!$C$53:$G$83,5,0)),0) -> 0 | G49: 8 | H49: 0 | M49: 2 | N49: 0 | O49: 6 | P49: 0
B50: 29 | C50: Papier ozdobny – biały 250 g/m3 20 arkuszy | D50: papier wizytówkowy/ozdobny - np.. R20 TOP STYLE TRAD PAPIER A4 250G BIAŁY lub podobny | E50: opakowanie 20 arkuszy | F50: =IF('Załącznik 1 - Formularz Oferty'!$V$57=TRUE,(VLOOKUP(C50,'Załącznik 1 - Formularz Oferty'!$C$53:$G$83,5,0)),0) -> 0 | G50: 7 | H50: 0 | M50: 1 | N50: 0 | O50: 6 | P50: 0
B51: 30 | C51: Papier ozdobny - - kość słoniowa 250 g/m3 20 arkuszy | D51: papier wizytówkowy/ozdobny np..R20 TOP STYLE TRAD PAP A4 250G KOŚĆ SŁONIOWA lub podobny | E51: opakowanie 20 arkuszy | F51: =IF('Załącznik 1 - Formularz Oferty'!$V$57=TRUE,(VLOOKUP(C51,'Załącznik 1 - Formularz Oferty'!$C$53:$G$83,5,0)),0) -> 0 | G51: 11 | H51: 0 | M51: 2 | N51: 0 | O51: 6 | P51: 0 | U51: 3 | V51: =U51*F51 -> 0
I52: ŁĄCZNA CENA NETTO DLA ENEA Centrum Sp. z o.o. | J52: =SUM(J22:J51) -> 0 | K52: ŁĄCZNA CENA NETTO DLA ENEA S.A. | L52: =SUM(L22:L51) -> 0 | M52: ŁĄCZNA CENA NETTO DLA ENEA Operator sp. z.o.o. | N52: =SUM(N22:N51) -> 0 | O52: ŁĄCZNA CENA NETTO DLA ENEA Serwis Sp. z o.o. | P52: =SUM(P22:P51) -> 0 | Q52: ŁĄCZNA CENA NETTO DLA ENEA Pomiary sp. z.o.o. | R52: =SUM(R22:R51) -> 0 | S52: ŁĄCZNA CENA NETTO DLA ENEA Logistyka Sp. z o.o. | T52: =SUM(T22:T51) -> 0 | U52: ŁĄCZNA CENA NETTO DLA ENEA Oświetlenie sp. z.o.o. | V52: =SUM(V22:V51) -> 0
C56: miejscowość i data | F56: Pieczęć imienna i podpis przedstawiciela(i) Wykonawcy

Sheet Załącznik 5-F.O. dla Zadania 4
B1: Oznaczenie sprawy: 1400/DW00/ZU/KZ/2021/0000061751
B3: ZAŁĄCZNIK NR 5 - FORMULARZ OFERTY DLA ZADANIA 4 - Dostawa papieru do wydruku – Bydgoszcz + woj. kujawsko-pomorskie i Chojnice + woj. pomorskie.
C6: (pieczęć wykonawcy)
B8: Ja, niżej podpisany (My niżej podpisani):
B11: działając w imieniu i na rzecz:
B14: Składam(y) ofertę na wykonanie zamówienia, którego przedmiotem jest:
B15: Dostawa papieru do wydruku dla spółek GK ENEA
B17: Zadanie 4: Dostawa papieru do wydruku - Bydgoszcz + woj. Kujawsko-pomorskie i Chojnice + woj. pomorskie
B19: ŁĄCZNA CENA NETTO OFERTY DLA ZADANIA 4: | D19: =SUM(H22:H513) -> 0
B21: LP | C21: Nazwa produktu | D21: Opis szczegółowy | E21: Jednostka | F21: cena jednostkowa netto | G21: Ilość | H21: Wartość | I21: ENEA Centrum Sp. z o.o. - Szacowana ilość | J21: ŁĄCZNA CENA NETTO DLA ENEA Centrum Sp. z o.o. | K21: ENEA S.A. - Szacowana ilość | L21: ŁĄCZNA CENA NETTO DLA ENEA S.A. | M21: ENEA Operator Sp. z o.o. - Szacowana ilość | N21: ŁĄCZNA CENA NETTO DLA ENEA Operator Sp. z o.o. | O21: ENEA Serwis Sp. z o.o. - Szacowana ilość | P21: ŁĄCZNA CENA NETTO DLA ENEA Serwis Sp. z o.o. | Q21: ENEA Pomiary Sp. z o.o. - Szacowana ilość | R21: ŁĄCZNA CENA NETTO DLA ENEA Pomiary Sp. z o.o. | S21: ENEA Oświetlenie Sp. z o.o. - Szacowana ilość | T21: ŁĄCZNA CENA NETTO DLA ENEA Oświetlenie Sp. z o.o.
B22: 1 | C22: PAPIER A4 80G, BIAŁOŚĆ 166 CIE | D22: Papier uniwersalny 80 g/m2 klasy A, Przeznaczony do kopiarek, drukarek laserowych i atramentowych oraz do wydruków kolorowych, Białość: 166 wg skali białości CIE. Format A4 | E22: karton/5 ryz po 500 arkuszy | F22: =IF('Załącznik 1 - Formularz Oferty'!$V$58=TRUE,(VLOOKUP(C22,'Załącznik 1 - Formularz Oferty'!$C$53:$G$83,5,0)),0) -> 0 | G22: =I22+K22+M22+O22+Q22+S22 -> 305 | H22: =G22*F22 -> 0 | I22: 8 | J22: =I22*F22 -> 0 | K22: 4 | L22: =K22*F22 -> 0 | M22: 283 | N22: =M22*F22 -> 0 | O22: 6 | P22: =O22*F22 -> 0 | Q22: 4 | R22: =Q22*F22 -> 0
B23: 2 | C23: PAPIER A4 80G, BIAŁOŚĆ 146 CIE | D23: Papier uniwersalny 80 g/m² klasy C+, Przeznaczony do drukarek laserowych,kopiarek oraz faksów. Białość: 146 wg skali białości CIE. Format A4 | E23: karton/5 ryz po 500 arkuszy | F23: =IF('Załącznik 1 - Formularz Oferty'!$V$58=TRUE,(VLOOKUP(C23,'Załącznik 1 - Formularz Oferty'!$C$53:$G$83,5,0)),0) -> 0 | G23: =I23+K23+M23+O23+Q23+S23 -> 1166 | H23: =G23*F23 -> 0 | I23: 467 | J23: =I23*F23 -> 0 | K23: 17 | L23: =K23*F23 -> 0 | M23: 634 | N23: =M23*F23 -> 0 | O23: 6 | P23: =O23*F23 -> 0 | Q23: 32 | R23: =Q23*F23 -> 0 | S23: 10 | T23: =S23*F23 -> 0
B24: 3 | C24: PAPIER UNIWERSALNY A5 80G BIAŁY, BIAŁOŚĆ 146 CIE | D24: Papier uniwersalny 80 g/m² klasy C+. Przeznaczony do drukarek laserowych, kopiarek oraz faksów. Białość: 146 wg skali białości CIE. Format A5 | E24: ryza/500 arkuszy | F24: =IF('Załącznik 1 - Formularz Oferty'!$V$58=TRUE,(VLOOKUP(C24,'Załącznik 1 - Formularz Oferty'!$C$53:$G$83,5,0)),0) -> 0 | G24: 24 | H24: 0 | M24: 17 | N24: 0 | O24: 6 | P24: 0 | Q24: 1 | R24: 0
B25: 4 | C25: PAPIER A3 80G, BIAŁOŚĆ 146 CIE | D25: Papier uniwersalny 80 g/m² klasy C+. Przeznaczony do drukarek laserowych, kopiarek oraz faksów. Białość: 146 wg skali białości CIE. Format A3 | E25: ryza/500 arkuszy | F25: =IF('Załącznik 1 - Formularz Oferty'!$V$58=TRUE,(VLOOKUP(C25,'Załącznik 1 - Formularz Oferty'!$C$53:$G$83,5,0)),0) -> 0 | G25: 137 | H25: 0 | I25: 14 | J25: =I25*F25 -> 0 | M25: 110 | N25: 0 | O25: 6 | P25: 0 | Q25: 4 | R25: 0 | S25: 3 | T25: =S25*F25 -> 0
B26: 5 | C26: PAPIER SATYNOWY A4 160G BIAŁY, BIAŁOŚC 168 CIE | D26: Satynowany,biały papier przeznaczony do pełnokolorowych wydruków, nadaje się do maszyn cyfrowych,prezentacji, broszur, raportów oraz materiałów informacyjnych. Białość: 168 wg skali białości CIE. Gramatura 160 g//m². Format A4 | E26: ryza/250 arkuszy | F26: =IF('Załącznik 1 - Formularz Oferty'!$V$58=TRUE,(VLOOKUP(C26,'Załącznik 1 - Formularz Oferty'!$C$53:$G$83,5,0)),0) -> 0 | G26: 12 | H26: 0 | M26: 6 | N26: 0 | O26: 6 | P26: 0
B27: 6 | C27: PAPIER DO DRUKAREK IGŁOWYCH 240MM 1+1 O/K | D27: Papier do drukarek igłowych, wielowarstwowy o gramaturze 53-57 g/m², wytwarzany z papieru samokopiującego, Liczba warstw 1+1. Biały oryginał i różowa kopia, posiada nadruk oryginał/kopia. Format: długość 12''= 305 mm, szerokość 240 mm | E27: karton/900 składek | F27: =IF('Załącznik 1 - Formularz Oferty'!$V$58=TRUE,(VLOOKUP(C27,'Załącznik 1 - Formularz Oferty'!$C$53:$G$83,5,0)),0) -> 0 | G27: 6 | H27: 0 | O27: 6 | P27: 0
B28: 7 | C28: PAPIER DO DRUKAREK IGŁOWYCH 240MM 1+2 O/K | D28: Papier do drukarek igłowych, wielowarstwowy o gramaturze 53-57 g/m²,Liczba warstw 1+2. Biały oryginał, żółta i różowa kopia, posiada nadruk oryginał/kopia. Format: długość 12''= 305 mm, szerokość 240 mm | E28: karton/600 składek | F28: =IF('Załącznik 1 - Formularz Oferty'!$V$58=TRUE,(VLOOKUP(C28,'Załącznik 1 - Formularz Oferty'!$C$53:$G$83,5,0)),0) -> 0 | G28: 6 | H28: 0 | O28: 6 | P28: 0
B29: 8 | C29: PAPIER DO DRUKAREK IGŁOWYCH 240MM 1+3 O/K | D29: Papier do drukarek igłowych, wielowarstwowy o gramaturze 53-57 g/m², wytwarzany z papieru samokopiującego.Liczba warstw 1+3. Biały oryginał, żółta, zielona i różowa kopia, posiada nadruk oryginał/kopia. Format: długość 12''= 305 mm, szerokość 240 mm | E29: karton/450 składek | F29: =IF('Załącznik 1 - Formularz Oferty'!$V$58=TRUE,(VLOOKUP(C29,'Załącznik 1 - Formularz Oferty'!$C$53:$G$83,5,0)),0) -> 0 | G29: 6 | H29: 0 | O29: 6 | P29: 0
B30: 9 | C30: PAPIER DO DRUKAREK IGŁOWYCH 240MM 1+4 | D30: Papier do drukarek igłowych, wielowarstwowy o gramaturze 53-57 g/m², wytwarzany z papieru samokopiującego.Kolory kopii:1+4: żółta, zielona, żółta, różowa. Długość: 12'' = 305mm; Szerokość: 240(mm). Liczba warstw 1+4 | E30: karton/350 składek | F30: =IF('Załącznik 1 - Formularz Oferty'!$V$58=TRUE,(VLOOKUP(C30,'Załącznik 1 - Formularz Oferty'!$C$53:$G$83,5,0)),0) -> 0 | G30: 6 | H30: 0 | O30: 6 | P30: 0
B31: 10 | C31: PAPIER DO PLOTERÓW 297MMX50M 90G | D31: Uniwersalny papier do ploterów atramentowych. Biały, niepowlekany. Przeznaczony do wydruków monochromatycznych i kolorowych. Długość: 50 m. Średnica tulejki: 50 mm | E31: opakowanie/ 2 rolki | F31: =IF('Załącznik 1 - Formularz Oferty'!$V$58=TRUE,(VLOOKUP(C31,'Załącznik 1 - Formularz Oferty'!$C$53:$G$83,5,0)),0) -> 0 | G31: 7 | H31: 0 | M31: 1 | N31: =M31*F31 -> 0 | O31: 6 | P31: 0
B32: 11 | C32: PAPIER DO PLOTERÓW 420MMX50M 80G | D32: Uniwersalny papier do ploterów atramentowych. Biały, niepowlekany. Przeznaczony do wydruków monochromatycznych i kolorowych. Gramatura 80 g/m². Szerokość 420 mm. Długość 50 m. Średnica gilzy: 50 mm | E32: opakowanie/ 2 rolki | F32: =IF('Załącznik 1 - Formularz Oferty'!$V$58=TRUE,(VLOOKUP(C32,'Załącznik 1 - Formularz Oferty'!$C$53:$G$83,5,0)),0) -> 0 | G32: 8 | H32: 0 | M32: 2 | N32: 0 | O32: 6 | P32: 0
B33: 12 | C33: PAPIER DO PLOTERÓW 594MMX50M 80G | D33: Uniwersalny papier do ploterów atramentowych. Biały, niepowlekany. Przeznaczony do wydruków monochromatycznych i kolorowych. Gramatura 80 g/m². Szerokość 594 mm. Długość 50 m. Średnica gilzy: 50 mm | E33: 1 rolka | F33: =IF('Załącznik 1 - Formularz Oferty'!$V$58=TRUE,(VLOOKUP(C33,'Załącznik 1 - Formularz Oferty'!$C$53:$G$83,5,0)),0) -> 0 | G33: 7 | H33: 0 | M33: 1 | N33: 0 | O33: 6 | P33: 0
B34: 13 | C34: PAPIER DO PLOTERÓW 610MMX50M 80G | D34: Uniwersalny papier do ploterów atramentowych. Biały, niepowlekany. Przeznaczony do wydruków monochromatycznych i kolorowych. Gramatura 80 g/m². Szerokość 610 mm. Długość 50 m.Średnica gilzy: 50 mm | E34: 1 rolka | F34: =IF('Załącznik 1 - Formularz Oferty'!$V$58=TRUE,(VLOOKUP(C34,'Załącznik 1 - Formularz Oferty'!$C$53:$G$83,5,0)),0) -> 0 | G34: 7 | H34: 0 | M34: 1 | N34: 0 | O34: 6 | P34: 0
B35: 14 | C35: PAPIER DO PLOTERÓW 841MMX50M 80G | D35: Uniwersalny papier do ploterów atramentowych. Biały, niepowlekany. Przeznaczony do wydruków monochromatycznych i kolorowych. Gramatura 80 g/m². Szerokość 841 mm. Długość 50 m. Średnica gilzy: 50 mm | E35: 1 rolka | F35: =IF('Załącznik 1 - Formularz Oferty'!$V$58=TRUE,(VLOOKUP(C35,'Załącznik 1 - Formularz Oferty'!$C$53:$G$83,5,0)),0) -> 0 | G35: 7 | H35: 0 | M35: 1 | N35: 0 | O35: 6 | P35: 0
B36: 15 | C36: PAPIER DO PLOTERÓW 914MMX50M 80G | D36: Uniwersalny papier do ploterów atramentowych. Biały, niepowlekany. Przeznaczony do wydruków monochromatycznych i kolorowych. Gramatura 80 g/m². Szerokość 914 mm. Długość 50 m. Średnica gilzy: 50 mm | E36: 1 rolka | F36: =IF('Załącznik 1 - Formularz Oferty'!$V$58=TRUE,(VLOOKUP(C36,'Załącznik 1 - Formularz Oferty'!$C$53:$G$83,5,0)),0) -> 0 | G36: 7 | H36: 0 | M36: 1 | N36: 0 | O36: 6 | P36: 0
B37: 16 | C37: ROLKA PAPIEROWA 76MMX25M | D37: Rolka papierowa (offsetowa) Gwarancja: 5 lat na zdolność kopiowania papieru i 25 lat na trwałość kopii. Wymiary: 76 mm x dl. 25m | E37: opakowanie/10 sztuk | F37: =IF('Załącznik 1 - Formularz Oferty'!$V$58=TRUE,(VLOOKUP(C37,'Załącznik 1 - Formularz Oferty'!$C$53:$G$83,5,0)),0) -> 0 | G37: 7 | H37: =G37*F37 -> 0 | M37: 1 | N37: 0 | O37: 6 | P37: 0
B38: 17 | C38: PELIKAN KALKA OŁÓWKOWA NIEBIESKA A4 | D38: Kalka przebitkowa, maszynowa i do pisania odręcznego. Samoregenerująca się. Format A4. Kolor niebieski | E38: opakowanie/10 arkuszy | F38: =IF('Załącznik 1 - Formularz Oferty'!$V$58=TRUE,(VLOOKUP(C38,'Załącznik 1 - Formularz Oferty'!$C$53:$G$83,5,0)),0) -> 0 | G38: 7 | H38: 0 | M38: 1 | N38: 0 | O38: 6 | P38: 0
B39: 18 | C39: PAPIER FOTOGRAFICZNY, A4, 180 g | D39: Szybkoschnący papier fotograficzny do wydruku profesjonalnej jakości fotografii. Gładkie, lśniące wykończenie zapewnia wyraźne zdjęcia o żywych kolorach. Format A4, 180 g | E39: ryza/50 arkuszy | F39: =IF('Załącznik 1 - Formularz Oferty'!$V$58=TRUE,(VLOOKUP(C39,'Załącznik 1 - Formularz Oferty'!$C$53:$G$83,5,0)),0) -> 0 | G39: 94 | H39: 0 | M39: 88 | N39: 0 | O39: 6 | P39: 0
B40: 19 | C40: PAPIER FOTOGRAFICZNY, A4, 200G, | D40: Szybkoschnący papier fotograficzny do wydruku profesjonalnej jakości fotografii. Gładkie, lśniące wykończenie zapewnia wyraźne zdjęcia o żywych kolorach. Format A4, 200g | E40: opakowanie/25 arkuszy | F40: =IF('Załącznik 1 - Formularz Oferty'!$V$58=TRUE,(VLOOKUP(C40,'Załącznik 1 - Formularz Oferty'!$C$53:$G$83,5,0)),0) -> 0 | G40: 7 | H40: 0 | M40: 1 | N40: 0 | O40: 6 | P40: 0
B41: 20 | C41: PAPIER A4 160G, BIAŁOŚĆ 169 CIE | D41: Papier przeznaczony do dwustronnych wydruków laserowych i atramentowych. Zapobiega przesiąkaniu druku. Białość: 169 wg skali białości CIE 160 g/m². Format A4 | E41: ryza/250 arkuszy | F41: =IF('Załącznik 1 - Formularz Oferty'!$V$58=TRUE,(VLOOKUP(C41,'Załącznik 1 - Formularz Oferty'!$C$53:$G$83,5,0)),0) -> 0 | G41: 7 | H41: 0 | M41: 1 | N41: 0 | O41: 6 | P41: 0
B42: 21 | C42: OKŁADKI DO DYPLOMÓW GRANAT, ROZMIAR 220 X 310 MM | D42: Okładki do certyfikatów, dyplomów, listów gratulacyjnych. Twarda oprawa o fakturze skóry. Posiadają ozdobny złoty sznureczek. Rozmiar okładki: 220 x 310 mm. Kolor granatowy | E42: opakowanie/10 sztuk | F42: =IF('Załącznik 1 - Formularz Oferty'!$V$58=TRUE,(VLOOKUP(C42,'Załącznik 1 - Formularz Oferty'!$C$53:$G$83,5,0)),0) -> 0 | G42: 56 | H42: 0 | M42: 49 | N42: 0 | O42: 6 | P42: 0 | Q42: 1 | R42: =Q42*F42 -> 0
B43: 22 | C43: PAPIER INTENSYWNY NIEBIESKI A4, 80 g | D43: Papier uniwersalny 80 g/m2, Przeznaczony do kopiarek, drukarek laserowych i atramentowych. Kolor intensywny niebieski. Format A4 | E43: ryza/500 arkuszy | F43: =IF('Załącznik 1 - Formularz Oferty'!$V$58=TRUE,(VLOOKUP(C43,'Załącznik 1 - Formularz Oferty'!$C$53:$G$83,5,0)),0) -> 0 | G43: 9 | H43: 0 | M43: 3 | N43: 0 | O43: 6 | P43: 0
B44: 23 | C44: PAPIER INTENSYWNY ZIELONY A4, 80 g | D44: Papier uniwersalny 80 g/m2, Przeznaczony do kopiarek, drukarek laserowych i atramentowych. Kolor intensywny zielony. Format A4 | E44: ryza/500 arkuszy | F44: =IF('Załącznik 1 - Formularz Oferty'!$V$58=TRUE,(VLOOKUP(C44,'Załącznik 1 - Formularz Oferty'!$C$53:$G$83,5,0)),0) -> 0 | G44: 7 | H44: 0 | M44: 1 | N44: 0 | O44: 6 | P44: 0
B45: 24 | C45: PAPIER INTENSYWNY ŻÓŁTY, A4, 80 g | D45: Papier uniwersalny 80 g/m2, Przeznaczony do kopiarek, drukarek laserowych i atramentowych. Kolor intensywny żółty. Format A4 | E45: ryza/500 arkuszy | F45: =IF('Załącznik 1 - Formularz Oferty'!$V$58=TRUE,(VLOOKUP(C45,'Załącznik 1 - Formularz Oferty'!$C$53:$G$83,5,0)),0) -> 0 | G45: 7 | H45: 0 | M45: 1 | N45: 0 | O45: 6 | P45: 0
B46: 25 | C46: PAPIER INTENSYWNY CZERWONY A4, 80g | D46: Papier uniwersalny 80 g/m2, Przeznaczony do kopiarek, drukarek laserowych i atramentowych. Kolor intensywny czerwony. Format A4 | E46: ryza/500 arkuszy | F46: =IF('Załącznik 1 - Formularz Oferty'!$V$58=TRUE,(VLOOKUP(C46,'Załącznik 1 - Formularz Oferty'!$C$53:$G$83,5,0)),0) -> 0 | G46: 11 | H46: 0 | M46: 5 | N46: 0 | O46: 6 | P46: 0
B47: 26 | C47: PAPIER MIX KOLORÓW A4, 80 g | D47: Papier uniwersalny 80 g/m2, Przeznaczony do kopiarek, drukarek laserowych i atramentowych. Mix kolorów. Format A4 | E47: ryza/500 arkuszy | F47: =IF('Załącznik 1 - Formularz Oferty'!$V$58=TRUE,(VLOOKUP(C47,'Załącznik 1 - Formularz Oferty'!$C$53:$G$83,5,0)),0) -> 0 | G47: 10 | H47: 0 | M47: 1 | N47: 0 | O47: 6 | P47: 0 | Q47: 3 | R47: =Q47*F47 -> 0
B48: 27 | C48: PAPIER A4 100G, BIAŁOŚĆ 168 CIE | D48: Papier uniwersalny 100 g/m2 klasy A, Przeznaczony do kopiarek, drukarek laserowych i atramentowych oraz do wydruków kolorowych, Białość: 168 wg skali białości CIE. Format A4 | E48: ryza/ 250 arkuszy | F48: =IF('Załącznik 1 - Formularz Oferty'!$V$58=TRUE,(VLOOKUP(C48,'Załącznik 1 - Formularz Oferty'!$C$53:$G$83,5,0)),0) -> 0 | G48: 11 | H48: 0 | M48: 5 | N48: 0 | O48: 6 | P48: 0
B49: 28 | C49: PAPIER DO DRUKAREK WIELKOFORMATOWYCH, ROLKA A1 594/175, 80 g, gilza 76 | D49: Papier standard, biały. Przeznaczony do wydruków monochromatycznych . Gramatura 80 g/m². Szerokość 594 mm. Długość 175 m. Średnica gilzy: 76 mm. Format A1 rolka | E49: rolka | F49: =IF('Załącznik 1 - Formularz Oferty'!$V$58=TRUE,(VLOOKUP(C49,'Załącznik 1 - Formularz Oferty'!$C$53:$G$83,5,0)),0) -> 0 | G49: 8 | H49: 0 | M49: 2 | N49: 0 | O49: 6 | P49: 0
B50: 29 | C50: Papier ozdobny – biały 250 g/m3 20 arkuszy | D50: papier wizytówkowy/ozdobny - np.. R20 TOP STYLE TRAD PAPIER A4 250G BIAŁY lub podobny | E50: opakowanie 20 arkuszy | F50: =IF('Załącznik 1 - Formularz Oferty'!$V$58=TRUE,(VLOOKUP(C50,'Załącznik 1 - Formularz Oferty'!$C$53:$G$83,5,0)),0) -> 0 | G50: 7 | H50: 0 | M50: 1 | N50: 0 | O50: 6 | P50: 0
B51: 30 | C51: Papier ozdobny - - kość słoniowa 250 g/m3 20 arkuszy | D51: papier wizytówkowy/ozdobny np..R20 TOP STYLE TRAD PAP A4 250G KOŚĆ SŁONIOWA lub podobny | E51: opakowanie 20 arkuszy | F51: =IF('Załącznik 1 - Formularz Oferty'!$V$58=TRUE,(VLOOKUP(C51,'Załącznik 1 - Formularz Oferty'!$C$53:$G$83,5,0)),0) -> 0 | G51: 8 | H51: 0 | M51: 2 | N51: 0 | O51: 6 | P51: 0
I52: ŁĄCZNA CENA NETTO DLA ENEA Centrum Sp. z o.o. | J52: =SUM(J22:J51) -> 0 | K52: ŁĄCZNA CENA NETTO DLA ENEA S.A. | L52: =SUM(L22:L51) -> 0 | M52: ŁĄCZNA CENA NETTO DLA ENEA Operator sp. z.o.o. | N52: =SUM(N22:N51) -> 0 | O52: ŁĄCZNA CENA NETTO DLA ENEA Serwis Sp. z o.o. | P52: =SUM(P22:P51) -> 0 | Q52: ŁĄCZNA CENA NETTO DLA ENEA Pomiary sp. z.o.o. | R52: =SUM(R22:R51) -> 0 | S52: ŁĄCZNA CENA NETTO DLA ENEA Oswietlenie Sp. z o.o. | T52: =SUM(T22:T51) -> 0
C56: miejscowość i data | F56: Pieczęć imienna i podpis przedstawiciela(i) Wykonawcy

Sheet Załącznik 6-F.O. dla Zadania 5
B1: Oznaczenie sprawy: 1400/DW00/ZU/KZ/2021/0000061751
B3: ZAŁĄCZNIK NR 6 - FORMULARZ OFERTY DLA ZADANIA 5 - Dostawa papieru do wydruku – Białystok.
C6: (pieczęć wykonawcy)
B8: Ja, niżej podpisany (My niżej podpisani):
B11: działając w imieniu i na rzecz:
B14: Składam(y) ofertę na wykonanie zamówienia, którego przedmiotem jest:
B15: Dostawa papieru do wydruku dla spółek GK ENEA
B17: Zadanie 5: Dostawa papieru do wydruku - Białystok
B19: ŁĄCZNA CENA NETTO OFERTY DLA ZADANIA 5: | D19: =SUM(H22:H495) -> 0
B21: LP | C21: Nazwa produktu | D21: Opis szczegółowy | E21: Jednostka | F21: cena jednostkowa netto | G21: Ilość | H21: Wartość | I21: ENEA Centrum Sp. z o.o. - Szacowana ilość | J21: ŁĄCZNA CENA NETTO DLA ENEA Centrum Sp. z o.o. | K21: ENEA Trading Sp. z o.o. - Szacowana ilość | L21: ŁĄCZNA CENA NETTO DLA ENEA Trading Sp. z o.o. | M21: ENEA Logistyka Sp. z o.o. - Szacowana ilość | N21: ŁĄCZNA CENA NETTO DLA ENEA Logistyka Sp. z o.o. | O21: ENEA Ciepło Sp. z o.o. - Szacowana ilość | P21: ŁĄCZNA CENA NETTO DLA ENEA Ciepło Sp. z o.o.
B22: 1 | C22: PAPIER A4 80G, BIAŁOŚĆ 166 CIE | D22: Papier uniwersalny 80 g/m2 klasy A, Przeznaczony do kopiarek, drukarek laserowych i atramentowych oraz do wydruków kolorowych, Białość: 166 wg skali białości CIE. Format A4 | E22: karton/5 ryz po 500 arkuszy | F22: =IF('Załącznik 1 - Formularz Oferty'!$V$59=TRUE,(VLOOKUP(C22,'Załącznik 1 - Formularz Oferty'!$C$53:$G$83,5,0)),0) -> 0 | G22: =I22+K22+M22+O22 -> 183 | H22: =G22*F22 -> 0 | K22: 5 | L22: =K22*F22 -> 0 | O22: 178 | P22: =O22*F22 -> 0
B23: 2 | C23: PAPIER A4 80G, BIAŁOŚĆ 146 CIE | D23: Papier uniwersalny 80 g/m² klasy C+, Przeznaczony do drukarek laserowych,kopiarek oraz faksów. Białość: 146 wg skali białości CIE. Format A4 | E23: karton/5 ryz po 500 arkuszy | F23: =IF('Załącznik 1 - Formularz Oferty'!$V$59=TRUE,(VLOOKUP(C23,'Załącznik 1 - Formularz Oferty'!$C$53:$G$83,5,0)),0) -> 0 | G23: =I23+K23+M23+O23 -> 111 | H23: 0 | I23: 10 | J23: =I23*F23 -> 0 | K23: 5 | L23: =K23*F23 -> 0 | M23: 20 | N23: =M23*F23 -> 0 | O23: 76 | P23: =O23*F23 -> 0
B24: 3 | C24: PAPIER UNIWERSALNY A5 80G BIAŁY, BIAŁOŚĆ 146 CIE | D24: Papier uniwersalny 80 g/m² klasy C+. Przeznaczony do drukarek laserowych, kopiarek oraz faksów. Białość: 146 wg skali białości CIE. Format A5 | E24: ryza/500 arkuszy | F24: =IF('Załącznik 1 - Formularz Oferty'!$V$59=TRUE,(VLOOKUP(C24,'Załącznik 1 - Formularz Oferty'!$C$53:$G$83,5,0)),0) -> 0 | G24: 5 | H24: 0 | K24: 5 | L24: 0
B25: 4 | C25: PAPIER A3 80G, BIAŁOŚĆ 146 CIE | D25: Papier uniwersalny 80 g/m² klasy C+. Przeznaczony do drukarek laserowych, kopiarek oraz faksów. Białość: 146 wg skali białości CIE. Format A3 | E25: ryza/500 arkuszy | F25: =IF('Załącznik 1 - Formularz Oferty'!$V$59=TRUE,(VLOOKUP(C25,'Załącznik 1 - Formularz Oferty'!$C$53:$G$83,5,0)),0) -> 0 | G25: 27 | H25: 0 | O25: 27 | P25: =O25*F25 -> 0
B26: 5 | C26: PAPIER SATYNOWY A4 160G BIAŁY, BIAŁOŚC 168 CIE | D26: Satynowany,biały papier przeznaczony do pełnokolorowych wydruków, nadaje się do maszyn cyfrowych,prezentacji, broszur, raportów oraz materiałów informacyjnych. Białość: 168 wg skali białości CIE. Gramatura 160 g//m². Format A4 | E26: ryza/250 arkuszy | F26: =IF('Załącznik 1 - Formularz Oferty'!$V$59=TRUE,(VLOOKUP(C26,'Załącznik 1 - Formularz Oferty'!$C$53:$G$83,5,0)),0) -> 0 | G26: 6 | H26: 0 | O26: 6 | P26: 0
B27: 6 | C27: PAPIER DO PLOTERÓW 914MMX50M 80G | D27: Uniwersalny papier do ploterów atramentowych. Biały, niepowlekany. Przeznaczony do wydruków monochromatycznych i kolorowych. Gramatura 80 g/m². Szerokość 914 mm. Długość 50 m. Średnica gilzy: 50 mm | E27: 1 rolka | F27: =IF('Załącznik 1 - Formularz Oferty'!$V$59=TRUE,(VLOOKUP(C27,'Załącznik 1 - Formularz Oferty'!$C$53:$G$83,5,0)),0) -> 0 | G27: 3 | H27: 0 | O27: 3 | P27: 0
B28: 7 | C28: PELIKAN KALKA OŁÓWKOWA NIEBIESKA A4 | D28: Kalka przebitkowa, maszynowa i do pisania odręcznego. Samoregenerująca się. Format A4. Kolor niebieski | E28: opakowanie/10 arkuszy | F28: =IF('Załącznik 1 - Formularz Oferty'!$V$59=TRUE,(VLOOKUP(C28,'Załącznik 1 - Formularz Oferty'!$C$53:$G$83,5,0)),0) -> 0 | G28: 4 | H28: =G28*F28 -> 0 | O28: 4 | P28: 0
B29: 8 | C29: PAPIER A4 160G, BIAŁOŚĆ 169 CIE | D29: Papier przeznaczony do dwustronnych wydruków laserowych i atramentowych. Zapobiega przesiąkaniu druku. Białość: 169 wg skali białości CIE 160 g/m². Format A4 | E29: ryza/250 arkuszy | F29: =IF('Załącznik 1 - Formularz Oferty'!$V$59=TRUE,(VLOOKUP(C29,'Załącznik 1 - Formularz Oferty'!$C$53:$G$83,5,0)),0) -> 0 | G29: 6 | H29: 0 | K29: 2 | L29: =K29*F29 -> 0 | O29: 4 | P29: 0
B30: 9 | C30: PAPIER MIX KOLORÓW A4, 80 g | D30: Papier uniwersalny 80 g/m2, Przeznaczony do kopiarek, drukarek laserowych i atramentowych. Mix kolorów. Format A4 | E30: ryza/500 arkuszy | F30: =IF('Załącznik 1 - Formularz Oferty'!$V$59=TRUE,(VLOOKUP(C30,'Załącznik 1 - Formularz Oferty'!$C$53:$G$83,5,0)),0) -> 0 | G30: 5 | H30: 0 | O30: 5 | P30: 0
B31: 10 | C31: PAPIER DO DRUKAREK WIELKOFORMATOWYCH, ROLKA A1 594/175, 80 g, gilza 76 | D31: Papier standard, biały. Przeznaczony do wydruków monochromatycznych . Gramatura 80 g/m². Szerokość 594 mm. Długość 175 m. Średnica gilzy: 76 mm. Format A1 rolka | E31: rolka | F31: =IF('Załącznik 1 - Formularz Oferty'!$V$59=TRUE,(VLOOKUP(C31,'Załącznik 1 - Formularz Oferty'!$C$53:$G$83,5,0)),0) -> 0 | G31: 3 | H31: 0 | O31: 3 | P31: 0
B32: 11 | C32: Papier ozdobny – biały 250 g/m3 20 arkuszy | D32: papier wizytówkowy/ozdobny - np.. R20 TOP STYLE TRAD PAPIER A4 250G BIAŁY lub podobny | E32: opakowanie 20 arkuszy | F32: =IF('Załącznik 1 - Formularz Oferty'!$V$59=TRUE,(VLOOKUP(C32,'Załącznik 1 - Formularz Oferty'!$C$53:$G$83,5,0)),0) -> 0 | G32: 1 | H32: 0 | O32: 1 | P32: 0
B33: 12 | C33: Papier ozdobny - - kość słoniowa 250 g/m3 20 arkuszy | D33: papier wizytówkowy/ozdobny np..R20 TOP STYLE TRAD PAP A4 250G KOŚĆ SŁONIOWA lub podobny | E33: opakowanie 20 arkuszy | F33: =IF('Załącznik 1 - Formularz Oferty'!$V$59=TRUE,(VLOOKUP(C33,'Załącznik 1 - Formularz Oferty'!$C$53:$G$83,5,0)),0) -> 0 | G33: 1 | H33: 0 | O33: 1 | P33: 0
I34: ŁĄCZNA CENA NETTO DLA ENEA Centrum Sp. z o.o. | J34: =SUM(J22:J33) -> 0 | K34: ŁĄCZNA CENA NETTO DLA ENEA Trading Sp. z o.o. | L34: =SUM(L22:L33) -> 0 | M34: ŁĄCZNA CENA NETTO DLA ENEA Logistyka Sp. z o.o. | N34: =SUM(N22:N33) -> 0 | O34: ŁĄCZNA CENA NETTO DLA ENEA Ciepło Sp. z o.o. | P34: =SUM(P22:P33) -> 0
C38: miejscowość i data | F38: Pieczęć imienna i podpis przedstawiciela(i) Wykonawcy

Sheet Załącznik 7-F.O. dla Zadania 6
B1: Oznaczenie sprawy: 1400/DW00/ZU/KZ/2021/0000061751
B3: ZAŁĄCZNIK NR 7 - FORMULARZ OFERTY DLA ZADANIA 6 - Dostawa papieru do wydruku – Połaniec.
C6: (pieczęć wykonawcy)
B8: Ja, niżej podpisany (My niżej podpisani):
B11: działając w imieniu i na rzecz:
B14: Składam(y) ofertę na wykonanie zamówienia, którego przedmiotem jest:
B15: Dostawa papieru do wydruku dla spółek GK ENEA
B17: Zadanie 6: Dostawa papieru do wydruku - Połaniec
B19: ŁĄCZNA CENA NETTO OFERTY DLA ZADANIA 6: | D19: =SUM(H22:H504) -> 0
B21: LP | C21: Nazwa produktu | D21: Opis szczegółowy | E21: Jednostka | F21: cena jednostkowa netto | G21: Ilość | H21: Wartość | I21: ENEA Centrum Sp. z o.o. - Szacowana ilość | J21: ŁĄCZNA CENA NETTO DLA ENEA Centrum Sp. z o.o. | K21: ENEA Elektrownia Połaniec S.A. - Szacowana ilość | L21: ŁĄCZNA CENA NETTO DLA ENEA Elektrownia Połaniec S.A. | M21: ENEA Bioenergia Sp. z o.o. - Szacowana ilość | N21: ŁĄCZNA CENA NETTO DLA ENEA Bioenergia Sp. z o.o. | O21: ENEA Trading Sp. z o.o. - Szacowana ilość | P21: ŁĄCZNA CENA NETTO DLA ENEA Trading Sp. z o.o. | Q21: ENEA Połaniec Serwis Sp. z o.o. - Szacowana ilość | R21: ŁĄCZNA CENA NETTO DLA ENEA Połaniec Serwis Sp. z o.o.
B22: 1 | C22: PAPIER A4 80G, BIAŁOŚĆ 166 CIE | D22: Papier uniwersalny 80 g/m2 klasy A, Przeznaczony do kopiarek, drukarek laserowych i atramentowych oraz do wydruków kolorowych, Białość: 166 wg skali białości CIE. Format A4 | E22: karton/5 ryz po 500 arkuszy | F22: =IF('Załącznik 1 - Formularz Oferty'!$V$60=TRUE,(VLOOKUP(C22,'Załącznik 1 - Formularz Oferty'!$C$53:$G$83,5,0)),0) -> 0 | G22: =+I22+K22+M22+O22+Q22 -> 459 | H22: =G22*F22 -> 0 | K22: 342 | L22: =K22*F22 -> 0 | M22: 100 | N22: =M22*F22 -> 0 | O22: 7 | P22: =O22*F22 -> 0 | Q22: 10 | R22: =Q22*F22 -> 0
B23: 2 | C23: PAPIER A4 80G, BIAŁOŚĆ 146 CIE | D23: Papier uniwersalny 80 g/m² klasy C+, Przeznaczony do drukarek laserowych,kopiarek oraz faksów. Białość: 146 wg skali białości CIE. Format A4 | E23: karton/5 ryz po 500 arkuszy | F23: =IF('Załącznik 1 - Formularz Oferty'!$V$60=TRUE,(VLOOKUP(C23,'Załącznik 1 - Formularz Oferty'!$C$53:$G$83,5,0)),0) -> 0 | G23: =+I23+K23+M23+O23+Q23 -> 246 | H23: =G23*F23 -> 0 | I23: 24 | J23: =I23*F23 -> 0 | K23: 15 | L23: =K23*F23 -> 0 | M23: 80 | N23: =M23*F23 -> 0 | O23: 7 | P23: =O23*F23 -> 0 | Q23: 120 | R23: =Q23*F23 -> 0
B24: 3 | C24: PAPIER UNIWERSALNY A5 80G BIAŁY, BIAŁOŚĆ 146 CIE | D24: Papier uniwersalny 80 g/m² klasy C+. Przeznaczony do drukarek laserowych, kopiarek oraz faksów. Białość: 146 wg skali białości CIE. Format A5 | E24: ryza/500 arkuszy | F24: =IF('Załącznik 1 - Formularz Oferty'!$V$60=TRUE,(VLOOKUP(C24,'Załącznik 1 - Formularz Oferty'!$C$53:$G$83,5,0)),0) -> 0 | G24: 7 | H24: 0 | O24: 7 | P24: 0
B25: 4 | C25: PAPIER A3 80G, BIAŁOŚĆ 146 CIE | D25: Papier uniwersalny 80 g/m² klasy C+. Przeznaczony do drukarek laserowych, kopiarek oraz faksów. Białość: 146 wg skali białości CIE. Format A3 | E25: ryza/500 arkuszy | F25: =IF('Załącznik 1 - Formularz Oferty'!$V$60=TRUE,(VLOOKUP(C25,'Załącznik 1 - Formularz Oferty'!$C$53:$G$83,5,0)),0) -> 0 | G25: 91 | H25: 0 | I25: 1 | J25: =I25*F25 -> 0 | K25: 30 | L25: =K25*F25 -> 0 | M25: 10 | N25: =M25*F25 -> 0 | Q25: 50 | R25: =Q25*F25 -> 0
B26: 5 | C26: PAPIER SATYNOWY A4 160G BIAŁY, BIAŁOŚC 168 CIE | D26: Satynowany,biały papier przeznaczony do pełnokolorowych wydruków, nadaje się do maszyn cyfrowych,prezentacji, broszur, raportów oraz materiałów informacyjnych. Białość: 168 wg skali białości CIE. Gramatura 160 g//m². Format A4 | E26: ryza/250 arkuszy | F26: =IF('Załącznik 1 - Formularz Oferty'!$V$60=TRUE,(VLOOKUP(C26,'Załącznik 1 - Formularz Oferty'!$C$53:$G$83,5,0)),0) -> 0 | G26: 13 | H26: 0 | K26: 6 | L26: 0 | M26: 5 | N26: 0 | Q26: 2 | R26: 0
B27: 6 | C27: PAPIER DO DRUKAREK IGŁOWYCH 240MM 1+3 O/K | D27: Papier do drukarek igłowych, wielowarstwowy o gramaturze 53-57 g/m², wytwarzany z papieru samokopiującego.Liczba warstw 1+3. Biały oryginał, żółta, zielona i różowa kopia, posiada nadruk oryginał/kopia. Format: długość 12''= 305 mm, szerokość 240 mm | E27: karton/450 składek | F27: =IF('Załącznik 1 - Formularz Oferty'!$V$60=TRUE,(VLOOKUP(C27,'Załącznik 1 - Formularz Oferty'!$C$53:$G$83,5,0)),0) -> 0 | G27: 50 | H27: 0 | M27: 50 | N27: 0
B28: 7 | C28: PAPIER DO DRUKAREK IGŁOWYCH 240MM 1+4 | D28: Papier do drukarek igłowych, wielowarstwowy o gramaturze 53-57 g/m², wytwarzany z papieru samokopiującego.Kolory kopii:1+4: żółta, zielona, żółta, różowa. Długość: 12'' = 305mm; Szerokość: 240(mm). Liczba warstw 1+4 | E28: karton/350 składek | F28: =IF('Załącznik 1 - Formularz Oferty'!$V$60=TRUE,(VLOOKUP(C28,'Załącznik 1 - Formularz Oferty'!$C$53:$G$83,5,0)),0) -> 0 | G28: 51 | H28: 0 | M28: 50 | N28: 0 | Q28: 1 | R28: =Q28*F28 -> 0
B29: 8 | C29: ROLKA PAPIEROWA 76MMX25M | D29: Rolka papierowa (offsetowa) Gwarancja: 5 lat na zdolność kopiowania papieru i 25 lat na trwałość kopii. Wymiary: 76 mm x dl. 25m | E29: opakowanie/10 sztuk | F29: =IF('Załącznik 1 - Formularz Oferty'!$V$60=TRUE,(VLOOKUP(C29,'Załącznik 1 - Formularz Oferty'!$C$53:$G$83,5,0)),0) -> 0 | G29: 201 | H29: =G29*F29 -> 0 | M29: 200 | N29: 0 | Q29: 1 | R29: 0
B30: 9 | C30: PELIKAN KALKA OŁÓWKOWA NIEBIESKA A4 | D30: Kalka przebitkowa, maszynowa i do pisania odręcznego. Samoregenerująca się. Format A4. Kolor niebieski | E30: opakowanie/10 arkuszy | F30: =IF('Załącznik 1 - Formularz Oferty'!$V$60=TRUE,(VLOOKUP(C30,'Załącznik 1 - Formularz Oferty'!$C$53:$G$83,5,0)),0) -> 0 | G30: 1 | H30: 0 | Q30: 1 | R30: 0
B31: 10 | C31: PAPIER FOTOGRAFICZNY, A4, 180 g | D31: Szybkoschnący papier fotograficzny do wydruku profesjonalnej jakości fotografii. Gładkie, lśniące wykończenie zapewnia wyraźne zdjęcia o żywych kolorach. Format A4, 180 g | E31: ryza/50 arkuszy | F31: =IF('Załącznik 1 - Formularz Oferty'!$V$60=TRUE,(VLOOKUP(C31,'Załącznik 1 - Formularz Oferty'!$C$53:$G$83,5,0)),0) -> 0 | G31: 14 | H31: 0 | K31: 2 | L31: =K31*F31 -> 0 | M31: 11 | N31: =M31*F31 -> 0 | Q31: 1 | R31: 0
B32: 11 | C32: PAPIER FOTOGRAFICZNY, A4, 200G, | D32: Szybkoschnący papier fotograficzny do wydruku profesjonalnej jakości fotografii. Gładkie, lśniące wykończenie zapewnia wyraźne zdjęcia o żywych kolorach. Format A4, 200g | E32: opakowanie/25 arkuszy | F32: =IF('Załącznik 1 - Formularz Oferty'!$V$60=TRUE,(VLOOKUP(C32,'Załącznik 1 - Formularz Oferty'!$C$53:$G$83,5,0)),0) -> 0 | G32: 1 | H32: 0 | Q32: 1 | R32: 0
B33: 12 | C33: PAPIER A4 160G, BIAŁOŚĆ 169 CIE | D33: Papier przeznaczony do dwustronnych wydruków laserowych i atramentowych. Zapobiega przesiąkaniu druku. Białość: 169 wg skali białości CIE 160 g/m². Format A4 | E33: ryza/250 arkuszy | F33: =IF('Załącznik 1 - Formularz Oferty'!$V$60=TRUE,(VLOOKUP(C33,'Załącznik 1 - Formularz Oferty'!$C$53:$G$83,5,0)),0) -> 0 | G33: 10 | H33: 0 | O33: 5 | P33: =O33*F33 -> 0 | Q33: 5 | R33: 0
B34: 13 | C34: OKŁADKI DO DYPLOMÓW GRANAT, ROZMIAR 220 X 310 MM | D34: Okładki do certyfikatów, dyplomów, listów gratulacyjnych. Twarda oprawa o fakturze skóry. Posiadają ozdobny złoty sznureczek. Rozmiar okładki: 220 x 310 mm. Kolor granatowy | E34: opakowanie/10 sztuk | F34: =IF('Załącznik 1 - Formularz Oferty'!$V$60=TRUE,(VLOOKUP(C34,'Załącznik 1 - Formularz Oferty'!$C$53:$G$83,5,0)),0) -> 0 | G34: 16 | H34: 0 | M34: 6 | N34: =M34*F34 -> 0 | Q34: 10 | R34: 0
B35: 14 | C35: PAPIER INTENSYWNY NIEBIESKI A4, 80 g | D35: Papier uniwersalny 80 g/m2, Przeznaczony do kopiarek, drukarek laserowych i atramentowych. Kolor intensywny niebieski. Format A4 | E35: ryza/500 arkuszy | F35: =IF('Załącznik 1 - Formularz Oferty'!$V$60=TRUE,(VLOOKUP(C35,'Załącznik 1 - Formularz Oferty'!$C$53:$G$83,5,0)),0) -> 0 | G35: 1 | H35: 0 | Q35: 1 | R35: 0
B36: 15 | C36: PAPIER INTENSYWNY ZIELONY A4, 80 g | D36: Papier uniwersalny 80 g/m2, Przeznaczony do kopiarek, drukarek laserowych i atramentowych. Kolor intensywny zielony. Format A4 | E36: ryza/500 arkuszy | F36: =IF('Załącznik 1 - Formularz Oferty'!$V$60=TRUE,(VLOOKUP(C36,'Załącznik 1 - Formularz Oferty'!$C$53:$G$83,5,0)),0) -> 0 | G36: 1 | H36: 0 | Q36: 1 | R36: 0
B37: 16 | C37: PAPIER INTENSYWNY ŻÓŁTY, A4, 80 g | D37: Papier uniwersalny 80 g/m2, Przeznaczony do kopiarek, drukarek laserowych i atramentowych. Kolor intensywny żółty. Format A4 | E37: ryza/500 arkuszy | F37: =IF('Załącznik 1 - Formularz Oferty'!$V$60=TRUE,(VLOOKUP(C37,'Załącznik 1 - Formularz Oferty'!$C$53:$G$83,5,0)),0) -> 0 | G37: 1 | H37: 0 | Q37: 1 | R37: 0
B38: 17 | C38: PAPIER INTENSYWNY CZERWONY A4, 80g | D38: Papier uniwersalny 80 g/m2, Przeznaczony do kopiarek, drukarek laserowych i atramentowych. Kolor intensywny czerwony. Format A4 | E38: ryza/500 arkuszy | F38: =IF('Załącznik 1 - Formularz Oferty'!$V$60=TRUE,(VLOOKUP(C38,'Załącznik 1 - Formularz Oferty'!$C$53:$G$83,5,0)),0) -> 0 | G38: 1 | H38: 0 | Q38: 1 | R38: 0
B39: 18 | C39: PAPIER MIX KOLORÓW A4, 80 g | D39: Papier uniwersalny 80 g/m2, Przeznaczony do kopiarek, drukarek laserowych i atramentowych. Mix kolorów. Format A4 | E39: ryza/500 arkuszy | F39: =IF('Załącznik 1 - Formularz Oferty'!$V$60=TRUE,(VLOOKUP(C39,'Załącznik 1 - Formularz Oferty'!$C$53:$G$83,5,0)),0) -> 0 | G39: 13 | H39: 0 | K39: 2 | L39: =K39*F39 -> 0 | M39: 10 | N39: =M39*F39 -> 0 | Q39: 1 | R39: 0
B40: 19 | C40: PAPIER A4 100G, BIAŁOŚĆ 168 CIE | D40: Papier uniwersalny 100 g/m2 klasy A, Przeznaczony do kopiarek, drukarek laserowych i atramentowych oraz do wydruków kolorowych, Białość: 168 wg skali białości CIE. Format A4 | E40: ryza/ 250 arkuszy | F40: =IF('Załącznik 1 - Formularz Oferty'!$V$60=TRUE,(VLOOKUP(C40,'Załącznik 1 - Formularz Oferty'!$C$53:$G$83,5,0)),0) -> 0 | G40: 10 | H40: 0 | I40: 5 | J40: =I40*F40 -> 0 | Q40: 5 | R40: 0
B41: 20 | C41: Papier ozdobny – biały 250 g/m3 20 arkuszy | D41: papier wizytówkowy/ozdobny - np.. R20 TOP STYLE TRAD PAPIER A4 250G BIAŁY lub podobny | E41: opakowanie 20 arkuszy | F41: =IF('Załącznik 1 - Formularz Oferty'!$V$60=TRUE,(VLOOKUP(C41,'Załącznik 1 - Formularz Oferty'!$C$53:$G$83,5,0)),0) -> 0 | G41: 3 | H41: 0 | K41: 2 | L41: =K41*F41 -> 0 | Q41: 1 | R41: 0
B42: 21 | C42: Papier ozdobny - - kość słoniowa 250 g/m3 20 arkuszy | D42: papier wizytówkowy/ozdobny np..R20 TOP STYLE TRAD PAP A4 250G KOŚĆ SŁONIOWA lub podobny | E42: opakowanie 20 arkuszy | F42: =IF('Załącznik 1 - Formularz Oferty'!$V$60=TRUE,(VLOOKUP(C42,'Załącznik 1 - Formularz Oferty'!$C$53:$G$83,5,0)),0) -> 0 | G42: 1 | H42: 0 | Q42: 1 | R42: 0
I43: ŁĄCZNA CENA NETTO DLA ENEA Centrum Sp. z o.o. | J43: =SUM(J22:J42) -> 0 | K43: ŁĄCZNA CENA NETTO DLA ENEA Elektrownia Połaniec S.A. | L43: =SUM(L22:L42) -> 0 | M43: ŁĄCZNA CENA NETTO DLA ENEA Bioenergia Sp. z o.o. | N43: =SUM(N22:N42) -> 0 | O43: ŁĄCZNA CENA NETTO DLA ENEA Trading Sp. z o.o. | P43: =SUM(P22:P42) -> 0 | Q43: ŁĄCZNA CENA NETTO DLA ENEA Połaniec Serwis Sp. z o.o. | R43: =SUM(R22:R42) -> 0
C47: miejscowość i data | F47: Pieczęć imienna i podpis przedstawiciela(i) Wykonawcy

Sheet Załącznik 8-F.O. dla Zadania 7
B1: Oznaczenie sprawy: 1400/DW00/ZU/KZ/2021/0000061751
B3: ZAŁĄCZNIK NR 8 - FORMULARZ OFERTY DLA ZADANIA 7 - Dostawa papieru do wydruku – Świerże Górne + woj. mazowieckie.
C6: (pieczęć wykonawcy)
B8: Ja, niżej podpisany (My niżej podpisani):
B11: działając w imieniu i na rzecz:
B14: Składam(y) ofertę na wykonanie zamówienia, którego przedmiotem jest:
B15: Dostawa papieru do wydruku dla spółek GK ENEA
B17: Zadanie 7: Dostawa papieru do wydruku - Świerże Górne + woj. mazowieckie
B19: ŁĄCZNA CENA NETTO OFERTY DLA ZADANIA 7: | D19: =SUM(H22:H496) -> 0
B21: LP | C21: Nazwa produktu | D21: Opis szczegółowy | E21: Jednostka | F21: cena jednostkowa netto | G21: Ilość | H21: Wartość | I21: ENEA Centrum Sp. z o.o. - Szacowana ilość | J21: ŁĄCZNA CENA NETTO DLA ENEA Centrum Sp. z o.o. | K21: ENEA S.A. - Szacowana ilość | L21: ŁĄCZNA CENA NETTO DLA ENEA S.A. | M21: ENEA Trading Sp. z o.o. - Szacowana ilość | N21: ŁĄCZNA CENA NETTO DLA ENEA Trading Sp. z o.o. | O21: ENEA Wytwarzanie Sp. z o.o. - Szacowana ilość | P21: ŁĄCZNA CENA NETTO DLA ENEA Wytwarzanie Sp. z o.o.
B22: 1 | C22: PAPIER A4 80G, BIAŁOŚĆ 166 CIE | D22: Papier uniwersalny 80 g/m2 klasy A, Przeznaczony do kopiarek, drukarek laserowych i atramentowych oraz do wydruków kolorowych, Białość: 166 wg skali białości CIE. Format A4 | E22: karton/5 ryz po 500 arkuszy | F22: =IF('Załącznik 1 - Formularz Oferty'!$V$61=TRUE,(VLOOKUP(C22,'Załącznik 1 - Formularz Oferty'!$C$53:$G$83,5,0)),0) -> 0 | G22: =I22+K22+M22+O22 -> 38 | H22: =G22*F22 -> 0 | K22: 8 | L22: =K22*F22 -> 0 | M22: 30 | N22: =M22*F22 -> 0
B23: 2 | C23: PAPIER A4 80G, BIAŁOŚĆ 146 CIE | D23: Papier uniwersalny 80 g/m² klasy C+, Przeznaczony do drukarek laserowych,kopiarek oraz faksów. Białość: 146 wg skali białości CIE. Format A4 | E23: karton/5 ryz po 500 arkuszy | F23: =IF('Załącznik 1 - Formularz Oferty'!$V$61=TRUE,(VLOOKUP(C23,'Załącznik 1 - Formularz Oferty'!$C$53:$G$83,5,0)),0) -> 0 | G23: =I23+K23+M23+O23 -> 897 | H23: =G23*F23 -> 0 | I23: 60 | J23: =I23*F23 -> 0 | K23: 7 | L23: =K23*F23 -> 0 | M23: 30 | N23: =M23*F23 -> 0 | O23: 800 | P23: =O23*F23 -> 0
B24: 3 | C24: PAPIER UNIWERSALNY A5 80G BIAŁY, BIAŁOŚĆ 146 CIE | D24: Papier uniwersalny 80 g/m² klasy C+. Przeznaczony do drukarek laserowych, kopiarek oraz faksów. Białość: 146 wg skali białości CIE. Format A5 | E24: ryza/500 arkuszy | F24: =IF('Załącznik 1 - Formularz Oferty'!$V$61=TRUE,(VLOOKUP(C24,'Załącznik 1 - Formularz Oferty'!$C$53:$G$83,5,0)),0) -> 0 | G24: 34 | H24: =G24*F24 -> 0 | K24: 4 | L24: 0 | M24: 30 | N24: 0
B25: 4 | C25: PAPIER A3 80G, BIAŁOŚĆ 146 CIE | D25: Papier uniwersalny 80 g/m² klasy C+. Przeznaczony do drukarek laserowych, kopiarek oraz faksów. Białość: 146 wg skali białości CIE. Format A3 | E25: ryza/500 arkuszy | F25: =IF('Załącznik 1 - Formularz Oferty'!$V$61=TRUE,(VLOOKUP(C25,'Załącznik 1 - Formularz Oferty'!$C$53:$G$83,5,0)),0) -> 0 | G25: 1 | H25: =G25*F25 -> 0 | I25: 1 | J25: =I25*F25 -> 0
B26: 5 | C26: PAPIER SATYNOWY A4 160G BIAŁY, BIAŁOŚC 168 CIE | D26: Satynowany,biały papier przeznaczony do pełnokolorowych wydruków, nadaje się do maszyn cyfrowych,prezentacji, broszur, raportów oraz materiałów informacyjnych. Białość: 168 wg skali białości CIE. Gramatura 160 g//m². Format A4 | E26: ryza/250 arkuszy | F26: =IF('Załącznik 1 - Formularz Oferty'!$V$61=TRUE,(VLOOKUP(C26,'Załącznik 1 - Formularz Oferty'!$C$53:$G$83,5,0)),0) -> 0 | G26: 11 | H26: =G26*F26 -> 0 | I26: 1 | J26: 0 | M26: 10 | N26: =M26*F26 -> 0
B27: 6 | C27: PAPIER A4 160G, BIAŁOŚĆ 169 CIE | D27: Papier przeznaczony do dwustronnych wydruków laserowych i atramentowych. Zapobiega przesiąkaniu druku. Białość: 169 wg skali białości CIE 160 g/m². Format A4 | E27: ryza/250 arkuszy | F27: =IF('Załącznik 1 - Formularz Oferty'!$V$61=TRUE,(VLOOKUP(C27,'Załącznik 1 - Formularz Oferty'!$C$53:$G$83,5,0)),0) -> 0 | G27: 15 | H27: =G27*F27 -> 0 | M27: 15 | N27: 0
B28: 7 | C28: PAPIER INTENSYWNY NIEBIESKI A4, 80 g | D28: Papier uniwersalny 80 g/m2, Przeznaczony do kopiarek, drukarek laserowych i atramentowych. Kolor intensywny niebieski. Format A4 | E28: ryza/500 arkuszy | F28: =IF('Załącznik 1 - Formularz Oferty'!$V$61=TRUE,(VLOOKUP(C28,'Załącznik 1 - Formularz Oferty'!$C$53:$G$83,5,0)),0) -> 0 | G28: 10 | H28: 0 | O28: 10 | P28: =O28*F28 -> 0
B29: 8 | C29: PAPIER INTENSYWNY ZIELONY A4, 80 g | D29: Papier uniwersalny 80 g/m2, Przeznaczony do kopiarek, drukarek laserowych i atramentowych. Kolor intensywny zielony. Format A4 | E29: ryza/500 arkuszy | F29: =IF('Załącznik 1 - Formularz Oferty'!$V$61=TRUE,(VLOOKUP(C29,'Załącznik 1 - Formularz Oferty'!$C$53:$G$83,5,0)),0) -> 0 | G29: 10 | H29: 0 | O29: 10 | P29: 0
B30: 9 | C30: PAPIER INTENSYWNY ŻÓŁTY, A4, 80 g | D30: Papier uniwersalny 80 g/m2, Przeznaczony do kopiarek, drukarek laserowych i atramentowych. Kolor intensywny żółty. Format A4 | E30: ryza/500 arkuszy | F30: =IF('Załącznik 1 - Formularz Oferty'!$V$61=TRUE,(VLOOKUP(C30,'Załącznik 1 - Formularz Oferty'!$C$53:$G$83,5,0)),0) -> 0 | G30: 10 | H30: 0 | O30: 10 | P30: 0
B31: 10 | C31: PAPIER INTENSYWNY CZERWONY A4, 80g | D31: Papier uniwersalny 80 g/m2, Przeznaczony do kopiarek, drukarek laserowych i atramentowych. Kolor intensywny czerwony. Format A4 | E31: ryza/500 arkuszy | F31: =IF('Załącznik 1 - Formularz Oferty'!$V$61=TRUE,(VLOOKUP(C31,'Załącznik 1 - Formularz Oferty'!$C$53:$G$83,5,0)),0) -> 0 | G31: 10 | H31: 0 | O31: 10 | P31: 0
B32: 11 | C32: PAPIER MIX KOLORÓW A4, 80 g | D32: Papier uniwersalny 80 g/m2, Przeznaczony do kopiarek, drukarek laserowych i atramentowych. Mix kolorów. Format A4 | E32: ryza/500 arkuszy | F32: =IF('Załącznik 1 - Formularz Oferty'!$V$61=TRUE,(VLOOKUP(C32,'Załącznik 1 - Formularz Oferty'!$C$53:$G$83,5,0)),0) -> 0 | G32: 5 | H32: 0 | M32: 5 | N32: =M32*F32 -> 0
B33: 12 | C33: PAPIER A4 100G, BIAŁOŚĆ 168 CIE | D33: Papier uniwersalny 100 g/m2 klasy A, Przeznaczony do kopiarek, drukarek laserowych i atramentowych oraz do wydruków kolorowych, Białość: 168 wg skali białości CIE. Format A4 | E33: ryza/ 250 arkuszy | F33: =IF('Załącznik 1 - Formularz Oferty'!$V$61=TRUE,(VLOOKUP(C33,'Załącznik 1 - Formularz Oferty'!$C$53:$G$83,5,0)),0) -> 0 | G33: 30 | H33: 0 | I33: 30 | J33: =I33*F33 -> 0
B34: 13 | C34: Papier ozdobny – biały 250 g/m3 20 arkuszy | D34: papier wizytówkowy/ozdobny - np.. R20 TOP STYLE TRAD PAPIER A4 250G BIAŁY lub podobny | E34: opakowanie 20 arkuszy | F34: =IF('Załącznik 1 - Formularz Oferty'!$V$61=TRUE,(VLOOKUP(C34,'Załącznik 1 - Formularz Oferty'!$C$53:$G$83,5,0)),0) -> 0 | G34: 23 | H34: 0 | I34: 23 | J34: 0
I35: ŁĄCZNA CENA NETTO DLA ENEA Centrum Sp. z o.o. | J35: =SUM(J22:J34) -> 0 | K35: ŁĄCZNA CENA NETTO DLA ENEA S.A. | L35: =SUM(L22:L34) -> 0 | M35: ŁĄCZNA CENA NETTO DLA ENEA Trading Sp. z o.o. | N35: =SUM(N22:N34) -> 0 | O35: ŁĄCZNA CENA NETTO DLA ENEA Wytwarzanie Sp. z o.o. | P35: =SUM(P22:P34) -> 0
C39: miejscowość i data | F39: Pieczęć imienna i podpis przedstawiciela(i) Wykonawcy

Sheet zad1 (hidden)
A1: ='Załącznik 1 - Formularz Oferty'!D19 -> Wykonawca nie składa oferty | G1: jeżeli "naście"
C2: 0-5 | D2: 6-9 | E2: 0-5 | F2: 6-9 | G2: 0-5 | H2: 6-9 | I2: dodatek | J2: sumuj te ciągi
A3: =INT(A$1/10000000) ->  | C3: =IF(AND(A3>=0,A3<=5),1,0) ->  | D3: =IF(AND(A3>=6,A3<=9),1,0) ->  | E3: =IF(A3=0,"",IF(A3=1,IF(A4=0,"dziesięć milionów ",""),IF(A3=2,"dwadzieścia ",IF(A3=3,"trzydzieści ",IF(A3=4,"czterdzieści ",IF(A3=5,"pięćdziesiąt ","")))))) ->  | F3: =IF(A3=6,"sześćdziesiąt ",IF(A3=7,"siedemdziesiąt ",IF(A3=8,"osiemdziesiąt ",IF(A3=9,"dziewięćdziesiąt ","")))) ->  | J3: =IF(C3,E3&I3,IF(D3,F3&I3,"")) -> 
A4: =INT(A$1/1000000)-A3*10 ->  | E4: =IF(A4=0,IF(AND(A3<>0,A3<>1),"milionów ",""),IF(A4=1,IF(A3=0,"jeden milion ","jeden milionów "),IF(A4=2,"dwa miliony ",IF(A4=3,"trzy miliony ",IF(A4=4,"cztery miliony ",IF(A4=5,"pięć milionów ","")))))) ->  | F4: =IF(A4=6,"sześć milionów ",IF(A4=7,"siedem milionów ",IF(A4=8,"osiem milionów ",IF(A4=9,"dziewięć milionów ","")))) ->  | G4: =IF(A4=0,"",IF(A4=1,"jedenaście milionów ",IF(A4=2,"dwanaście milionów ",IF(A4=3,"trzynaście milionów ",IF(A4=4,"czternaście milionów ",IF(A4=5,"piętnaście milionów ","")))))) ->  | H4: =IF(A4=6,"szesnaście milionów ",IF(A4=7,"siedemnaście milionów ",IF(A4=8,"osiemnaście milionów ",IF(A4=9,"dziewiętnaście milionów ","")))) ->  | J4: =IF(A3=1,IF(C4,G4,IF(D4,H4)),IF(C4,E4,IF(D4,F4,""))) -> 
A5: =INT(A$1/100000)-10*A4-100*A3 ->  | E5: =IF(A5=0,"",IF(A5=1,"sto ",IF(A5=2,"dwieście ",IF(A5=3,"trzysta ",IF(A5=4,"czterysta ",IF(A5=5,"pięćset ","")))))) ->  | F5: =IF(A5=6,"sześćset ",IF(A5=7,"siedemset ",IF(A5=8,"osiemset ",IF(A5=9,"dziewięćset ","")))) ->  | J5: =IF(C5,E5&I5,IF(D5,F5&I5,"")) -> 
A6: =INT(A$1/10000)-10*A5-100*A4-1000*A3 ->  | E6: =IF(A6=0,"",IF(A6=1,IF(A7=0,"dziesięć tysięcy ",""),IF(A6=2,"dwadzieścia ",IF(A6=3,"trzydzieści ",IF(A6=4,"czterdzieści ",IF(A6=5,"pięćdziesiąt ","")))))) ->  | F6: =IF(A6=6,"sześćdziesiąt ",IF(A6=7,"siedemdziesiąt ",IF(A6=8,"osiemdziesiąt ",IF(A6=9,"dziewięćdziesiąt ","")))) ->  | J6: =IF(C6,E6&I6,IF(D6,F6&I6,"")) -> 
A7: =INT(A$1/1000)-10*A6-100*A5-1000*A4-10000*A3 ->  | E7: =IF(A7=0,IF(OR(AND(A6<>0,A6<>1),AND(A5<>0,A6=0)),"tysięcy ",""),IF(A7=1,IF(AND(A5=0,A6=0),"jeden tysiąc ","jeden tysięcy "),IF(A7=2,"dwa tysiące ",IF(A7=3,"trzy tysiące ",IF(A7=4,"cztery tysiące ",IF(A7=5,"pięć tysięcy ","")))))) ->  | F7: =IF(A7=6,"sześć tysięcy ",IF(A7=7,"siedem tysięcy ",IF(A7=8,"osiem tysięcy ",IF(A7=9,"dziewięć tysięcy ","")))) ->  | G7: =IF(A7=0,"",IF(A7=1,"jedenaście tysięcy ",IF(A7=2,"dwanaście tysięcy ",IF(A7=3,"trzynaście tysięcy ",IF(A7=4,"czternaście tysięcy ",IF(A7=5,"piętnaście tysięcy ","")))))) ->  | H7: =IF(A7=6,"szesnaście tysięcy ",IF(A7=7,"siedemnaście tysięcy ",IF(A7=8,"osiemnaście tysięcy ",IF(A7=9,"dziewiętnaście tysięcy ","")))) ->  | J7: =IF(A6=1,IF(C7,G7,IF(D7,H7)),IF(C7,E7,IF(D7,F7,""))) -> 
A8: =INT(A$1/100)-10*A7-100*A6-1000*A5-10000*A4-100000*A3 ->  | E8: =IF(A8=0,"",IF(A8=1,"sto ",IF(A8=2,"dwieście ",IF(A8=3,"trzysta ",IF(A8=4,"czterysta ",IF(A8=5,"pięćset ","")))))) ->  | F8: =IF(A8=6,"sześćset ",IF(A8=7,"siedemset ",IF(A8=8,"osiemset ",IF(A8=9,"dziewięćset ","")))) ->  | J8: =IF(C8,E8&I8,IF(D8,F8&I8,"")) -> 
A9: =INT(A$1/10)-10*A8-100*A7-1000*A6-10000*A5-100000*A4-1000000*A3 ->  | E9: =IF(A9=0,"",IF(A9=1,IF(A10=0,"dziesięć ",""),IF(A9=2,"dwadzieścia ",IF(A9=3,"trzydzieści ",IF(A9=4,"czterdzieści ",IF(A9=5,"pięćdziesiąt ","")))))) ->  | F9: =IF(A9=6,"sześćdziesiąt ",IF(A9=7,"siedemdziesiąt ",IF(A9=8,"osiemdziesiąt ",IF(A9=9,"dziewięćdziesiąt ","")))) ->  | J9: =IF(C9,E9&I9,IF(D9,F9&I9,"")) -> 
A10: =INT(A$1)-10*A9-100*A8-1000*A7-10000*A6-100000*A5-1000000*A4-10000000*A3 ->  | E10: =IF(A10=0,"",IF(A10=1,"jeden ",IF(A10=2,"dwa ",IF(A10=3,"trzy ",IF(A10=4,"cztery ",IF(A10=5,"pięć ","")))))) ->  | F10: =IF(A10=6,"sześć ",IF(A10=7,"siedem ",IF(A10=8,"osiem ",IF(A10=9,"dziewięć ","")))) ->  | G10: =IF(A10=0,"",IF(A10=1,"jedenaście ",IF(A10=2,"dwanaście ",IF(A10=3,"trzynaście ",IF(A10=4,"czternaście ",IF(A10=5,"piętnaście ","")))))) ->  | H10: =IF(A10=6,"szesnaście ",IF(A10=7,"siedemnaście ",IF(A10=8,"osiemnaście ",IF(A10=9,"dziewiętnaście ","")))) ->  | J10: =IF(A9=1,IF(C10,G10,IF(D10,H10)),IF(C10,E10,IF(D10,F10,""))) -> 
A11: =ROUND((A1-TRUNC(A1,0))*100,0) ->  | J11: ="zł "&TEXT(A11,"00")&"/100" -> 
E12: Słownie:
A13: =TRUNC(A1,1) ->  | E13: =J3&J4&J5&J6&J7&J8&J9&J10&J11 -> 

Sheet zad2 (hidden)
A1: ='Załącznik 1 - Formularz Oferty'!D22 -> Wykonawca nie składa oferty | G1: jeżeli "naście"
C2: 0-5 | D2: 6-9 | E2: 0-5 | F2: 6-9 | G2: 0-5 | H2: 6-9 | I2: dodatek | J2: sumuj te ciągi
A3: =INT(A$1/10000000) ->  | C3: =IF(AND(A3>=0,A3<=5),1,0) ->  | D3: =IF(AND(A3>=6,A3<=9),1,0) ->  | E3: =IF(A3=0,"",IF(A3=1,IF(A4=0,"dziesięć milionów ",""),IF(A3=2,"dwadzieścia ",IF(A3=3,"trzydzieści ",IF(A3=4,"czterdzieści ",IF(A3=5,"pięćdziesiąt ","")))))) ->  | F3: =IF(A3=6,"sześćdziesiąt ",IF(A3=7,"siedemdziesiąt ",IF(A3=8,"osiemdziesiąt ",IF(A3=9,"dziewięćdziesiąt ","")))) ->  | J3: =IF(C3,E3&I3,IF(D3,F3&I3,"")) -> 
A4: =INT(A$1/1000000)-A3*10 ->  | E4: =IF(A4=0,IF(AND(A3<>0,A3<>1),"milionów ",""),IF(A4=1,IF(A3=0,"jeden milion ","jeden milionów "),IF(A4=2,"dwa miliony ",IF(A4=3,"trzy miliony ",IF(A4=4,"cztery miliony ",IF(A4=5,"pięć milionów ","")))))) ->  | F4: =IF(A4=6,"sześć milionów ",IF(A4=7,"siedem milionów ",IF(A4=8,"osiem milionów ",IF(A4=9,"dziewięć milionów ","")))) ->  | G4: =IF(A4=0,"",IF(A4=1,"jedenaście milionów ",IF(A4=2,"dwanaście milionów ",IF(A4=3,"trzynaście milionów ",IF(A4=4,"czternaście milionów ",IF(A4=5,"piętnaście milionów ","")))))) ->  | H4: =IF(A4=6,"szesnaście milionów ",IF(A4=7,"siedemnaście milionów ",IF(A4=8,"osiemnaście milionów ",IF(A4=9,"dziewiętnaście milionów ","")))) ->  | J4: =IF(A3=1,IF(C4,G4,IF(D4,H4)),IF(C4,E4,IF(D4,F4,""))) -> 
A5: =INT(A$1/100000)-10*A4-100*A3 ->  | E5: =IF(A5=0,"",IF(A5=1,"sto ",IF(A5=2,"dwieście ",IF(A5=3,"trzysta ",IF(A5=4,"czterysta ",IF(A5=5,"pięćset ","")))))) ->  | F5: =IF(A5=6,"sześćset ",IF(A5=7,"siedemset ",IF(A5=8,"osiemset ",IF(A5=9,"dziewięćset ","")))) ->  | J5: =IF(C5,E5&I5,IF(D5,F5&I5,"")) -> 
A6: =INT(A$1/10000)-10*A5-100*A4-1000*A3 ->  | E6: =IF(A6=0,"",IF(A6=1,IF(A7=0,"dziesięć tysięcy ",""),IF(A6=2,"dwadzieścia ",IF(A6=3,"trzydzieści ",IF(A6=4,"czterdzieści ",IF(A6=5,"pięćdziesiąt ","")))))) ->  | F6: =IF(A6=6,"sześćdziesiąt ",IF(A6=7,"siedemdziesiąt ",IF(A6=8,"osiemdziesiąt ",IF(A6=9,"dziewięćdziesiąt ","")))) ->  | J6: =IF(C6,E6&I6,IF(D6,F6&I6,"")) -> 
A7: =INT(A$1/1000)-10*A6-100*A5-1000*A4-10000*A3 ->  | E7: =IF(A7=0,IF(OR(AND(A6<>0,A6<>1),AND(A5<>0,A6=0)),"tysięcy ",""),IF(A7=1,IF(AND(A5=0,A6=0),"jeden tysiąc ","jeden tysięcy "),IF(A7=2,"dwa tysiące ",IF(A7=3,"trzy tysiące ",IF(A7=4,"cztery tysiące ",IF(A7=5,"pięć tysięcy ","")))))) ->  | F7: =IF(A7=6,"sześć tysięcy ",IF(A7=7,"siedem tysięcy ",IF(A7=8,"osiem tysięcy ",IF(A7=9,"dziewięć tysięcy ","")))) ->  | G7: =IF(A7=0,"",IF(A7=1,"jedenaście tysięcy ",IF(A7=2,"dwanaście tysięcy ",IF(A7=3,"trzynaście tysięcy ",IF(A7=4,"czternaście tysięcy ",IF(A7=5,"piętnaście tysięcy ","")))))) ->  | H7: =IF(A7=6,"szesnaście tysięcy ",IF(A7=7,"siedemnaście tysięcy ",IF(A7=8,"osiemnaście tysięcy ",IF(A7=9,"dziewiętnaście tysięcy ","")))) ->  | J7: =IF(A6=1,IF(C7,G7,IF(D7,H7)),IF(C7,E7,IF(D7,F7,""))) -> 
A8: =INT(A$1/100)-10*A7-100*A6-1000*A5-10000*A4-100000*A3 ->  | E8: =IF(A8=0,"",IF(A8=1,"sto ",IF(A8=2,"dwieście ",IF(A8=3,"trzysta ",IF(A8=4,"czterysta ",IF(A8=5,"pięćset ","")))))) ->  | F8: =IF(A8=6,"sześćset ",IF(A8=7,"siedemset ",IF(A8=8,"osiemset ",IF(A8=9,"dziewięćset ","")))) ->  | J8: =IF(C8,E8&I8,IF(D8,F8&I8,"")) -> 
A9: =INT(A$1/10)-10*A8-100*A7-1000*A6-10000*A5-100000*A4-1000000*A3 ->  | E9: =IF(A9=0,"",IF(A9=1,IF(A10=0,"dziesięć ",""),IF(A9=2,"dwadzieścia ",IF(A9=3,"trzydzieści ",IF(A9=4,"czterdzieści ",IF(A9=5,"pięćdziesiąt ","")))))) ->  | F9: =IF(A9=6,"sześćdziesiąt ",IF(A9=7,"siedemdziesiąt ",IF(A9=8,"osiemdziesiąt ",IF(A9=9,"dziewięćdziesiąt ","")))) ->  | J9: =IF(C9,E9&I9,IF(D9,F9&I9,"")) -> 
A10: =INT(A$1)-10*A9-100*A8-1000*A7-10000*A6-100000*A5-1000000*A4-10000000*A3 ->  | E10: =IF(A10=0,"",IF(A10=1,"jeden ",IF(A10=2,"dwa ",IF(A10=3,"trzy ",IF(A10=4,"cztery ",IF(A10=5,"pięć ","")))))) ->  | F10: =IF(A10=6,"sześć ",IF(A10=7,"siedem ",IF(A10=8,"osiem ",IF(A10=9,"dziewięć ","")))) ->  | G10: =IF(A10=0,"",IF(A10=1,"jedenaście ",IF(A10=2,"dwanaście ",IF(A10=3,"trzynaście ",IF(A10=4,"czternaście ",IF(A10=5,"piętnaście ","")))))) ->  | H10: =IF(A10=6,"szesnaście ",IF(A10=7,"siedemnaście ",IF(A10=8,"osiemnaście ",IF(A10=9,"dziewiętnaście ","")))) ->  | J10: =IF(A9=1,IF(C10,G10,IF(D10,H10)),IF(C10,E10,IF(D10,F10,""))) -> 
A11: =ROUND((A1-TRUNC(A1,0))*100,0) ->  | J11: ="zł "&TEXT(A11,"00")&"/100" -> 
E12: Słownie:
A13: =TRUNC(A1,1) ->  | E13: =J3&J4&J5&J6&J7&J8&J9&J10&J11 -> 

Sheet zad3 (hidden)
A1: ='Załącznik 1 - Formularz Oferty'!D25 -> Wykonawca nie składa oferty | G1: jeżeli "naście"
C2: 0-5 | D2: 6-9 | E2: 0-5 | F2: 6-9 | G2: 0-5 | H2: 6-9 | I2: dodatek | J2: sumuj te ciągi
A3: =INT(A$1/10000000) ->  | C3: =IF(AND(A3>=0,A3<=5),1,0) ->  | D3: =IF(AND(A3>=6,A3<=9),1,0) ->  | E3: =IF(A3=0,"",IF(A3=1,IF(A4=0,"dziesięć milionów ",""),IF(A3=2,"dwadzieścia ",IF(A3=3,"trzydzieści ",IF(A3=4,"czterdzieści ",IF(A3=5,"pięćdziesiąt ","")))))) ->  | F3: =IF(A3=6,"sześćdziesiąt ",IF(A3=7,"siedemdziesiąt ",IF(A3=8,"osiemdziesiąt ",IF(A3=9,"dziewięćdziesiąt ","")))) ->  | J3: =IF(C3,E3&I3,IF(D3,F3&I3,"")) -> 
A4: =INT(A$1/1000000)-A3*10 ->  | E4: =IF(A4=0,IF(AND(A3<>0,A3<>1),"milionów ",""),IF(A4=1,IF(A3=0,"jeden milion ","jeden milionów "),IF(A4=2,"dwa miliony ",IF(A4=3,"trzy miliony ",IF(A4=4,"cztery miliony ",IF(A4=5,"pięć milionów ","")))))) ->  | F4: =IF(A4=6,"sześć milionów ",IF(A4=7,"siedem milionów ",IF(A4=8,"osiem milionów ",IF(A4=9,"dziewięć milionów ","")))) ->  | G4: =IF(A4=0,"",IF(A4=1,"jedenaście milionów ",IF(A4=2,"dwanaście milionów ",IF(A4=3,"trzynaście milionów ",IF(A4=4,"czternaście milionów ",IF(A4=5,"piętnaście milionów ","")))))) ->  | H4: =IF(A4=6,"szesnaście milionów ",IF(A4=7,"siedemnaście milionów ",IF(A4=8,"osiemnaście milionów ",IF(A4=9,"dziewiętnaście milionów ","")))) ->  | J4: =IF(A3=1,IF(C4,G4,IF(D4,H4)),IF(C4,E4,IF(D4,F4,""))) -> 
A5: =INT(A$1/100000)-10*A4-100*A3 ->  | E5: =IF(A5=0,"",IF(A5=1,"sto ",IF(A5=2,"dwieście ",IF(A5=3,"trzysta ",IF(A5=4,"czterysta ",IF(A5=5,"pięćset ","")))))) ->  | F5: =IF(A5=6,"sześćset ",IF(A5=7,"siedemset ",IF(A5=8,"osiemset ",IF(A5=9,"dziewięćset ","")))) ->  | J5: =IF(C5,E5&I5,IF(D5,F5&I5,"")) -> 
A6: =INT(A$1/10000)-10*A5-100*A4-1000*A3 ->  | E6: =IF(A6=0,"",IF(A6=1,IF(A7=0,"dziesięć tysięcy ",""),IF(A6=2,"dwadzieścia ",IF(A6=3,"trzydzieści ",IF(A6=4,"czterdzieści ",IF(A6=5,"pięćdziesiąt ","")))))) ->  | F6: =IF(A6=6,"sześćdziesiąt ",IF(A6=7,"siedemdziesiąt ",IF(A6=8,"osiemdziesiąt ",IF(A6=9,"dziewięćdziesiąt ","")))) ->  | J6: =IF(C6,E6&I6,IF(D6,F6&I6,"")) -> 
A7: =INT(A$1/1000)-10*A6-100*A5-1000*A4-10000*A3 ->  | E7: =IF(A7=0,IF(OR(AND(A6<>0,A6<>1),AND(A5<>0,A6=0)),"tysięcy ",""),IF(A7=1,IF(AND(A5=0,A6=0),"jeden tysiąc ","jeden tysięcy "),IF(A7=2,"dwa tysiące ",IF(A7=3,"trzy tysiące ",IF(A7=4,"cztery tysiące ",IF(A7=5,"pięć tysięcy ","")))))) ->  | F7: =IF(A7=6,"sześć tysięcy ",IF(A7=7,"siedem tysięcy ",IF(A7=8,"osiem tysięcy ",IF(A7=9,"dziewięć tysięcy ","")))) ->  | G7: =IF(A7=0,"",IF(A7=1,"jedenaście tysięcy ",IF(A7=2,"dwanaście tysięcy ",IF(A7=3,"trzynaście tysięcy ",IF(A7=4,"czternaście tysięcy ",IF(A7=5,"piętnaście tysięcy ","")))))) ->  | H7: =IF(A7=6,"szesnaście tysięcy ",IF(A7=7,"siedemnaście tysięcy ",IF(A7=8,"osiemnaście tysięcy ",IF(A7=9,"dziewiętnaście tysięcy ","")))) ->  | J7: =IF(A6=1,IF(C7,G7,IF(D7,H7)),IF(C7,E7,IF(D7,F7,""))) -> 
A8: =INT(A$1/100)-10*A7-100*A6-1000*A5-10000*A4-100000*A3 ->  | E8: =IF(A8=0,"",IF(A8=1,"sto ",IF(A8=2,"dwieście ",IF(A8=3,"trzysta ",IF(A8=4,"czterysta ",IF(A8=5,"pięćset ","")))))) ->  | F8: =IF(A8=6,"sześćset ",IF(A8=7,"siedemset ",IF(A8=8,"osiemset ",IF(A8=9,"dziewięćset ","")))) ->  | J8: =IF(C8,E8&I8,IF(D8,F8&I8,"")) -> 
A9: =INT(A$1/10)-10*A8-100*A7-1000*A6-10000*A5-100000*A4-1000000*A3 ->  | E9: =IF(A9=0,"",IF(A9=1,IF(A10=0,"dziesięć ",""),IF(A9=2,"dwadzieścia ",IF(A9=3,"trzydzieści ",IF(A9=4,"czterdzieści ",IF(A9=5,"pięćdziesiąt ","")))))) ->  | F9: =IF(A9=6,"sześćdziesiąt ",IF(A9=7,"siedemdziesiąt ",IF(A9=8,"osiemdziesiąt ",IF(A9=9,"dziewięćdziesiąt ","")))) ->  | J9: =IF(C9,E9&I9,IF(D9,F9&I9,"")) -> 
A10: =INT(A$1)-10*A9-100*A8-1000*A7-10000*A6-100000*A5-1000000*A4-10000000*A3 ->  | E10: =IF(A10=0,"",IF(A10=1,"jeden ",IF(A10=2,"dwa ",IF(A10=3,"trzy ",IF(A10=4,"cztery ",IF(A10=5,"pięć ","")))))) ->  | F10: =IF(A10=6,"sześć ",IF(A10=7,"siedem ",IF(A10=8,"osiem ",IF(A10=9,"dziewięć ","")))) ->  | G10: =IF(A10=0,"",IF(A10=1,"jedenaście ",IF(A10=2,"dwanaście ",IF(A10=3,"trzynaście ",IF(A10=4,"czternaście ",IF(A10=5,"piętnaście ","")))))) ->  | H10: =IF(A10=6,"szesnaście ",IF(A10=7,"siedemnaście ",IF(A10=8,"osiemnaście ",IF(A10=9,"dziewiętnaście ","")))) ->  | J10: =IF(A9=1,IF(C10,G10,IF(D10,H10)),IF(C10,E10,IF(D10,F10,""))) -> 
A11: =ROUND((A1-TRUNC(A1,0))*100,0) ->  | J11: ="zł "&TEXT(A11,"00")&"/100" -> 
E12: Słownie:
A13: =TRUNC(A1,1) ->  | E13: =J3&J4&J5&J6&J7&J8&J9&J10&J11 -> 

Sheet zad4 (hidden)
A1: ='Załącznik 1 - Formularz Oferty'!D28 -> Wykonawca nie składa oferty | G1: jeżeli "naście"
C2: 0-5 | D2: 6-9 | E2: 0-5 | F2: 6-9 | G2: 0-5 | H2: 6-9 | I2: dodatek | J2: sumuj te ciągi
A3: =INT(A$1/10000000) ->  | C3: =IF(AND(A3>=0,A3<=5),1,0) ->  | D3: =IF(AND(A3>=6,A3<=9),1,0) ->  | E3: =IF(A3=0,"",IF(A3=1,IF(A4=0,"dziesięć milionów ",""),IF(A3=2,"dwadzieścia ",IF(A3=3,"trzydzieści ",IF(A3=4,"czterdzieści ",IF(A3=5,"pięćdziesiąt ","")))))) ->  | F3: =IF(A3=6,"sześćdziesiąt ",IF(A3=7,"siedemdziesiąt ",IF(A3=8,"osiemdziesiąt ",IF(A3=9,"dziewięćdziesiąt ","")))) ->  | J3: =IF(C3,E3&I3,IF(D3,F3&I3,"")) -> 
A4: =INT(A$1/1000000)-A3*10 ->  | E4: =IF(A4=0,IF(AND(A3<>0,A3<>1),"milionów ",""),IF(A4=1,IF(A3=0,"jeden milion ","jeden milionów "),IF(A4=2,"dwa miliony ",IF(A4=3,"trzy miliony ",IF(A4=4,"cztery miliony ",IF(A4=5,"pięć milionów ","")))))) ->  | F4: =IF(A4=6,"sześć milionów ",IF(A4=7,"siedem milionów ",IF(A4=8,"osiem milionów ",IF(A4=9,"dziewięć milionów ","")))) ->  | G4: =IF(A4=0,"",IF(A4=1,"jedenaście milionów ",IF(A4=2,"dwanaście milionów ",IF(A4=3,"trzynaście milionów ",IF(A4=4,"czternaście milionów ",IF(A4=5,"piętnaście milionów ","")))))) ->  | H4: =IF(A4=6,"szesnaście milionów ",IF(A4=7,"siedemnaście milionów ",IF(A4=8,"osiemnaście milionów ",IF(A4=9,"dziewiętnaście milionów ","")))) ->  | J4: =IF(A3=1,IF(C4,G4,IF(D4,H4)),IF(C4,E4,IF(D4,F4,""))) -> 
A5: =INT(A$1/100000)-10*A4-100*A3 ->  | E5: =IF(A5=0,"",IF(A5=1,"sto ",IF(A5=2,"dwieście ",IF(A5=3,"trzysta ",IF(A5=4,"czterysta ",IF(A5=5,"pięćset ","")))))) ->  | F5: =IF(A5=6,"sześćset ",IF(A5=7,"siedemset ",IF(A5=8,"osiemset ",IF(A5=9,"dziewięćset ","")))) ->  | J5: =IF(C5,E5&I5,IF(D5,F5&I5,"")) -> 
A6: =INT(A$1/10000)-10*A5-100*A4-1000*A3 ->  | E6: =IF(A6=0,"",IF(A6=1,IF(A7=0,"dziesięć tysięcy ",""),IF(A6=2,"dwadzieścia ",IF(A6=3,"trzydzieści ",IF(A6=4,"czterdzieści ",IF(A6=5,"pięćdziesiąt ","")))))) ->  | F6: =IF(A6=6,"sześćdziesiąt ",IF(A6=7,"siedemdziesiąt ",IF(A6=8,"osiemdziesiąt ",IF(A6=9,"dziewięćdziesiąt ","")))) ->  | J6: =IF(C6,E6&I6,IF(D6,F6&I6,"")) -> 
A7: =INT(A$1/1000)-10*A6-100*A5-1000*A4-10000*A3 ->  | E7: =IF(A7=0,IF(OR(AND(A6<>0,A6<>1),AND(A5<>0,A6=0)),"tysięcy ",""),IF(A7=1,IF(AND(A5=0,A6=0),"jeden tysiąc ","jeden tysięcy "),IF(A7=2,"dwa tysiące ",IF(A7=3,"trzy tysiące ",IF(A7=4,"cztery tysiące ",IF(A7=5,"pięć tysięcy ","")))))) ->  | F7: =IF(A7=6,"sześć tysięcy ",IF(A7=7,"siedem tysięcy ",IF(A7=8,"osiem tysięcy ",IF(A7=9,"dziewięć tysięcy ","")))) ->  | G7: =IF(A7=0,"",IF(A7=1,"jedenaście tysięcy ",IF(A7=2,"dwanaście tysięcy ",IF(A7=3,"trzynaście tysięcy ",IF(A7=4,"czternaście tysięcy ",IF(A7=5,"piętnaście tysięcy ","")))))) ->  | H7: =IF(A7=6,"szesnaście tysięcy ",IF(A7=7,"siedemnaście tysięcy ",IF(A7=8,"osiemnaście tysięcy ",IF(A7=9,"dziewiętnaście tysięcy ","")))) ->  | J7: =IF(A6=1,IF(C7,G7,IF(D7,H7)),IF(C7,E7,IF(D7,F7,""))) -> 
A8: =INT(A$1/100)-10*A7-100*A6-1000*A5-10000*A4-100000*A3 ->  | E8: =IF(A8=0,"",IF(A8=1,"sto ",IF(A8=2,"dwieście ",IF(A8=3,"trzysta ",IF(A8=4,"czterysta ",IF(A8=5,"pięćset ","")))))) ->  | F8: =IF(A8=6,"sześćset ",IF(A8=7,"siedemset ",IF(A8=8,"osiemset ",IF(A8=9,"dziewięćset ","")))) ->  | J8: =IF(C8,E8&I8,IF(D8,F8&I8,"")) -> 
A9: =INT(A$1/10)-10*A8-100*A7-1000*A6-10000*A5-100000*A4-1000000*A3 ->  | E9: =IF(A9=0,"",IF(A9=1,IF(A10=0,"dziesięć ",""),IF(A9=2,"dwadzieścia ",IF(A9=3,"trzydzieści ",IF(A9=4,"czterdzieści ",IF(A9=5,"pięćdziesiąt ","")))))) ->  | F9: =IF(A9=6,"sześćdziesiąt ",IF(A9=7,"siedemdziesiąt ",IF(A9=8,"osiemdziesiąt ",IF(A9=9,"dziewięćdziesiąt ","")))) ->  | J9: =IF(C9,E9&I9,IF(D9,F9&I9,"")) -> 
A10: =INT(A$1)-10*A9-100*A8-1000*A7-10000*A6-100000*A5-1000000*A4-10000000*A3 ->  | E10: =IF(A10=0,"",IF(A10=1,"jeden ",IF(A10=2,"dwa ",IF(A10=3,"trzy ",IF(A10=4,"cztery ",IF(A10=5,"pięć ","")))))) ->  | F10: =IF(A10=6,"sześć ",IF(A10=7,"siedem ",IF(A10=8,"osiem ",IF(A10=9,"dziewięć ","")))) ->  | G10: =IF(A10=0,"",IF(A10=1,"jedenaście ",IF(A10=2,"dwanaście ",IF(A10=3,"trzynaście ",IF(A10=4,"czternaście ",IF(A10=5,"piętnaście ","")))))) ->  | H10: =IF(A10=6,"szesnaście ",IF(A10=7,"siedemnaście ",IF(A10=8,"osiemnaście ",IF(A10=9,"dziewiętnaście ","")))) ->  | J10: =IF(A9=1,IF(C10,G10,IF(D10,H10)),IF(C10,E10,IF(D10,F10,""))) -> 
A11: =ROUND((A1-TRUNC(A1,0))*100,0) ->  | J11: ="zł "&TEXT(A11,"00")&"/100" -> 
E12: Słownie:
A13: =TRUNC(A1,1) ->  | E13: =J3&J4&J5&J6&J7&J8&J9&J10&J11 -> 

Sheet zad5 (hidden)
A1: ='Załącznik 1 - Formularz Oferty'!D31 -> Wykonawca nie składa oferty | G1: jeżeli "naście"
C2: 0-5 | D2: 6-9 | E2: 0-5 | F2: 6-9 | G2: 0-5 | H2: 6-9 | I2: dodatek | J2: sumuj te ciągi
A3: =INT(A$1/10000000) ->  | C3: =IF(AND(A3>=0,A3<=5),1,0) ->  | D3: =IF(AND(A3>=6,A3<=9),1,0) ->  | E3: =IF(A3=0,"",IF(A3=1,IF(A4=0,"dziesięć milionów ",""),IF(A3=2,"dwadzieścia ",IF(A3=3,"trzydzieści ",IF(A3=4,"czterdzieści ",IF(A3=5,"pięćdziesiąt ","")))))) ->  | F3: =IF(A3=6,"sześćdziesiąt ",IF(A3=7,"siedemdziesiąt ",IF(A3=8,"osiemdziesiąt ",IF(A3=9,"dziewięćdziesiąt ","")))) ->  | J3: =IF(C3,E3&I3,IF(D3,F3&I3,"")) -> 
A4: =INT(A$1/1000000)-A3*10 ->  | E4: =IF(A4=0,IF(AND(A3<>0,A3<>1),"milionów ",""),IF(A4=1,IF(A3=0,"jeden milion ","jeden milionów "),IF(A4=2,"dwa miliony ",IF(A4=3,"trzy miliony ",IF(A4=4,"cztery miliony ",IF(A4=5,"pięć milionów ","")))))) ->  | F4: =IF(A4=6,"sześć milionów ",IF(A4=7,"siedem milionów ",IF(A4=8,"osiem milionów ",IF(A4=9,"dziewięć milionów ","")))) ->  | G4: =IF(A4=0,"",IF(A4=1,"jedenaście milionów ",IF(A4=2,"dwanaście milionów ",IF(A4=3,"trzynaście milionów ",IF(A4=4,"czternaście milionów ",IF(A4=5,"piętnaście milionów ","")))))) ->  | H4: =IF(A4=6,"szesnaście milionów ",IF(A4=7,"siedemnaście milionów ",IF(A4=8,"osiemnaście milionów ",IF(A4=9,"dziewiętnaście milionów ","")))) ->  | J4: =IF(A3=1,IF(C4,G4,IF(D4,H4)),IF(C4,E4,IF(D4,F4,""))) -> 
A5: =INT(A$1/100000)-10*A4-100*A3 ->  | E5: =IF(A5=0,"",IF(A5=1,"sto ",IF(A5=2,"dwieście ",IF(A5=3,"trzysta ",IF(A5=4,"czterysta ",IF(A5=5,"pięćset ","")))))) ->  | F5: =IF(A5=6,"sześćset ",IF(A5=7,"siedemset ",IF(A5=8,"osiemset ",IF(A5=9,"dziewięćset ","")))) ->  | J5: =IF(C5,E5&I5,IF(D5,F5&I5,"")) -> 
A6: =INT(A$1/10000)-10*A5-100*A4-1000*A3 ->  | E6: =IF(A6=0,"",IF(A6=1,IF(A7=0,"dziesięć tysięcy ",""),IF(A6=2,"dwadzieścia ",IF(A6=3,"trzydzieści ",IF(A6=4,"czterdzieści ",IF(A6=5,"pięćdziesiąt ","")))))) ->  | F6: =IF(A6=6,"sześćdziesiąt ",IF(A6=7,"siedemdziesiąt ",IF(A6=8,"osiemdziesiąt ",IF(A6=9,"dziewięćdziesiąt ","")))) ->  | J6: =IF(C6,E6&I6,IF(D6,F6&I6,"")) -> 
A7: =INT(A$1/1000)-10*A6-100*A5-1000*A4-10000*A3 ->  | E7: =IF(A7=0,IF(OR(AND(A6<>0,A6<>1),AND(A5<>0,A6=0)),"tysięcy ",""),IF(A7=1,IF(AND(A5=0,A6=0),"jeden tysiąc ","jeden tysięcy "),IF(A7=2,"dwa tysiące ",IF(A7=3,"trzy tysiące ",IF(A7=4,"cztery tysiące ",IF(A7=5,"pięć tysięcy ","")))))) ->  | F7: =IF(A7=6,"sześć tysięcy ",IF(A7=7,"siedem tysięcy ",IF(A7=8,"osiem tysięcy ",IF(A7=9,"dziewięć tysięcy ","")))) ->  | G7: =IF(A7=0,"",IF(A7=1,"jedenaście tysięcy ",IF(A7=2,"dwanaście tysięcy ",IF(A7=3,"trzynaście tysięcy ",IF(A7=4,"czternaście tysięcy ",IF(A7=5,"piętnaście tysięcy ","")))))) ->  | H7: =IF(A7=6,"szesnaście tysięcy ",IF(A7=7,"siedemnaście tysięcy ",IF(A7=8,"osiemnaście tysięcy ",IF(A7=9,"dziewiętnaście tysięcy ","")))) ->  | J7: =IF(A6=1,IF(C7,G7,IF(D7,H7)),IF(C7,E7,IF(D7,F7,""))) -> 
A8: =INT(A$1/100)-10*A7-100*A6-1000*A5-10000*A4-100000*A3 ->  | E8: =IF(A8=0,"",IF(A8=1,"sto ",IF(A8=2,"dwieście ",IF(A8=3,"trzysta ",IF(A8=4,"czterysta ",IF(A8=5,"pięćset ","")))))) ->  | F8: =IF(A8=6,"sześćset ",IF(A8=7,"siedemset ",IF(A8=8,"osiemset ",IF(A8=9,"dziewięćset ","")))) ->  | J8: =IF(C8,E8&I8,IF(D8,F8&I8,"")) -> 
A9: =INT(A$1/10)-10*A8-100*A7-1000*A6-10000*A5-100000*A4-1000000*A3 ->  | E9: =IF(A9=0,"",IF(A9=1,IF(A10=0,"dziesięć ",""),IF(A9=2,"dwadzieścia ",IF(A9=3,"trzydzieści ",IF(A9=4,"czterdzieści ",IF(A9=5,"pięćdziesiąt ","")))))) ->  | F9: =IF(A9=6,"sześćdziesiąt ",IF(A9=7,"siedemdziesiąt ",IF(A9=8,"osiemdziesiąt ",IF(A9=9,"dziewięćdziesiąt ","")))) ->  | J9: =IF(C9,E9&I9,IF(D9,F9&I9,"")) -> 
A10: =INT(A$1)-10*A9-100*A8-1000*A7-10000*A6-100000*A5-1000000*A4-10000000*A3 ->  | E10: =IF(A10=0,"",IF(A10=1,"jeden ",IF(A10=2,"dwa ",IF(A10=3,"trzy ",IF(A10=4,"cztery ",IF(A10=5,"pięć ","")))))) ->  | F10: =IF(A10=6,"sześć ",IF(A10=7,"siedem ",IF(A10=8,"osiem ",IF(A10=9,"dziewięć ","")))) ->  | G10: =IF(A10=0,"",IF(A10=1,"jedenaście ",IF(A10=2,"dwanaście ",IF(A10=3,"trzynaście ",IF(A10=4,"czternaście ",IF(A10=5,"piętnaście ","")))))) ->  | H10: =IF(A10=6,"szesnaście ",IF(A10=7,"siedemnaście ",IF(A10=8,"osiemnaście ",IF(A10=9,"dziewiętnaście ","")))) ->  | J10: =IF(A9=1,IF(C10,G10,IF(D10,H10)),IF(C10,E10,IF(D10,F10,""))) -> 
A11: =ROUND((A1-TRUNC(A1,0))*100,0) ->  | J11: ="zł "&TEXT(A11,"00")&"/100" -> 
E12: Słownie:
A13: =TRUNC(A1,1) ->  | E13: =J3&J4&J5&J6&J7&J8&J9&J10&J11 -> 

Sheet zad6 (hidden)
A1: ='Załącznik 1 - Formularz Oferty'!D34 -> Wykonawca nie składa oferty | G1: jeżeli "naście"
C2: 0-5 | D2: 6-9 | E2: 0-5 | F2: 6-9 | G2: 0-5 | H2: 6-9 | I2: dodatek | J2: sumuj te ciągi
A3: =INT(A$1/10000000) ->  | C3: =IF(AND(A3>=0,A3<=5),1,0) ->  | D3: =IF(AND(A3>=6,A3<=9),1,0) ->  | E3: =IF(A3=0,"",IF(A3=1,IF(A4=0,"dziesięć milionów ",""),IF(A3=2,"dwadzieścia ",IF(A3=3,"trzydzieści ",IF(A3=4,"czterdzieści ",IF(A3=5,"pięćdziesiąt ","")))))) ->  | F3: =IF(A3=6,"sześćdziesiąt ",IF(A3=7,"siedemdziesiąt ",IF(A3=8,"osiemdziesiąt ",IF(A3=9,"dziewięćdziesiąt ","")))) ->  | J3: =IF(C3,E3&I3,IF(D3,F3&I3,"")) -> 
A4: =INT(A$1/1000000)-A3*10 ->  | E4: =IF(A4=0,IF(AND(A3<>0,A3<>1),"milionów ",""),IF(A4=1,IF(A3=0,"jeden milion ","jeden milionów "),IF(A4=2,"dwa miliony ",IF(A4=3,"trzy miliony ",IF(A4=4,"cztery miliony ",IF(A4=5,"pięć milionów ","")))))) ->  | F4: =IF(A4=6,"sześć milionów ",IF(A4=7,"siedem milionów ",IF(A4=8,"osiem milionów ",IF(A4=9,"dziewięć milionów ","")))) ->  | G4: =IF(A4=0,"",IF(A4=1,"jedenaście milionów ",IF(A4=2,"dwanaście milionów ",IF(A4=3,"trzynaście milionów ",IF(A4=4,"czternaście milionów ",IF(A4=5,"piętnaście milionów ","")))))) ->  | H4: =IF(A4=6,"szesnaście milionów ",IF(A4=7,"siedemnaście milionów ",IF(A4=8,"osiemnaście milionów ",IF(A4=9,"dziewiętnaście milionów ","")))) ->  | J4: =IF(A3=1,IF(C4,G4,IF(D4,H4)),IF(C4,E4,IF(D4,F4,""))) -> 
A5: =INT(A$1/100000)-10*A4-100*A3 ->  | E5: =IF(A5=0,"",IF(A5=1,"sto ",IF(A5=2,"dwieście ",IF(A5=3,"trzysta ",IF(A5=4,"czterysta ",IF(A5=5,"pięćset ","")))))) ->  | F5: =IF(A5=6,"sześćset ",IF(A5=7,"siedemset ",IF(A5=8,"osiemset ",IF(A5=9,"dziewięćset ","")))) ->  | J5: =IF(C5,E5&I5,IF(D5,F5&I5,"")) -> 
A6: =INT(A$1/10000)-10*A5-100*A4-1000*A3 ->  | E6: =IF(A6=0,"",IF(A6=1,IF(A7=0,"dziesięć tysięcy ",""),IF(A6=2,"dwadzieścia ",IF(A6=3,"trzydzieści ",IF(A6=4,"czterdzieści ",IF(A6=5,"pięćdziesiąt ","")))))) ->  | F6: =IF(A6=6,"sześćdziesiąt ",IF(A6=7,"siedemdziesiąt ",IF(A6=8,"osiemdziesiąt ",IF(A6=9,"dziewięćdziesiąt ","")))) ->  | J6: =IF(C6,E6&I6,IF(D6,F6&I6,"")) -> 
A7: =INT(A$1/1000)-10*A6-100*A5-1000*A4-10000*A3 ->  | E7: =IF(A7=0,IF(OR(AND(A6<>0,A6<>1),AND(A5<>0,A6=0)),"tysięcy ",""),IF(A7=1,IF(AND(A5=0,A6=0),"jeden tysiąc ","jeden tysięcy "),IF(A7=2,"dwa tysiące ",IF(A7=3,"trzy tysiące ",IF(A7=4,"cztery tysiące ",IF(A7=5,"pięć tysięcy ","")))))) ->  | F7: =IF(A7=6,"sześć tysięcy ",IF(A7=7,"siedem tysięcy ",IF(A7=8,"osiem tysięcy ",IF(A7=9,"dziewięć tysięcy ","")))) ->  | G7: =IF(A7=0,"",IF(A7=1,"jedenaście tysięcy ",IF(A7=2,"dwanaście tysięcy ",IF(A7=3,"trzynaście tysięcy ",IF(A7=4,"czternaście tysięcy ",IF(A7=5,"piętnaście tysięcy ","")))))) ->  | H7: =IF(A7=6,"szesnaście tysięcy ",IF(A7=7,"siedemnaście tysięcy ",IF(A7=8,"osiemnaście tysięcy ",IF(A7=9,"dziewiętnaście tysięcy ","")))) ->  | J7: =IF(A6=1,IF(C7,G7,IF(D7,H7)),IF(C7,E7,IF(D7,F7,""))) -> 
A8: =INT(A$1/100)-10*A7-100*A6-1000*A5-10000*A4-100000*A3 ->  | E8: =IF(A8=0,"",IF(A8=1,"sto ",IF(A8=2,"dwieście ",IF(A8=3,"trzysta ",IF(A8=4,"czterysta ",IF(A8=5,"pięćset ","")))))) ->  | F8: =IF(A8=6,"sześćset ",IF(A8=7,"siedemset ",IF(A8=8,"osiemset ",IF(A8=9,"dziewięćset ","")))) ->  | J8: =IF(C8,E8&I8,IF(D8,F8&I8,"")) -> 
A9: =INT(A$1/10)-10*A8-100*A7-1000*A6-10000*A5-100000*A4-1000000*A3 ->  | E9: =IF(A9=0,"",IF(A9=1,IF(A10=0,"dziesięć ",""),IF(A9=2,"dwadzieścia ",IF(A9=3,"trzydzieści ",IF(A9=4,"czterdzieści ",IF(A9=5,"pięćdziesiąt ","")))))) ->  | F9: =IF(A9=6,"sześćdziesiąt ",IF(A9=7,"siedemdziesiąt ",IF(A9=8,"osiemdziesiąt ",IF(A9=9,"dziewięćdziesiąt ","")))) ->  | J9: =IF(C9,E9&I9,IF(D9,F9&I9,"")) -> 
A10: =INT(A$1)-10*A9-100*A8-1000*A7-10000*A6-100000*A5-1000000*A4-10000000*A3 ->  | E10: =IF(A10=0,"",IF(A10=1,"jeden ",IF(A10=2,"dwa ",IF(A10=3,"trzy ",IF(A10=4,"cztery ",IF(A10=5,"pięć ","")))))) ->  | F10: =IF(A10=6,"sześć ",IF(A10=7,"siedem ",IF(A10=8,"osiem ",IF(A10=9,"dziewięć ","")))) ->  | G10: =IF(A10=0,"",IF(A10=1,"jedenaście ",IF(A10=2,"dwanaście ",IF(A10=3,"trzynaście ",IF(A10=4,"czternaście ",IF(A10=5,"piętnaście ","")))))) ->  | H10: =IF(A10=6,"szesnaście ",IF(A10=7,"siedemnaście ",IF(A10=8,"osiemnaście ",IF(A10=9,"dziewiętnaście ","")))) ->  | J10: =IF(A9=1,IF(C10,G10,IF(D10,H10)),IF(C10,E10,IF(D10,F10,""))) -> 
A11: =ROUND((A1-TRUNC(A1,0))*100,0) ->  | J11: ="zł "&TEXT(A11,"00")&"/100" -> 
E12: Słownie:
A13: =TRUNC(A1,1) ->  | E13: =J3&J4&J5&J6&J7&J8&J9&J10&J11 -> 

Sheet zad7 (hidden)
A1: ='Załącznik 1 - Formularz Oferty'!D37 -> Wykonawca nie składa oferty | G1: jeżeli "naście"
C2: 0-5 | D2: 6-9 | E2: 0-5 | F2: 6-9 | G2: 0-5 | H2: 6-9 | I2: dodatek | J2: sumuj te ciągi
A3: =INT(A$1/10000000) ->  | C3: =IF(AND(A3>=0,A3<=5),1,0) ->  | D3: =IF(AND(A3>=6,A3<=9),1,0) ->  | E3: =IF(A3=0,"",IF(A3=1,IF(A4=0,"dziesięć milionów ",""),IF(A3=2,"dwadzieścia ",IF(A3=3,"trzydzieści ",IF(A3=4,"czterdzieści ",IF(A3=5,"pięćdziesiąt ","")))))) ->  | F3: =IF(A3=6,"sześćdziesiąt ",IF(A3=7,"siedemdziesiąt ",IF(A3=8,"osiemdziesiąt ",IF(A3=9,"dziewięćdziesiąt ","")))) ->  | J3: =IF(C3,E3&I3,IF(D3,F3&I3,"")) -> 
A4: =INT(A$1/1000000)-A3*10 ->  | E4: =IF(A4=0,IF(AND(A3<>0,A3<>1),"milionów ",""),IF(A4=1,IF(A3=0,"jeden milion ","jeden milionów "),IF(A4=2,"dwa miliony ",IF(A4=3,"trzy miliony ",IF(A4=4,"cztery miliony ",IF(A4=5,"pięć milionów ","")))))) ->  | F4: =IF(A4=6,"sześć milionów ",IF(A4=7,"siedem milionów ",IF(A4=8,"osiem milionów ",IF(A4=9,"dziewięć milionów ","")))) ->  | G4: =IF(A4=0,"",IF(A4=1,"jedenaście milionów ",IF(A4=2,"dwanaście milionów ",IF(A4=3,"trzynaście milionów ",IF(A4=4,"czternaście milionów ",IF(A4=5,"piętnaście milionów ","")))))) ->  | H4: =IF(A4=6,"szesnaście milionów ",IF(A4=7,"siedemnaście milionów ",IF(A4=8,"osiemnaście milionów ",IF(A4=9,"dziewiętnaście milionów ","")))) ->  | J4: =IF(A3=1,IF(C4,G4,IF(D4,H4)),IF(C4,E4,IF(D4,F4,""))) -> 
A5: =INT(A$1/100000)-10*A4-100*A3 ->  | E5: =IF(A5=0,"",IF(A5=1,"sto ",IF(A5=2,"dwieście ",IF(A5=3,"trzysta ",IF(A5=4,"czterysta ",IF(A5=5,"pięćset ","")))))) ->  | F5: =IF(A5=6,"sześćset ",IF(A5=7,"siedemset ",IF(A5=8,"osiemset ",IF(A5=9,"dziewięćset ","")))) ->  | J5: =IF(C5,E5&I5,IF(D5,F5&I5,"")) -> 
A6: =INT(A$1/10000)-10*A5-100*A4-1000*A3 ->  | E6: =IF(A6=0,"",IF(A6=1,IF(A7=0,"dziesięć tysięcy ",""),IF(A6=2,"dwadzieścia ",IF(A6=3,"trzydzieści ",IF(A6=4,"czterdzieści ",IF(A6=5,"pięćdziesiąt ","")))))) ->  | F6: =IF(A6=6,"sześćdziesiąt ",IF(A6=7,"siedemdziesiąt ",IF(A6=8,"osiemdziesiąt ",IF(A6=9,"dziewięćdziesiąt ","")))) ->  | J6: =IF(C6,E6&I6,IF(D6,F6&I6,"")) -> 
A7: =INT(A$1/1000)-10*A6-100*A5-1000*A4-10000*A3 ->  | E7: =IF(A7=0,IF(OR(AND(A6<>0,A6<>1),AND(A5<>0,A6=0)),"tysięcy ",""),IF(A7=1,IF(AND(A5=0,A6=0),"jeden tysiąc ","jeden tysięcy "),IF(A7=2,"dwa tysiące ",IF(A7=3,"trzy tysiące ",IF(A7=4,"cztery tysiące ",IF(A7=5,"pięć tysięcy ","")))))) ->  | F7: =IF(A7=6,"sześć tysięcy ",IF(A7=7,"siedem tysięcy ",IF(A7=8,"osiem tysięcy ",IF(A7=9,"dziewięć tysięcy ","")))) ->  | G7: =IF(A7=0,"",IF(A7=1,"jedenaście tysięcy ",IF(A7=2,"dwanaście tysięcy ",IF(A7=3,"trzynaście tysięcy ",IF(A7=4,"czternaście tysięcy ",IF(A7=5,"piętnaście tysięcy ","")))))) ->  | H7: =IF(A7=6,"szesnaście tysięcy ",IF(A7=7,"siedemnaście tysięcy ",IF(A7=8,"osiemnaście tysięcy ",IF(A7=9,"dziewiętnaście tysięcy ","")))) ->  | J7: =IF(A6=1,IF(C7,G7,IF(D7,H7)),IF(C7,E7,IF(D7,F7,""))) -> 
A8: =INT(A$1/100)-10*A7-100*A6-1000*A5-10000*A4-100000*A3 ->  | E8: =IF(A8=0,"",IF(A8=1,"sto ",IF(A8=2,"dwieście ",IF(A8=3,"trzysta ",IF(A8=4,"czterysta ",IF(A8=5,"pięćset ","")))))) ->  | F8: =IF(A8=6,"sześćset ",IF(A8=7,"siedemset ",IF(A8=8,"osiemset ",IF(A8=9,"dziewięćset ","")))) ->  | J8: =IF(C8,E8&I8,IF(D8,F8&I8,"")) -> 
A9: =INT(A$1/10)-10*A8-100*A7-1000*A6-10000*A5-100000*A4-1000000*A3 ->  | E9: =IF(A9=0,"",IF(A9=1,IF(A10=0,"dziesięć ",""),IF(A9=2,"dwadzieścia ",IF(A9=3,"trzydzieści ",IF(A9=4,"czterdzieści ",IF(A9=5,"pięćdziesiąt ","")))))) ->  | F9: =IF(A9=6,"sześćdziesiąt ",IF(A9=7,"siedemdziesiąt ",IF(A9=8,"osiemdziesiąt ",IF(A9=9,"dziewięćdziesiąt ","")))) ->  | J9: =IF(C9,E9&I9,IF(D9,F9&I9,"")) -> 
A10: =INT(A$1)-10*A9-100*A8-1000*A7-10000*A6-100000*A5-1000000*A4-10000000*A3 ->  | E10: =IF(A10=0,"",IF(A10=1,"jeden ",IF(A10=2,"dwa ",IF(A10=3,"trzy ",IF(A10=4,"cztery ",IF(A10=5,"pięć ","")))))) ->  | F10: =IF(A10=6,"sześć ",IF(A10=7,"siedem ",IF(A10=8,"osiem ",IF(A10=9,"dziewięć ","")))) ->  | G10: =IF(A10=0,"",IF(A10=1,"jedenaście ",IF(A10=2,"dwanaście ",IF(A10=3,"trzynaście ",IF(A10=4,"czternaście ",IF(A10=5,"piętnaście ","")))))) ->  | H10: =IF(A10=6,"szesnaście ",IF(A10=7,"siedemnaście ",IF(A10=8,"osiemnaście ",IF(A10=9,"dziewiętnaście ","")))) ->  | J10: =IF(A9=1,IF(C10,G10,IF(D10,H10)),IF(C10,E10,IF(D10,F10,""))) -> 
A11: =ROUND((A1-TRUNC(A1,0))*100,0) ->  | J11: ="zł "&TEXT(A11,"00")&"/100" -> 
E12: Słownie:
A13: =TRUNC(A1,1) ->  | E13: =J3&J4&J5&J6&J7&J8&J9&J10&J11 -> 
